﻿Department,Account,Date,Amount,Fund,Description,VendorPayee
Mayor and City Council,Dues and memberships,01/02/2018,82942.00,General Fund,Annual Membership Dues,COLORADO MUNICIPAL LEAGUE
Police,Other small tools & equipment,01/02/2018,55.00,General Fund,RMBRS SWAT HLMT SHROUD 010118,"DIREZZA, MARC A"
Police,Travel - other,01/02/2018,26.00,General Fund,2017 Court Parking Reimburs.,"SIMPSON, DANIEL S"
Public Works,Travel - auto expense,01/02/2018,35.68,General Fund,2017 mileage reimbursement,"PADON, JOHN F"
City Clerk,Other profess & tech services,01/03/2018,53.60,General Fund,12/17 MM CC Fees,Bank of America EFT
City Manager,Meal expense,01/03/2018,25.63,General Fund,Farewell Lunch for Intern,STACIE OULTON
City Manager,Travel - auto expense,01/03/2018,7.38,General Fund,Mileage Reimbursement,"MUTH, ANDERSON FINLEY"
Community Resources,Other profess & tech services,01/03/2018,123.00,Open Space Fund,2017 ice for shop,REDDY ICE CORPORATION
Community Resources,Other profess & tech services,01/03/2018,25.00,General Fund,OCT 2017 WEEKLY LINEN SERVICE,FIVE STAR LINEN SERVICE
Community Resources,Other profess & tech services,01/03/2018,25.00,General Fund,OCT 2017 WEEKLY LINEN SERVICE,FIVE STAR LINEN SERVICE
Community Resources,Other profess & tech services,01/03/2018,25.00,General Fund,OCT 2017 WEEKLY LINEN SERVICE,FIVE STAR LINEN SERVICE
Community Resources,Other profess & tech services,01/03/2018,25.00,General Fund,OCT 2017 WEEKLY LINEN SERVICE,FIVE STAR LINEN SERVICE
Community Resources,Other profess & tech services,01/03/2018,2596.45,General Fund,12/17 MM CC Fees,Bank of America EFT
Community Resources,Other profess & tech services,01/03/2018,46.00,General Fund,2017 Daniels translation,PROJECT VISION 21
Community Resources,Other profess & tech services,01/03/2018,703.91,Golf Course Enterprise Fund,12/17 R&F CC Fees,Bank of America EFT
Community Resources,Other profess & tech services,01/03/2018,1470.16,Golf Course Enterprise Fund,12/17 R&F CC Fees,Bank of America EFT
Community Resources,Other profess & tech services,01/03/2018,67.92,General Fund,12/17 R&F CC Fees,Bank of America EFT
Community Resources,Other profess & tech services,01/03/2018,1335.56,General Fund,12/17 R&F CC Fees,Bank of America EFT
Community Resources,Other profess & tech services,01/03/2018,1039.03,General Fund,12/17 R&F CC Fees,Bank of America EFT
Community Resources,Other profess & tech services,01/03/2018,208.17,General Fund,12/17 R&F CC Fees,Bank of America EFT
Community Resources,Other profess & tech services,01/03/2018,714.51,General Fund,12/17 R&F CC Fees,Bank of America EFT
Community Resources,Other profess & tech services,01/03/2018,716.28,General Fund,12/17 R&F CC Fees,Bank of America EFT
Community Resources,Other profess & tech services,01/03/2018,222.77,"Heritage, Culture & Arts Fund",12/17 R&F CC Fees,Bank of America EFT
Community Resources,Other profess & tech services,01/03/2018,114.57,"Heritage, Culture & Arts Fund",12/17 R&F CC Fees,Bank of America EFT
Community Resources,Other profess & tech services,01/03/2018,156.16,General Fund,12/17 R&F CC Fees,Bank of America EFT
Community Resources,Other profess & tech services,01/03/2018,469.31,"Heritage, Culture & Arts Fund",12/17 R&F CC Fees,Bank of America EFT
Community Resources,Other profess & tech services,01/03/2018,372.86,Open Space Fund,12/17 R&F CC Fees,Bank of America EFT
Community Resources,Other profess & tech services,01/03/2018,1112.56,"Heritage, Culture & Arts Fund",12/17 R&F CC Fees,Bank of America EFT
Community Resources,Rent - land & buildings,01/03/2018,500.00,General Fund,2018 Jan Lease Pymt,LAKEWOOD UNITED CHURCH OF CHRIST
Community Resources,Rental of equipment & vehicles,01/03/2018,8834.66,Golf Course Enterprise Fund,01/18 Golf Cart Lease FH,PNC Equip Finance EFT
Community Resources,Rental of equipment & vehicles,01/03/2018,5721.91,Golf Course Enterprise Fund,01/18 Golf Cart Lease HS,PNC Equip Finance EFT
Community Resources,Rental of equipment & vehicles,01/03/2018,736.48,Golf Course Enterprise Fund,01/18 Golf Haulers Lease FH,PNC Equip Finance EFT
Community Resources,Travel - auto expense,01/03/2018,16.10,General Fund,2017 Dec Mileage Ward,"WARD, JAYME LEIGH"
Community Resources,Travel - auto expense,01/03/2018,47.08,General Fund,2017 Mileage Reimb for Dec,"PARKER, KYLE I"
Community Resources,Travel - auto expense,01/03/2018,44.62,General Fund,2017 MILEAGE REIMB FOR DEC,"SNOW, MARK D"
Community Resources,Travel - auto expense,01/03/2018,42.48,General Fund,MILEAGE REIM FR 05/17 TO 12/17,"STEPHENS, KATHLEEN M"
Community Resources,Water,01/03/2018,48.64,Open Space Fund,2017 water hydrant usage,DENVER WATER DEPARTMENT
Finance,Other profess & tech services,01/03/2018,75.00,General Fund,12/17 Fee for ACH Services,First Bank EFT - ACH Fee
Mayor and City Council,Travel - auto expense,01/03/2018,144.62,General Fund,Mileage Reimbursement,"PAUL, ADAM A"
Municipal Court,Other profess & tech services,01/03/2018,960.54,General Fund,12/17 Muni Ct CC Fees,Bank of America EFT
Municipal Court,Other profess & tech services,01/03/2018,55.19,General Fund,12/17 Muni Ct CC Fees,Bank of America EFT
Municipal Court,Other profess & tech services,01/03/2018,123.31,General Fund,12/17 Muni Ct CC Fees,Bank of America EFT
Police,Other profess & tech services,01/03/2018,89.37,General Fund,12/17 MM CC Fees,Bank of America EFT
Public Works,Electricity,01/03/2018,34.97,Sewer Enterprise Fund,2017 Electricity Sanitation D.,XCEL ENERGY
Public Works,Other profess & tech services,01/03/2018,37.64,Water Enterprise Fund,12/17 WSS CC Fees,Bank of America EFT
Public Works,Other profess & tech services,01/03/2018,383.93,Sewer Enterprise Fund,12/17 WSS CC Fees,Bank of America EFT
Public Works,Other profess & tech services,01/03/2018,331.23,Stormwater Enterprise Fund,12/17 WSS CC Fees,Bank of America EFT
Public Works,Other profess & tech services,01/03/2018,4816.62,General Fund,12/17 MM CC Fees,Bank of America EFT
Public Works,Other profess & tech services,01/03/2018,2539.35,General Fund,12/17 MM CC Fees,Bank of America EFT
City Manager,Promotional expense,01/04/2018,10000.00,Economic Development Fund,West Chamber Sponsorship,WEST CHAMBER
Community Resources,Advertising,01/04/2018,3000.00,Golf Course Enterprise Fund,2018 Golf-Advertising,O'KEEFE PUBLISHING INC
Community Resources,Advertising,01/04/2018,3000.00,Golf Course Enterprise Fund,2018 Golf-Advertising,O'KEEFE PUBLISHING INC
Community Resources,Consulting Costs-Other Improve,01/04/2018,545.00,Open Space Fund,2017 BCLP RESTROOM IMPROVEMENT,A G WASSENAAR INC
Community Resources,Dues and memberships,01/04/2018,100.00,General Fund,pesticide lic renewal-Haselgre,COLO DEPT OF AGRICULTURE PLANT INDUSTRY
Community Resources,Other property services,01/04/2018,582.00,General Fund,Civic South - Doyles Office,PALACE CONSTRUCTION CO INC
Community Resources,Other property services,01/04/2018,1258.37,General Fund,2017 - PD Academy - Mitigation,PALACE CONSTRUCTION CO INC
Community Resources,Sanitation,01/04/2018,315.92,General Fund,100-120 S CODY ST,WEST ALAMEDA HEIGHTS SANITATION
Community Resources,Travel - auto expense,01/04/2018,12.84,General Fund,2017-Mileage Reimburse-CCC,"SCHEAR, LYNNETTE M"
Community Resources,Travel - auto expense,01/04/2018,34.45,General Fund,DEC 2017 Mileage Reimbursement,"BROWNING, PAMELA S"
Community Resources,Water,01/04/2018,57.40,General Fund,6645 W 13TH AVE,CONSOLIDATED MUTUAL WATER
Community Resources,Water,01/04/2018,31.50,Open Space Fund,7540 W 12TH AVE,CONSOLIDATED MUTUAL WATER
Community Resources,Water,01/04/2018,31.50,General Fund,1204 WADSWORTH BLVD,CONSOLIDATED MUTUAL WATER
Community Resources,Water,01/04/2018,113.80,General Fund,6201 W 11TH AVE,CONSOLIDATED MUTUAL WATER
Community Resources,Water,01/04/2018,39.00,General Fund,5499 W 6TH AVE,CONSOLIDATED MUTUAL WATER
Community Resources,Water,01/04/2018,91.50,General Fund,5330 W 9TH AVE,CONSOLIDATED MUTUAL WATER
Community Resources,Water,01/04/2018,302.10,General Fund,5625 W 13TH AVE MT AIR PARK,CONSOLIDATED MUTUAL WATER
Community Resources,Water,01/04/2018,6.50,General Fund,4950 S JELLISON WY,LAKEHURST WATER
Community Resources,Water,01/04/2018,8.19,General Fund,10060 W LEHIGH AVE,LAKEHURST WATER
Police,Operating supplies,01/04/2018,798.48,Grants Fund (Oper & Capital),HIDTA Reimb- Office Supplies,WEST METRO DRUG TASK FORCE
Police,Operating supplies,01/04/2018,2000.00,Grants Fund (Oper & Capital),HIDTA Reimb-Supplies Drug Kits,WEST METRO DRUG TASK FORCE
Police,Operating supplies,01/04/2018,1800.00,Grants Fund (Oper & Capital),HIDTA Reimb- Oper. Supplies,WEST METRO DRUG TASK FORCE
Police,Operating supplies,01/04/2018,22752.00,Grants Fund (Oper & Capital),HIDTA Reimb- PE/PI/PS,WEST METRO DRUG TASK FORCE
Police,Other profess & tech services,01/04/2018,6129.65,Grants Fund (Oper & Capital),HIDTA OT Reimb-4th qtr,CITY OF WHEAT RIDGE
Police,Other profess & tech services,01/04/2018,20780.27,Grants Fund (Oper & Capital),HIDTA OT Reimb-4th qtr,JEFFERSON COUNTY SHERIFF'S DEPARTMENT
Police,Other profess & tech services,01/04/2018,21410.15,Grants Fund (Oper & Capital),HIDTA OT Reimb-4th qtr,CITY OF ARVADA POLICE DEPT
Police,Other profess & tech services,01/04/2018,8851.72,Grants Fund (Oper & Capital),HIDTA Reimb - Services,WEST METRO DRUG TASK FORCE
Public Works,Contractor services,01/04/2018,1042.40,Stormwater Enterprise Fund,2017 Utility Notifications Dec,UTILITY NOTIFICATION CTR OF COLORADO
Public Works,Contractor services,01/04/2018,446.75,General Fund,2017 Utility Notifications Dec,UTILITY NOTIFICATION CTR OF COLORADO
Public Works,Contractor services,01/04/2018,0.00,Stormwater Enterprise Fund,UNCC,UTILITY NOTIFICATION CTR OF COLORADO
City Attorney,Employee Benefits,01/05/2018,9990.39,General Fund,General Fund,Employee Benefits
City Attorney,Salaries and Wages,01/05/2018,35359.23,General Fund,General Fund,Salaries and Wages
City Clerk,Employee Benefits,01/05/2018,7748.66,General Fund,General Fund,Employee Benefits
City Clerk,Other profess & tech services,01/05/2018,15.00,General Fund,12/17 CC Fees,Plug & Pay Technologies EFT
City Clerk,Salaries and Wages,01/05/2018,23614.82,General Fund,General Fund,Salaries and Wages
City Manager,Employee Benefits,01/05/2018,16763.00,General Fund,General Fund,Employee Benefits
City Manager,Employee Benefits,01/05/2018,3614.83,Economic Development Fund,Economic Development Fund,Employee Benefits
City Manager,Redevelopment Costs Reimbursed,01/05/2018,5136.00,Economic Development Fund,LWA2BB 11/17,Belmar Hotel Accom Shbk 11/17
City Manager,Salaries and Wages,01/05/2018,13616.62,Economic Development Fund,Economic Development Fund,Salaries and Wages
City Manager,Salaries and Wages,01/05/2018,49172.35,General Fund,General Fund,Salaries and Wages
City Manager,Water,01/05/2018,39.00,Economic Development Fund,1290 Harlan,CONSOLIDATED MUTUAL WATER
City Manager,Water,01/05/2018,54.00,Economic Development Fund,1495 Wadsworth,CONSOLIDATED MUTUAL WATER
Community Resources,Chem. & lab. supplies,01/05/2018,289.35,General Fund,2017 AQUATICS SUPPLIES,THE AQUEOUS SOLUTION INC.
Community Resources,Chem. & lab. supplies,01/05/2018,245.10,General Fund,2017 AQUATICS SUPPLIES,THE AQUEOUS SOLUTION INC.
Community Resources,Chem. & lab. supplies,01/05/2018,150.01,General Fund,2017 AQUATICS SUPPLIES,THE AQUEOUS SOLUTION INC.
Community Resources,Employee Benefits,01/05/2018,20710.56,Open Space Fund,Open Space Fund,Employee Benefits
Community Resources,Employee Benefits,01/05/2018,13382.94,"Heritage, Culture & Arts Fund","Heritage, Culture & Arts Fund",Employee Benefits
Community Resources,Employee Benefits,01/05/2018,478.13,Capital Improvement Fund,Capital Improvement Fund,Employee Benefits
Community Resources,Employee Benefits,01/05/2018,17887.69,Golf Course Enterprise Fund,Golf Course Enterprise Fund,Employee Benefits
Community Resources,Employee Benefits,01/05/2018,11850.60,Grants Fund (Oper & Capital),Grants Fund (Oper & Capital),Employee Benefits
Community Resources,Employee Benefits,01/05/2018,108494.82,General Fund,General Fund,Employee Benefits
Community Resources,Other profess & tech services,01/05/2018,15.85,Open Space Fund,12/17 CC Fees,Plug & Pay Technologies EFT
Community Resources,Other profess & tech services,01/05/2018,45.40,General Fund,12/17 CC Fees,Plug & Pay Technologies EFT
Community Resources,Other profess & tech services,01/05/2018,30.50,General Fund,12/17 CC Fees,Plug & Pay Technologies EFT
Community Resources,Other profess & tech services,01/05/2018,15.00,General Fund,12/17 CC Fees,Plug & Pay Technologies EFT
Community Resources,Other profess & tech services,01/05/2018,15.00,General Fund,12/17 CC Fees,Plug & Pay Technologies EFT
Community Resources,Other profess & tech services,01/05/2018,15.00,"Heritage, Culture & Arts Fund",12/17 CC Fees,Plug & Pay Technologies EFT
Community Resources,Other profess & tech services,01/05/2018,81.20,Golf Course Enterprise Fund,12/17 CC Fees,Plug & Pay Technologies EFT
Community Resources,Other profess & tech services,01/05/2018,63.15,General Fund,12/17 CC Fees,Plug & Pay Technologies EFT
Community Resources,Other profess & tech services,01/05/2018,15.00,"Heritage, Culture & Arts Fund",12/17 CC Fees,Plug & Pay Technologies EFT
Community Resources,Other profess & tech services,01/05/2018,43.55,Golf Course Enterprise Fund,12/17 CC Fees,Plug & Pay Technologies EFT
Community Resources,Other profess & tech services,01/05/2018,37.90,General Fund,12/17 CC Fees,Plug & Pay Technologies EFT
Community Resources,Other profess & tech services,01/05/2018,79.15,General Fund,12/17 CC Fees,Plug & Pay Technologies EFT
Community Resources,Other profess & tech services,01/05/2018,15.00,"Heritage, Culture & Arts Fund",12/17 CC Fees,Plug & Pay Technologies EFT
Community Resources,Other profess & tech services,01/05/2018,15.00,General Fund,12/17 CC Fees,Plug & Pay Technologies EFT
Community Resources,Other profess & tech services,01/05/2018,38.38,Golf Course Enterprise Fund,12/17 R&F CC Fees,American Express EFT
Community Resources,Other profess & tech services,01/05/2018,89.12,Golf Course Enterprise Fund,12/17 R&F CC Fees,American Express EFT
Community Resources,Salaries and Wages,01/05/2018,57634.77,Open Space Fund,Open Space Fund,Salaries and Wages
Community Resources,Salaries and Wages,01/05/2018,52539.06,Golf Course Enterprise Fund,Golf Course Enterprise Fund,Salaries and Wages
Community Resources,Salaries and Wages,01/05/2018,30521.64,Grants Fund (Oper & Capital),Grants Fund (Oper & Capital),Salaries and Wages
Community Resources,Salaries and Wages,01/05/2018,50823.66,"Heritage, Culture & Arts Fund","Heritage, Culture & Arts Fund",Salaries and Wages
Community Resources,Salaries and Wages,01/05/2018,1368.64,Capital Improvement Fund,Capital Improvement Fund,Salaries and Wages
Community Resources,Salaries and Wages,01/05/2018,350259.97,General Fund,General Fund,Salaries and Wages
Community Resources,Training,01/05/2018,125.00,General Fund,2017 INSTRUCTOR TRAINING,"SHERWOOD, MARY L"
Community Resources,Training,01/05/2018,75.00,General Fund,2017 INSTRUSTOR TRAINING,"MIYAGISHIMA, JOYCE A"
Community Resources,Travel - auto expense,01/05/2018,44.41,General Fund,2017 MILE REIMB 11/15-12/22,"ZIMMERMAN, POLLY S"
Community Resources,Travel - auto expense,01/05/2018,49.73,General Fund,2017 MILE REIMBURSE 12/1-12/31,"LUKER, LOREN"
Community Resources,Travel - auto expense,01/05/2018,12.95,General Fund,2017 mile reimburse 11/1-12/31,"BROWN, CHRISTA J"
Community Resources,Travel - auto expense,01/05/2018,31.75,General Fund,2017 MILE REIMB 11/1-11/30,"SCHOENFELDT, NICOLETTE MAREN"
Community Resources,Travel - auto expense,01/05/2018,21.17,General Fund,2017 MILE REIMB 12/1-12/31,"SCHOENFELDT, NICOLETTE MAREN"
Finance,Employee Benefits,01/05/2018,609.94,Capital Improvement Fund,Capital Improvement Fund,Employee Benefits
Finance,Employee Benefits,01/05/2018,240.23,Grants Fund (Oper & Capital),Grants Fund (Oper & Capital),Employee Benefits
Finance,Employee Benefits,01/05/2018,29366.01,General Fund,General Fund,Employee Benefits
Finance,Salaries and Wages,01/05/2018,89797.69,General Fund,General Fund,Salaries and Wages
Finance,Salaries and Wages,01/05/2018,1667.42,Capital Improvement Fund,Capital Improvement Fund,Salaries and Wages
Finance,Salaries and Wages,01/05/2018,968.00,Grants Fund (Oper & Capital),Grants Fund (Oper & Capital),Salaries and Wages
Human Resources,Employee Benefits,01/05/2018,10338.81,General Fund,General Fund,Employee Benefits
Human Resources,Salaries and Wages,01/05/2018,35271.21,General Fund,General Fund,Salaries and Wages
Information Technology,Employee Benefits,01/05/2018,31859.78,General Fund,General Fund,Employee Benefits
Information Technology,Salaries and Wages,01/05/2018,116781.16,General Fund,General Fund,Salaries and Wages
Lkwd Reinvestment Authority,Employee Benefits,01/05/2018,500.63,Lakewood Reinvestment Auth CIF,Lakewood Reinvestment Auth CIF,Employee Benefits
Lkwd Reinvestment Authority,Salaries and Wages,01/05/2018,2010.39,Lakewood Reinvestment Auth CIF,Lakewood Reinvestment Auth CIF,Salaries and Wages
Mayor and City Council,Employee Benefits,01/05/2018,5088.97,General Fund,General Fund,Employee Benefits
Mayor and City Council,Salaries and Wages,01/05/2018,6443.76,General Fund,General Fund,Salaries and Wages
Municipal Court,Employee Benefits,01/05/2018,32096.31,General Fund,General Fund,Employee Benefits
Municipal Court,Salaries and Wages,01/05/2018,92708.35,General Fund,General Fund,Salaries and Wages
Non-Departmental,Employee Benefits,01/05/2018,6580.36,General Fund,General Fund,Employee Benefits
Non-Departmental,Employee Benefits,01/05/2018,4814.92,General Fund,General Fund,Employee Benefits
Non-Departmental,Salaries and Wages,01/05/2018,35783.59,General Fund,General Fund,Salaries and Wages
Planning,Consulting Costs-Other Improve,01/05/2018,881.50,Capital Improvement Fund,2017 SUTHERLAND SHIRE,A G WASSENAAR INC
Planning,Employee Benefits,01/05/2018,15426.36,General Fund,General Fund,Employee Benefits
Planning,Employee Benefits,01/05/2018,1371.43,Grants Fund (Oper & Capital),Grants Fund (Oper & Capital),Employee Benefits
Planning,Salaries and Wages,01/05/2018,3317.60,Grants Fund (Oper & Capital),Grants Fund (Oper & Capital),Salaries and Wages
Planning,Salaries and Wages,01/05/2018,50870.39,General Fund,General Fund,Salaries and Wages
Police,Employee Benefits,01/05/2018,4815.22,General Fund,General Fund,Employee Benefits
Police,Employee Benefits,01/05/2018,17.98,Grants Fund (Oper & Capital),Grants Fund (Oper & Capital),Employee Benefits
Police,Employee Benefits,01/05/2018,380228.74,General Fund,General Fund,Employee Benefits
Police,Other profess & tech services,01/05/2018,15.00,General Fund,12/17 CC Fees,Plug & Pay Technologies EFT
Police,Salaries and Wages,01/05/2018,1249851.71,General Fund,General Fund,Salaries and Wages
Police,Salaries and Wages,01/05/2018,903.35,Grants Fund (Oper & Capital),Grants Fund (Oper & Capital),Salaries and Wages
Police,Training,01/05/2018,9300.00,General Fund,2018 SMIP / CMDR PICKARD,POLICE EXECUTIVE RESEARCH FORUM
Public Works,Dues and memberships,01/05/2018,400.00,General Fund,2018 professional membership,WOMEN'S TRANSPORTATION SEMINAR OF COLORA
Public Works,Electricity-traffic signals,01/05/2018,89.89,General Fund,Electricity,XCEL ENERGY
Public Works,Electricity-traffic signals,01/05/2018,109.35,General Fund,2017 Electricity,XCEL ENERGY
Public Works,Employee Benefits,01/05/2018,6774.65,Capital Improvement Fund,Capital Improvement Fund,Employee Benefits
Public Works,Employee Benefits,01/05/2018,6283.69,Sewer Enterprise Fund,Sewer Enterprise Fund,Employee Benefits
Public Works,Employee Benefits,01/05/2018,12083.14,Stormwater Enterprise Fund,Stormwater Enterprise Fund,Employee Benefits
Public Works,Employee Benefits,01/05/2018,1105.73,Water Enterprise Fund,Water Enterprise Fund,Employee Benefits
Public Works,Employee Benefits,01/05/2018,648.31,Sewer Enterprise Fund,Sewer Enterprise Fund,Employee Benefits
Public Works,Employee Benefits,01/05/2018,81071.69,General Fund,General Fund,Employee Benefits
Public Works,Employee Benefits,01/05/2018,289.29,Grants Fund (Oper & Capital),Grants Fund (Oper & Capital),Employee Benefits
Public Works,Employee Benefits,01/05/2018,114.41,Water Enterprise Fund,Water Enterprise Fund,Employee Benefits
Public Works,Other profess & tech services,01/05/2018,15.10,General Fund,12/17 CC Fees,Plug & Pay Technologies EFT
Public Works,Salaries and Wages,01/05/2018,36302.68,Stormwater Enterprise Fund,Stormwater Enterprise Fund,Salaries and Wages
Public Works,Salaries and Wages,01/05/2018,2984.08,Water Enterprise Fund,Water Enterprise Fund,Salaries and Wages
Public Works,Salaries and Wages,01/05/2018,16457.37,Sewer Enterprise Fund,Sewer Enterprise Fund,Salaries and Wages
Public Works,Salaries and Wages,01/05/2018,1067.08,Grants Fund (Oper & Capital),Grants Fund (Oper & Capital),Salaries and Wages
Public Works,Salaries and Wages,01/05/2018,27188.86,Capital Improvement Fund,Capital Improvement Fund,Salaries and Wages
Public Works,Salaries and Wages,01/05/2018,273433.66,General Fund,General Fund,Salaries and Wages
Community Resources,Contractor services,01/08/2018,15913.00,General Fund,39 HC5 Single Stations,BIG BELLY SOLAR INC
Community Resources,Other profess & tech services,01/08/2018,77.76,Golf Course Enterprise Fund,2017 december office cleaning,CARNATION BUILDING SERVICE INC
Community Resources,Other profess & tech services,01/08/2018,51.84,Golf Course Enterprise Fund,2017 december office cleaning,CARNATION BUILDING SERVICE INC
Community Resources,Other profess & tech services,01/08/2018,240.00,Golf Course Enterprise Fund,painting conex box,AVALANCHE OF COLORS INC
Community Resources,Other profess & tech services,01/08/2018,160.00,Golf Course Enterprise Fund,painting conex box,AVALANCHE OF COLORS INC
Finance,Postage & delivery,01/08/2018,73.46,General Fund,2017 Daily Mail-December,ROCKY MOUNTAIN MAIL SERVICES LLC
Public Works,Dues and memberships,01/08/2018,85.00,General Fund,2018 CAPT Membership,COLORADO ASSOC OF PERMIT TECHNICIANS
City Manager,Office furn & equip-non cap,01/09/2018,450.00,General Fund,Delviery and Install,"CONTRACT FURNISHINGS, INC."
City Manager,Office furn & equip-non cap,01/09/2018,3364.78,General Fund,CMO East Office Furniture,"CONTRACT FURNISHINGS, INC."
City Manager,Office furn & equip-non cap,01/09/2018,81.74,General Fund,Additional Piece-Rev Quote,"CONTRACT FURNISHINGS, INC."
Community Resources,Bldg Construction Costs,01/09/2018,382.50,"Heritage, Culture & Arts Fund",2017 CARETAKER'S SOIL TESTS,A G WASSENAAR INC
Community Resources,Bldg Construction Costs,01/09/2018,16758.00,Capital Improvement Fund,Clements Community Center,KC CONSTRUCTION INC
Community Resources,Contractor services,01/09/2018,1522.00,General Fund,Snow Removal & Ice Control,JPL CARES
Community Resources,Contractor services,01/09/2018,919.00,General Fund,Snow Removal & Ice Control,JPL CARES
Community Resources,Contractor services,01/09/2018,1682.50,General Fund,Snow Removal & Ice Control,JPL CARES
Community Resources,Contractor services,01/09/2018,873.00,General Fund,Snow Removal & Ice Control,JPL CARES
Community Resources,Dues and memberships,01/09/2018,45.00,"Heritage, Culture & Arts Fund",2017 recreation supplies,SAMS CLUB
Community Resources,Meal expense,01/09/2018,53.30,"Heritage, Culture & Arts Fund",2017-pottery cleanup day,"VON DASSOW, ELEONORE SUMI"
Community Resources,Other utility services,01/09/2018,10.65,General Fund,1301 CARR ST-RICHEY PARK,XCEL ENERGY
Community Resources,Other utility services,01/09/2018,2481.77,General Fund,2017 PARFET MONTHLY BILL,XCEL ENERGY
Community Resources,Recreational supplies,01/09/2018,125.63,General Fund,2017 recreation supplies,SAMS CLUB
Community Resources,Recreational supplies,01/09/2018,83.18,General Fund,2017 recreation supplies,SAMS CLUB
Community Resources,Recreational supplies,01/09/2018,37.97,"Heritage, Culture & Arts Fund",jewlery class supplies,"FULTON, ASHLEY ELIZABETH"
Community Resources,Repair & maintenance supplies,01/09/2018,415.00,Capital Improvement Fund,Lakewood Two Creeks Sign,BANNER SIGNS AND DECALS
Community Resources,Repairs & maint - bldgs,01/09/2018,1300.00,"Heritage, Culture & Arts Fund",GILL & ETHEL'S PAINT,AVALANCHE OF COLORS INC
Community Resources,Sanitation,01/09/2018,49.87,Open Space Fund,1295 S REED ST,BANCROFT CLOVER W & S DIST
Community Resources,Sanitation,01/09/2018,16.99,General Fund,2017 9351 W JEWELL AVE,BANCROFT CLOVER W & S DIST
Community Resources,Sanitation,01/09/2018,11.51,General Fund,2017 7735 W FLORIDA AVE,BANCROFT CLOVER W & S DIST
Community Resources,Sanitation,01/09/2018,6.03,General Fund,2017 797 S WADSWORTH BLVD,BANCROFT CLOVER W & S DIST
Community Resources,Sanitation,01/09/2018,6.03,General Fund,2017 797 S WADSWORTH BLVD,BANCROFT CLOVER W & S DIST
Community Resources,Sanitation,01/09/2018,6.03,General Fund,2017 445 S ALLISON PKWY,BANCROFT CLOVER W & S DIST
Community Resources,Sanitation,01/09/2018,6.03,General Fund,2017 787 S WADSWORTH BLVD,BANCROFT CLOVER W & S DIST
Community Resources,Sanitation,01/09/2018,195.09,General Fund,2017 480S ALLISON PKWY,BANCROFT CLOVER W & S DIST
Community Resources,Sanitation,01/09/2018,38.91,General Fund,2017 1955 S KIPLING ST,BANCROFT CLOVER W & S DIST
Community Resources,Sanitation,01/09/2018,44.39,General Fund,2017 680 S HARLAN ST,BANCROFT CLOVER W & S DIST
Community Resources,Sanitation,01/09/2018,14.25,General Fund,2017 1392 S LAMAR ST,BANCROFT CLOVER W & S DIST
Community Resources,Sanitation,01/09/2018,16.99,General Fund,2017 5675 W OHIO AVE,BANCROFT CLOVER W & S DIST
Community Resources,Sanitation,01/09/2018,16.99,General Fund,2017 5370 W OHIO AVE,BANCROFT CLOVER W & S DIST
Community Resources,Sanitation,01/09/2018,8.77,General Fund,2017 1393 S KENDALL ST,BANCROFT CLOVER W & S DIST
Community Resources,Sanitation,01/09/2018,417.03,General Fund,2017 2200 S KIPLING ST,BANCROFT CLOVER W & S DIST
Community Resources,Sanitation,01/09/2018,16.99,General Fund,2017 2220 S KIPLING ST,BANCROFT CLOVER W & S DIST
Community Resources,Sanitation,01/09/2018,8.77,General Fund,2017 1470 S YARROW ST,BANCROFT CLOVER W & S DIST
Community Resources,Sanitation,01/09/2018,19.73,General Fund,2017 1480 S YARROW ST,BANCROFT CLOVER W & S DIST
Community Resources,Sanitation,01/09/2018,11.51,General Fund,2017 801 S YARROW ST,BANCROFT CLOVER W & S DIST
Community Resources,Sanitation,01/09/2018,8.77,General Fund,2017 867 S YARROW ST,BANCROFT CLOVER W & S DIST
Community Resources,Sanitation,01/09/2018,16.99,General Fund,2017 7850 W OHIO AVE,BANCROFT CLOVER W & S DIST
Community Resources,Sanitation,01/09/2018,16.99,General Fund,2017 7840 W OHIO AVE,BANCROFT CLOVER W & S DIST
Community Resources,Sanitation,01/09/2018,11.51,General Fund,2017 7830 W OHIO AVE,BANCROFT CLOVER W & S DIST
Community Resources,Sanitation,01/09/2018,16.99,General Fund,2017 857 S YARROW ST,BANCROFT CLOVER W & S DIST
Community Resources,Travel - auto expense,01/09/2018,40.13,Golf Course Enterprise Fund,2017 MILEGAE REIMB 12/15-12/31,"THOMAS, KELLY E"
Community Resources,Travel - auto expense,01/09/2018,21.40,Golf Course Enterprise Fund,2017 MILEGAE REIMB 12/15-12/31,"THOMAS, KELLY E"
Community Resources,Travel - auto expense,01/09/2018,63.18,General Fund,2017 mile reimb 11/1-12/31,"COOK, RYAN A"
Community Resources,Travel - other,01/09/2018,57.00,Golf Course Enterprise Fund,TR 15034-PGA MERCH SHOW,"MONTAGUE, KIMBERLY JO"
Community Resources,Travel - other,01/09/2018,57.00,Golf Course Enterprise Fund,TR 15034-PGA MERCH SHOW,"MONTAGUE, KIMBERLY JO"
Community Resources,Travel - other,01/09/2018,114.00,Golf Course Enterprise Fund,TR 15033-PGA MERCH SHOW,"BAUER, PAULA"
Community Resources,Travel - other,01/09/2018,114.00,Golf Course Enterprise Fund,TR 15033-PGA MERCH SHOW,"BAUER, PAULA"
Community Resources,Travel - other,01/09/2018,114.00,Golf Course Enterprise Fund,TR 15035- PGA MERCH SHOW,"SCHMICK, MARGARET A"
Community Resources,Travel - other,01/09/2018,114.00,Golf Course Enterprise Fund,TR 15035- PGA MERCH SHOW,"SCHMICK, MARGARET A"
Community Resources,Water,01/09/2018,32.94,General Fund,2017 11308 COLLINS AVE,HIGH VIEW WATER DISTRICT
Community Resources,Water,01/09/2018,22.03,General Fund,2017 1175 S SIMMS ST,HIGH VIEW WATER DISTRICT
Community Resources,Water,01/09/2018,22.03,General Fund,2017 1185 S SIMMS ST,HIGH VIEW WATER DISTRICT
Community Resources,Water,01/09/2018,22.03,General Fund,2017 1235 S SIMMS ST,HIGH VIEW WATER DISTRICT
Community Resources,Water,01/09/2018,23.25,Open Space Fund,2017 1001 KIPLING ST,HIGH VIEW WATER DISTRICT
Community Resources,Water,01/09/2018,62.77,General Fund,2017 SIMMS- MCDONNEL PARK,HIGH VIEW WATER DISTRICT
Community Resources,Water,01/09/2018,291.73,General Fund,2017 1850 S GARRISON ST,BANCROFT CLOVER W & S DIST
Community Resources,Water,01/09/2018,22.51,General Fund,6480 W ARKANSAS AVE,BANCROFT CLOVER W & S DIST
Community Resources,Water,01/09/2018,14.53,General Fund,2017 6480 W ARKANSAS AVE,BANCROFT CLOVER W & S DIST
Community Resources,Water,01/09/2018,22.51,General Fund,2017 1450 S GARRISON ST,BANCROFT CLOVER W & S DIST
Community Resources,Water,01/09/2018,17.17,General Fund,2017 7000 W KENTUCKY AVE,BANCROFT CLOVER W & S DIST
Community Resources,Water,01/09/2018,22.51,General Fund,2017 73832 W OHIO AVE,BANCROFT CLOVER W & S DIST
Community Resources,Water,01/09/2018,17.17,General Fund,2017 7780 W OHIO AVE,BANCROFT CLOVER W & S DIST
Community Resources,Water,01/09/2018,22.51,General Fund,2017 10461 W EVANS AVE,BANCROFT CLOVER W & S DIST
Community Resources,Water,01/09/2018,17.17,General Fund,2017 9351 W JEWLL AVE,BANCROFT CLOVER W & S DIST
Community Resources,Water,01/09/2018,22.51,General Fund,2017 5954 W ILIFF DR,BANCROFT CLOVER W & S DIST
Community Resources,Water,01/09/2018,31.11,General Fund,2017 1392 S LAMAR ST,BANCROFT CLOVER W & S DIST
Community Resources,Water,01/09/2018,17.17,Open Space Fund,7351 W FLORIDA AVE,BANCROFT CLOVER W & S DIST
Community Resources,Water,01/09/2018,14.53,General Fund,1887 S PIERCE ST,BANCROFT CLOVER W & S DIST
Community Resources,Water,01/09/2018,13.07,General Fund,1640 S WADSWORTH BLVD,BANCROFT CLOVER W & S DIST
Community Resources,Water,01/09/2018,13.07,General Fund,2113 S WADSWORTH BLVD,BANCROFT CLOVER W & S DIST
Community Resources,Water,01/09/2018,13.23,General Fund,2250 S GARRISON ST,BANCROFT CLOVER W & S DIST
Community Resources,Water,01/09/2018,22.51,General Fund,2017 10500 W FLORIDA AVE,BANCROFT CLOVER W & S DIST
Community Resources,Water,01/09/2018,22.51,General Fund,2017 10520 W FLORIDA AVE,BANCROFT CLOVER W & S DIST
Community Resources,Water,01/09/2018,13.07,General Fund,2017 1197 S WADSWORTH BLVD,BANCROFT CLOVER W & S DIST
Community Resources,Water,01/09/2018,13.07,General Fund,2017 1055 S WADSWORTH BLVD,BANCROFT CLOVER W & S DIST
Community Resources,Water,01/09/2018,71.29,General Fund,2017 1955 S KIPLING ST,BANCROFT CLOVER W & S DIST
Community Resources,Water,01/09/2018,31.11,General Fund,2017 7735 W FLORIDA AVE,BANCROFT CLOVER W & S DIST
Community Resources,Water,01/09/2018,13.07,General Fund,2017 857 S YARROW ST,BANCROFT CLOVER W & S DIST
Community Resources,Water,01/09/2018,13.07,General Fund,2017 7830 W OHIO AVE,BANCROFT CLOVER W & S DIST
Community Resources,Water,01/09/2018,13.07,General Fund,2017 7840 W OHIO AVE,BANCROFT CLOVER W & S DIST
Community Resources,Water,01/09/2018,22.09,General Fund,2017 7850 W OHIO AVE,BANCROFT CLOVER W & S DIST
Community Resources,Water,01/09/2018,17.58,General Fund,2017 867 S YARROW ST,BANCROFT CLOVER W & S DIST
Community Resources,Water,01/09/2018,30.70,General Fund,2017 801 S YARROW ST,BANCROFT CLOVER W & S DIST
Community Resources,Water,01/09/2018,35.62,General Fund,2017 1480 S YARROW ST,BANCROFT CLOVER W & S DIST
Community Resources,Water,01/09/2018,18.68,General Fund,2017 1470 S YARROW ST,BANCROFT CLOVER W & S DIST
Community Resources,Water,01/09/2018,31.53,General Fund,2017 2220 S KIPLING ST,BANCROFT CLOVER W & S DIST
Community Resources,Water,01/09/2018,1106.15,General Fund,2017 2200 S KIPLING ST,BANCROFT CLOVER W & S DIST
Community Resources,Water,01/09/2018,13.07,General Fund,2017 1393 S KENDALL ST,BANCROFT CLOVER W & S DIST
Community Resources,Water,01/09/2018,13.07,General Fund,2017 5370 W OHIO AVE,BANCROFT CLOVER W & S DIST
Community Resources,Water,01/09/2018,17.58,General Fund,2017 5675 W OHIO AVE,BANCROFT CLOVER W & S DIST
Community Resources,Water,01/09/2018,13.07,General Fund,2017 9351 W JEWELL AVE,BANCROFT CLOVER W & S DIST
Community Resources,Water,01/09/2018,33.14,General Fund,2017 680 S HARLAN ST,BANCROFT CLOVER W & S DIST
Community Resources,Water,01/09/2018,2855.04,Open Space Fund,1295 S REED ST,BANCROFT CLOVER W & S DIST
Human Resources,Training,01/09/2018,5000.00,General Fund,Case Study Search/ Instruction,CASE LIGHTHOUSE
Human Resources,Training,01/09/2018,7250.00,General Fund,Case Study Search/ Instruction,CASE LIGHTHOUSE
Human Resources,Training,01/09/2018,750.00,General Fund,Case Study Search/ Instruction,CASE LIGHTHOUSE
Human Resources,Training,01/09/2018,919.00,General Fund,Restore per colham 2018,CASE LIGHTHOUSE
Information Technology,Travel - auto expense,01/09/2018,23.01,General Fund,Personal Vehicle Usage,"PHILLIPS, BRIAN J"
Mayor and City Council,Meal expense,01/09/2018,358.50,General Fund,Legislative Breakfast meeting,BISCUITS & BERRIES
Municipal Court,Contractor services,01/09/2018,120.00,General Fund,2017 Interpreter,OLA PRECISE LANGUAGE SERVICES LLC
Non-Departmental,Other profess & tech services,01/09/2018,371.25,General Fund,Facilitation Services for City,JSE MEDIATION ASSOCIATES
Public Works,Building material supplies,01/09/2018,3372.88,General Fund,2017/2018 Squeegee Materials,"ALBERT FREI AND SONS, INC"
Public Works,Building material supplies,01/09/2018,1505.28,General Fund,2017/2018 Squeegee Materials,"ALBERT FREI AND SONS, INC"
Public Works,Building material supplies,01/09/2018,2872.78,General Fund,Ice Slicer,ENVIROTECH SERVICES INC
Public Works,Building material supplies,01/09/2018,2717.06,General Fund,Ice Slicer,ENVIROTECH SERVICES INC
Public Works,Building material supplies,01/09/2018,2665.87,General Fund,Ice Slicer,ENVIROTECH SERVICES INC
Public Works,Building material supplies,01/09/2018,2552.62,General Fund,Ice Slicer,ENVIROTECH SERVICES INC
Public Works,Building material supplies,01/09/2018,2822.69,General Fund,Ice Slicer,ENVIROTECH SERVICES INC
Public Works,Building material supplies,01/09/2018,2603.80,General Fund,Ice Slicer,ENVIROTECH SERVICES INC
Public Works,Building material supplies,01/09/2018,2615.78,General Fund,Ice Slicer,ENVIROTECH SERVICES INC
Public Works,Building material supplies,01/09/2018,2934.86,General Fund,Ice Slicer,ENVIROTECH SERVICES INC
Public Works,Building material supplies,01/09/2018,2946.83,General Fund,Ice Slicer,ENVIROTECH SERVICES INC
Public Works,Building material supplies,01/09/2018,2549.35,General Fund,Ice Slicer,ENVIROTECH SERVICES INC
Public Works,Building material supplies,01/09/2018,3880.40,General Fund,Liquid De-Icer Meltdown Apex,ENVIROTECH SERVICES INC
Public Works,Construc Costs-Streets/Roadway,01/09/2018,324.00,Capital Improvement Fund,Concrete Testing - Streets,A G WASSENAAR INC
Public Works,Construc Costs-Streets/Roadway,01/09/2018,1882.95,Capital Improvement Fund,2017 Car Rental,ENTERPRISE RENT-A-CAR
Public Works,Construc Costs-Streets/Roadway,01/09/2018,23348.88,Capital Improvement Fund,2017 Winter Concrete Repair,METRO PAVERS INC
Public Works,Construc Costs-Streets/Roadway,01/09/2018,118767.16,Capital Improvement Fund,2017 Winter Concrete Repair,METRO PAVERS INC
Public Works,Consulting,01/09/2018,223.00,General Fund,MATERIAL TESTING,A G WASSENAAR INC
Public Works,Gasoline,01/09/2018,15250.89,General Fund,Fuel Services,HILL PETROLEUM/HILL ENTERPRISES
Public Works,Gasoline,01/09/2018,11788.19,General Fund,Fuel Services,HILL PETROLEUM/HILL ENTERPRISES
Public Works,Gasoline,01/09/2018,12676.59,General Fund,Fuel Services,HILL PETROLEUM/HILL ENTERPRISES
Public Works,Gasoline,01/09/2018,14284.20,General Fund,Fuel Services,HILL PETROLEUM/HILL ENTERPRISES
Public Works,Repairs & maint-plant/system,01/09/2018,8603.73,Sewer Enterprise Fund,2017 Clean & Video Inspection,HYDRO PHYSICS PIPE INSPECTION SERVICES
Public Works,Repairs & maint-plant/system,01/09/2018,2502.50,Sewer Enterprise Fund,Bioxide - 2017 per sole source,EVOQUA WATER TECHNOLOGIES LLC
Public Works,Repairs & maint-plant/system,01/09/2018,182.09,Sewer Enterprise Fund,Bioxide - 2017 per sole source,EVOQUA WATER TECHNOLOGIES LLC
Public Works,Repairs & maint-plant/system,01/09/2018,4717.91,Sewer Enterprise Fund,Add'l Amount ok per KB,EVOQUA WATER TECHNOLOGIES LLC
Public Works,Travel - auto expense,01/09/2018,41.20,Stormwater Enterprise Fund,2017 OCT-DEC MILEAGE,"ROGERS, TERRY L"
Public Works,Travel - auto expense,01/09/2018,7.49,Sewer Enterprise Fund,2017 OCT-DEC MILEAGE,"ROGERS, TERRY L"
Public Works,Travel - auto expense,01/09/2018,10.27,General Fund,2017 NOV & DEC MILEAGE,"MATTHEWS, PATRICIA A"
Public Works,Travel - auto expense,01/09/2018,7.49,General Fund,2017 NOV & DEC MILEAGE,"MATTHEWS, PATRICIA A"
Public Works,Travel - other,01/09/2018,114.00,Capital Improvement Fund,Per Diem HA5 Presentation,"HARFST, BRIAN K"
Public Works,Travel - other,01/09/2018,114.00,Capital Improvement Fund,Per Diem HA5 Presentation,"BECK, KYLE G"
Public Works,Travel - other,01/09/2018,65.81,General Fund,2017 mileage reimbursement,"WHITEAKER, MICHAEL LAUREN"
City Manager,Dues and memberships,01/10/2018,18550.00,General Fund,Membership Dues,DO NOT USE-DRCOG
Community Resources,Cleaning & janitorial services,01/10/2018,150.00,General Fund,Stone House-Cleaning Ser as,RAINBOW MAINTENANCE SERVICES
Community Resources,Office supplies,01/10/2018,183.97,General Fund,R&F Deposit Slip Chg,First Bank EFT - Dep Slip Chg
Community Resources,Other profess & tech services,01/10/2018,3.75,"Heritage, Culture & Arts Fund",12/17 R&F CC Fees,Bank of America EFT
Community Resources,Other profess & tech services,01/10/2018,3.75,"Heritage, Culture & Arts Fund",12/17 R&F CC Fees,Bank of America EFT
Community Resources,Other profess & tech services,01/10/2018,3.75,"Heritage, Culture & Arts Fund",12/17 R&F CC Fees,Bank of America EFT
Community Resources,Other profess & tech services,01/10/2018,3.75,"Heritage, Culture & Arts Fund",12/17 R&F CC Fees,Bank of America EFT
Community Resources,Other profess & tech services,01/10/2018,199.60,"Heritage, Culture & Arts Fund",12/17 R&F CC Fees,Bank of America EFT
Community Resources,Other profess & tech services,01/10/2018,2719.93,General Fund,Head Start Food Services,MICHAEL'S OF DENVER
Community Resources,Other profess & tech services,01/10/2018,2719.93,General Fund,Head Start Food Services,MICHAEL'S OF DENVER
Community Resources,Other profess & tech services,01/10/2018,1099.60,Golf Course Enterprise Fund,Cleaning Services - FHGC,THE DEN AT FOX HOLLOW INC
Community Resources,Other profess & tech services,01/10/2018,955.64,Golf Course Enterprise Fund,Cleaning Services -Homestead,THE DEN AT FOX HOLLOW INC
Community Resources,Recreational supplies,01/10/2018,5887.50,General Fund,Technogym Skillmill,TECHNOGYM USA CORPORATION
Community Resources,Recreational supplies,01/10/2018,700.00,General Fund,Delivery and Install,TECHNOGYM USA CORPORATION
Community Resources,Travel - auto expense,01/10/2018,27.80,General Fund,2017 MILEAGE DURAN 12/17,"DURAN, SAVANNAH APRYLL"
Community Resources,Water,01/10/2018,25.28,General Fund,2017 4751 S KIPLING ST,DENVER WATER DEPARTMENT
Community Resources,Water,01/10/2018,11.86,General Fund,2017 7001 W STANFORD AVE,DENVER WATER DEPARTMENT
Community Resources,Water,01/10/2018,31.28,Open Space Fund,2017 3250 S CARR ST,DENVER WATER DEPARTMENT
Community Resources,Water,01/10/2018,45.35,General Fund,2017 9600 W DARTMOUTH PL,DENVER WATER DEPARTMENT
Community Resources,Water,01/10/2018,31.28,General Fund,2017 3350 S KIPLING ST,DENVER WATER DEPARTMENT
Community Resources,Water,01/10/2018,31.28,Open Space Fund,2017 3333 S FIELD ST,DENVER WATER DEPARTMENT
Community Resources,Water,01/10/2018,21.13,General Fund,2017 9150 W CORNELL PL,DENVER WATER DEPARTMENT
Community Resources,Water,01/10/2018,131.23,General Fund,2017 11500 w hampden ave,DENVER WATER DEPARTMENT
Community Resources,Water,01/10/2018,45.81,General Fund,2017 11498 W HAMPDEN AVE,DENVER WATER DEPARTMENT
Community Resources,Water,01/10/2018,43.60,General Fund,400 WADSWIORTH BLVD,CONSOLIDATED MUTUAL WATER
Community Resources,Water,01/10/2018,39.00,General Fund,2017400 WADSWORTH BLVD,CONSOLIDATED MUTUAL WATER
Community Resources,Water,01/10/2018,136.50,General Fund,2017 345 GRAY ST,CONSOLIDATED MUTUAL WATER
Community Resources,Water,01/10/2018,91.50,General Fund,8601 W 2ND AVE,CONSOLIDATED MUTUAL WATER
Community Resources,Water,01/10/2018,54.00,General Fund,2017 290 HOLLAND ST,CONSOLIDATED MUTUAL WATER
Community Resources,Water,01/10/2018,109.00,Open Space Fund,601 S GARRISON ST,CONSOLIDATED MUTUAL WATER
Finance,Other profess & tech services,01/10/2018,1355.64,General Fund,Lock Box Services  Per,"UMB BANK, N.A."
Mayor and City Council,Dues and memberships,01/10/2018,12405.76,General Fund,Membership dues,CIVIC RESULTS
Planning,Consulting,01/10/2018,7095.00,Grants Fund (Oper & Capital),Amendment 1 - Corrected,HISTORY MATTERS LLC
Planning,Consulting,01/10/2018,1275.00,General Fund,General Provisions Apply,INSIT LLC
Police,Contractor services,01/10/2018,129445.56,General Fund,ANNUALASSESSDEBTSERVICE2018,JEFFERSON COUNTY TREASURER
Police,Other services,01/10/2018,111.20,General Fund,2017 -Nov. prisoner transports,COLORADO LABORATORY SERVICES
Public Works,Construc Costs-Streets/Roadway,01/10/2018,21779.24,Capital Improvement Fund,Cracksealing Program,"PRECISE STRIPING, LLC"
Public Works,Contractor services,01/10/2018,25105.00,General Fund,Annual Snowplowing Services,SCHULTZ INDUSTRIES INC
Public Works,Contractor services,01/10/2018,10993.50,General Fund,Annual Snowplowing Services,SCHULTZ INDUSTRIES INC
City Clerk,Other profess & tech services,01/11/2018,12.50,General Fund,Tamper Bags,ARMORED KNIGHTS INC
City Manager,Office furn & equip-non cap,01/11/2018,706.20,Equipment Replacement Fund,Control Room Conference Table,"CONTRACT FURNISHINGS, INC."
City Manager,Office furn & equip-non cap,01/11/2018,200.00,Equipment Replacement Fund,Receive and Install,"CONTRACT FURNISHINGS, INC."
City Manager,Other profess & tech services,01/11/2018,5000.00,General Fund,Annual Subscription,CANTO SOFTWARE INC
City Manager,Postage & delivery,01/11/2018,12646.01,General Fund,L@L Postage,US POSTMASTER
Community Resources,Cleaning & janitorial services,01/11/2018,60.00,General Fund,Additional Funds per,RAINBOW MAINTENANCE SERVICES
Community Resources,Cleaning & janitorial services,01/11/2018,120.00,General Fund,Additional Funds per,RAINBOW MAINTENANCE SERVICES
Community Resources,Construc Costs-Site Improve,01/11/2018,30556.44,Open Space Fund,Sutherland Shire Park Main,JL MELTON CONSTRUCTION
Community Resources,Consulting Costs-Site Improve,01/11/2018,1440.00,Open Space Fund,Lasley Park Civil Engineering,MULLER ENGINEERING CO INC
Community Resources,Consulting services-Bldg Const,01/11/2018,9150.00,Capital Improvement Fund,ARCHITECTUAL SERVICES,2WR OF COLORADO INC
Community Resources,Contractor services,01/11/2018,2747.50,General Fund,"Telemetry System Equipment,",LEONARD RICE ENGINEERS INC
Community Resources,Office furniture & equipment,01/11/2018,3714.68,General Fund,2017 PD Benching,"CONTRACT FURNISHINGS, INC."
Community Resources,Other profess & tech services,01/11/2018,55.00,"Heritage, Culture & Arts Fund",FIGURE DRAWING MODEL FEE,GEORGE YANTZ
Community Resources,Other profess & tech services,01/11/2018,55.00,"Heritage, Culture & Arts Fund",FIGURE DRAWING MODEL FEE,TARAMARIA GABRIEL LUNSFORD
Community Resources,Other profess & tech services,01/11/2018,1688.40,"Heritage, Culture & Arts Fund",2017 DECEMBER TICKETING,ACCESSO SHOWARE
Community Resources,Other profess & tech services,01/11/2018,55.00,"Heritage, Culture & Arts Fund",Lakewood Hertiage Center,ARMORED KNIGHTS INC
Community Resources,Other profess & tech services,01/11/2018,55.00,"Heritage, Culture & Arts Fund",Washington Heights,ARMORED KNIGHTS INC
Community Resources,Other profess & tech services,01/11/2018,162.50,General Fund,Link Recreation Center,ARMORED KNIGHTS INC
Community Resources,Other profess & tech services,01/11/2018,162.50,General Fund,Green Mountain Recreation Ctr,ARMORED KNIGHTS INC
Community Resources,Other profess & tech services,01/11/2018,162.50,General Fund,Carmody Recreation Ctr,ARMORED KNIGHTS INC
Community Resources,Other profess & tech services,01/11/2018,162.50,General Fund,Charles Whitlock Rec Ctr,ARMORED KNIGHTS INC
Community Resources,Other profess & tech services,01/11/2018,55.00,General Fund,Clements Community Ctr,ARMORED KNIGHTS INC
Community Resources,Other profess & tech services,01/11/2018,380.00,Golf Course Enterprise Fund,Fox Hollow Golf Course,ARMORED KNIGHTS INC
Community Resources,Other profess & tech services,01/11/2018,380.00,Golf Course Enterprise Fund,Homestead Golf Course,ARMORED KNIGHTS INC
Community Resources,Other profess & tech services,01/11/2018,162.50,General Fund,Wilbur Rogers Ctr,ARMORED KNIGHTS INC
Community Resources,Other profess & tech services,01/11/2018,108.75,General Fund,Bear Creek Lake park,ARMORED KNIGHTS INC
Community Resources,Other property services,01/11/2018,2562.00,General Fund,2017 AQ TESTS,PALACE CONSTRUCTION CO INC
Community Resources,Travel - auto expense,01/11/2018,46.28,General Fund,2017 MILEAGE REIMB 12/1-12/31,"COOPER, WILLIAM L"
Finance,Travel - auto expense,01/11/2018,56.71,General Fund,2017-Mileage Reimbursement,"VU, THUXUAN THI"
Information Technology,Computer software & supplies,01/11/2018,24682.00,General Fund,2017 Commvault Renewal,LEWAN & ASSOCIATES
Information Technology,Other profess & tech services,01/11/2018,10000.00,General Fund,Project Kickoff,PERICLE COMMUNICATIONS COMPANY
Information Technology,Other profess & tech services,01/11/2018,330.87,General Fund,Professional Services,JOSEPH LAW FIRM PC
Information Technology,Repairs & maint - equipment,01/11/2018,6106.82,General Fund,Aruba Maintenance,VLCM
Information Technology,Telecommunications,01/11/2018,2508.18,General Fund,Internet & Circuit Lines,LEVEL 3 COMMUNICATIONS LLC
Information Technology,Telecommunications,01/11/2018,250.00,General Fund,November 2017,JEFFERSON COUNTY
Municipal Court,Other profess & tech services,01/11/2018,12.50,General Fund,Tamper Bags,ARMORED KNIGHTS INC
Municipal Court,Travel - auto expense,01/11/2018,22.04,General Fund,2017 Mileage Reimbursement AS,"SMITH, AUDREY J"
Planning,Office supplies,01/11/2018,5393.43,General Fund,Office Furniture,"CONTRACT FURNISHINGS, INC."
Planning,Office supplies,01/11/2018,650.00,General Fund,Delviery and Install,"CONTRACT FURNISHINGS, INC."
Planning,Office supplies,01/11/2018,75.00,General Fund,Freight,"CONTRACT FURNISHINGS, INC."
Planning,Office supplies,01/11/2018,888.84,General Fund,Office Furniture for Error,"CONTRACT FURNISHINGS, INC."
Police,Cleaning & janitorial services,01/11/2018,6244.00,General Fund,Custodial Services Per RFP,CARNATION BUILDING SERVICE INC
Police,Computer software & supplies,01/11/2018,2250.00,General Fund,6-MONTH WARRANTY,LINEAR SYSTEMS INC
Police,Other profess & tech services,01/11/2018,271.25,General Fund,Civic Center/Finance,ARMORED KNIGHTS INC
Police,Other profess & tech services,01/11/2018,12.50,General Fund,Tamper Bags,ARMORED KNIGHTS INC
Public Works,Construc Costs-Traffic Signals,01/11/2018,431079.20,Grants Fund (Oper & Capital),Video Imaging & Radar Vehicle,GADES SALES COMPANY
Public Works,Construc Costs-Traffic Signals,01/11/2018,32812.50,Grants Fund (Oper & Capital),Ethernet Communication Modules,GADES SALES COMPANY
Public Works,Electricity-traffic signals,01/11/2018,290.68,General Fund,2017 Electricity,XCEL ENERGY
Public Works,Office supplies,01/11/2018,3.61,Water Enterprise Fund,Office Supplies,"BAIRD, JENNIFER GRACE"
Public Works,Office supplies,01/11/2018,36.82,Sewer Enterprise Fund,Office Supplies,"BAIRD, JENNIFER GRACE"
Public Works,Office supplies,01/11/2018,31.77,Stormwater Enterprise Fund,Office Supplies,"BAIRD, JENNIFER GRACE"
Public Works,Other profess & tech services,01/11/2018,12.50,General Fund,Tamper Bags,ARMORED KNIGHTS INC
Community Resources,Other profess & tech services,01/12/2018,4968.56,Golf Course Enterprise Fund,tree work on #17 at fox hollow,LUMBER BEE TREE & LAWN CARE LLC
City Attorney,Legal - general,01/16/2018,23680.00,General Fund,12/17 City Attorney Services,Michow Cox & McAskin EFT
City Attorney,Legal - general,01/16/2018,6980.83,General Fund,12/17 City Attorney Admin,Michow Cox & McAskin EFT
Community Resources,Contractor services,01/16/2018,651.00,General Fund,maintenance fee,POO FREE PARKS
Community Resources,Contractor services,01/16/2018,252.00,Open Space Fund,2017 snow plowing,ARROWHEAD WINTER SERVICES
Community Resources,Other profess & tech services,01/16/2018,210.00,General Fund,maintenance fee,POO FREE PARKS
Community Resources,Other profess & tech services,01/16/2018,2850.00,"Heritage, Culture & Arts Fund",ARTIST FEE-GULLIVER'S TRAVELS,MCT INC - MISSOULA CHILDREN'S THEATRE
Community Resources,Sanitation,01/16/2018,93.20,General Fund,1325 WELCH ST,DANIELS SANITATION DISTRICT
Community Resources,Sanitation,01/16/2018,261.80,General Fund,PARFET ADMIN,DANIELS SANITATION DISTRICT
Community Resources,Sanitation,01/16/2018,2631.20,General Fund,1060 QUAIL ST,DANIELS SANITATION DISTRICT
Community Resources,Sanitation,01/16/2018,191.80,General Fund,1050 QUAIL ST,DANIELS SANITATION DISTRICT
Community Resources,Sanitation,01/16/2018,55.90,General Fund,1301 UNION ST,DANIELS SANITATION DISTRICT
Community Resources,Sanitation,01/16/2018,103.85,General Fund,870 PARFET ST,DANIELS SANITATION DISTRICT
Community Resources,Travel - auto expense,01/16/2018,17.12,General Fund,2017 mileage reimb 12/1-12/31,"GAVINSKI, ERIC MICHAEL"
Community Resources,Water,01/16/2018,45.35,General Fund,2017 8480 W VASSAR DR,DENVER WATER DEPARTMENT
Community Resources,Water,01/16/2018,17.86,General Fund,2017 2900 S ESTES ST,DENVER WATER DEPARTMENT
Community Resources,Water,01/16/2018,28.93,General Fund,2017 2775 S ESTES ST,DENVER WATER DEPARTMENT
Community Resources,Water,01/16/2018,68.31,General Fund,2017 2805 S ESTES ST,DENVER WATER DEPARTMENT
Community Resources,Water,01/16/2018,17.86,General Fund,2017 9556 W YALE AVE,DENVER WATER DEPARTMENT
Community Resources,Water,01/16/2018,17.86,Golf Course Enterprise Fund,2017 13412 W MORRISON RD,DENVER WATER DEPARTMENT
Community Resources,Water,01/16/2018,39.96,Golf Course Enterprise Fund,2017 13414 W MORRISON RD,DENVER WATER DEPARTMENT
Community Resources,Water,01/16/2018,135.13,Golf Course Enterprise Fund,2017 13410 W MORRISON RD,DENVER WATER DEPARTMENT
Community Resources,Water,01/16/2018,31.28,Open Space Fund,2017 9400 W MORRISON RD,DENVER WATER DEPARTMENT
Community Resources,Water,01/16/2018,31.28,General Fund,2017 2800 S ESTES ST,DENVER WATER DEPARTMENT
Community Resources,Water,01/16/2018,31.50,General Fund,6927 W 1ST AVE,CONSOLIDATED MUTUAL WATER
Community Resources,Water,01/16/2018,31.50,General Fund,2017 301 JAY ST,CONSOLIDATED MUTUAL WATER
Community Resources,Water,01/16/2018,31.50,General Fund,2017 235 JAY ST,CONSOLIDATED MUTUAL WATER
Community Resources,Water,01/16/2018,31.50,General Fund,2017 6285 W 1ST AVE,CONSOLIDATED MUTUAL WATER
Community Resources,Water,01/16/2018,31.50,General Fund,2017 6295 W 1ST AVE,CONSOLIDATED MUTUAL WATER
Community Resources,Water,01/16/2018,100.50,General Fund,2017 6375 W 1ST AVE,CONSOLIDATED MUTUAL WATER
Community Resources,Water,01/16/2018,31.50,General Fund,2017 6795 W 1ST AVE,CONSOLIDATED MUTUAL WATER
Community Resources,Water,01/16/2018,31.50,General Fund,2017 MEADOWLARK COTT 85200,CONSOLIDATED MUTUAL WATER
Community Resources,Water,01/16/2018,31.50,General Fund,2017 MEADOWLARK COTT 85200,CONSOLIDATED MUTUAL WATER
Community Resources,Water,01/16/2018,39.00,General Fund,2017 6647 W ALAMEDA AVE,CONSOLIDATED MUTUAL WATER
Community Resources,Water,01/16/2018,39.00,General Fund,2017 5823 W ALAMEDA AVE,CONSOLIDATED MUTUAL WATER
Community Resources,Water,01/16/2018,77.00,General Fund,2017 7101 W 1ST AVE,CONSOLIDATED MUTUAL WATER
Community Resources,Water,01/16/2018,136.50,General Fund,2017 6375 W 1ST AVE,CONSOLIDATED MUTUAL WATER
Community Resources,Water,01/16/2018,39.00,Open Space Fund,2017 6907 W 1ST AVE,CONSOLIDATED MUTUAL WATER
Public Works,Construc Costs-Street Lights,01/16/2018,2369.75,General Fund,,XCEL ENERGY
Public Works,Dues and memberships,01/16/2018,64021.00,General Fund,2018 FUNDING ALLOCATIONS,ROONEY ROAD RECYCLING CENTER AUTHORITY
Public Works,Electricity,01/16/2018,137400.77,General Fund,Electricity and repairs,XCEL ENERGY
Public Works,Electricity,01/16/2018,31.46,Sewer Enterprise Fund,Electricity Depew St.,XCEL ENERGY
Public Works,Electricity-traffic signals,01/16/2018,2688.89,General Fund,Electricity,XCEL ENERGY
Public Works,Electricity-traffic signals,01/16/2018,55.90,General Fund,Electricity,XCEL ENERGY
Public Works,Misc expenses,01/16/2018,250.00,General Fund,CDL Testing,JEFFCO TRAINING DEPARTMENT
Public Works,Other Charges-Traffic Signals,01/16/2018,381.00,Capital Improvement Fund,MATERIAL TESTING,A G WASSENAAR INC
Public Works,Repairs & maint-plant/system,01/16/2018,165262.68,General Fund,Electricity and repairs,XCEL ENERGY
City Attorney,Dues and memberships,01/17/2018,190.00,General Fund,2018 Bar Dues,"SCHENCK, AUGUSTUS LEE"
City Attorney,Dues and memberships,01/17/2018,325.00,General Fund,2018 Bar Dues,"STANEK, LAUREN E"
City Attorney,Legal - outside,01/17/2018,365.50,General Fund,Admin Hrng,HOFFMANN PARKER WILSON & CARBERRY PC
City Attorney,Legal - outside,01/17/2018,180.00,General Fund,Armstrong Trust,HOFFMANN PARKER WILSON & CARBERRY PC
City Attorney,Legal - outside,01/17/2018,7020.03,General Fund,Furniture Row Appeal,HOFFMANN PARKER WILSON & CARBERRY PC
City Attorney,Legal - outside,01/17/2018,907.50,General Fund,EW GP Assoc Condemnation,HOFFMANN PARKER WILSON & CARBERRY PC
City Attorney,Legal - outside,01/17/2018,248.00,General Fund,2017/Comcast Appl /Verizon ROW,KISSINGER & FELLMAN PC
City Manager,Dues and memberships,01/17/2018,20000.00,Economic Development Fund,Membership,JEFFERSON CTY ECONOMIC DEV. CORPORATION
City Manager,Dues and memberships,01/17/2018,10000.00,Economic Development Fund,Membership,JEFFERSON COUNTY BUSINESS RESOURCE CENTE
Community Resources,Chem. & lab. supplies,01/17/2018,230.94,General Fund,AQUATICS SUPPLIES,THE AQUEOUS SOLUTION INC.
Community Resources,Chem. & lab. supplies,01/17/2018,1516.20,General Fund,AQUATICS SUPPLIES,THE AQUEOUS SOLUTION INC.
Community Resources,Chem. & lab. supplies,01/17/2018,262.80,General Fund,AQUATICS SUPPLIES,THE AQUEOUS SOLUTION INC.
Community Resources,Chem. & lab. supplies,01/17/2018,351.30,General Fund,AQUATICS SUPPLIES,THE AQUEOUS SOLUTION INC.
Community Resources,Cleaning & janitorial services,01/17/2018,300.00,General Fund,110 S CODY CLEANING SERVICES,RAINBOW MAINTENANCE SERVICES
Community Resources,Consulting,01/17/2018,100.00,Grants Fund (Oper & Capital),2018 Stretchngrow 1/18,STRETCH-N-GROW OF LARIMER & BOULDER
Community Resources,Contractor services,01/17/2018,430.00,General Fund,Power Sweeping -Garage& Drive,CAM SERVICES
Community Resources,Other profess & tech services,01/17/2018,350.00,General Fund,Saturday Band for 2/10/18-CCC,STEPHEN T PATTERSON
Community Resources,Other profess & tech services,01/17/2018,395.00,General Fund,Saturday Band for 2/17/18-CCC,TOM ALLAN GRENGS
Community Resources,Other profess & tech services,01/17/2018,375.00,General Fund,Saturday Band for 2/24/18-CCC,TERRY NORONA
Community Resources,Other profess & tech services,01/17/2018,2000.00,General Fund,weld sign posts,EDWARD MICHAEL ONKEN
Community Resources,Other profess & tech services,01/17/2018,1288.00,General Fund,Basketball Officials Agr #3706,"AURORA SPORTS OFFICIALS, INC."
Community Resources,Other profess & tech services,01/17/2018,150.00,General Fund,2018 Stretchngrow 1/18,STRETCH-N-GROW OF LARIMER & BOULDER
Community Resources,Other profess & tech services,01/17/2018,8.40,General Fund,2018 BIU FOR JAM,COLORADO DEPARTMENT OF HUMAN SERVICES
Community Resources,Other profess & tech services,01/17/2018,235.50,Open Space Fund,BCLP CLEANING,RAINBOW MAINTENANCE SERVICES
Community Resources,Other services,01/17/2018,19.60,Grants Fund (Oper & Capital),2018 BIU FOR JAM,COLORADO DEPARTMENT OF HUMAN SERVICES
Community Resources,Other small tools & equipment,01/17/2018,76.03,Golf Course Enterprise Fund,FOX HOLLOW KITCHEN REPAIR,THE DEN AT FOX HOLLOW INC
Community Resources,Rent - land & buildings,01/17/2018,3607.50,General Fund,2017 Daycare 12/17,JEFFERSON COUNTY SCHOOL DISTRICT R-1
Community Resources,Training,01/17/2018,1000.00,Grants Fund (Oper & Capital),2018 Pyramid Plus AC,"CONKLIN, ANNE L"
Community Resources,Training,01/17/2018,333.33,General Fund,2018 Pyramid Plus AC,"CONKLIN, ANNE L"
Finance,Other profess & tech services,01/17/2018,5147.30,General Fund,Investment Management Services,CHANDLER ASSET MANAGEMENT  INC
Information Technology,Other profess & tech services,01/17/2018,7500.00,General Fund,JDEdwards Managed Services,DENOVO
Information Technology,Other profess & tech services,01/17/2018,-3750.00,General Fund,JDEdwards Managed Services,DENOVO
Information Technology,Other profess & tech services,01/17/2018,429.00,General Fund,Consulting Staff Augmentation,DENOVO
Information Technology,Repairs & maint - equipment,01/17/2018,1200.00,General Fund,Kemp Load Balancer Renewal,LEWAN & ASSOCIATES
Information Technology,Repairs & maint - equipment,01/17/2018,1152.00,General Fund,Conference Room PC (Qty 2),LEWAN & ASSOCIATES
Information Technology,Repairs & maint - equipment,01/17/2018,3634.00,General Fund,Conference Room PC (Qty 2),LEWAN & ASSOCIATES
Information Technology,Travel - auto expense,01/17/2018,136.02,General Fund,TR# 15047,"KUDZME, OLGA"
Information Technology,Travel - auto expense,01/17/2018,155.36,General Fund,TR# 15049,"THEMIG, RYAN K"
Information Technology,Travel - auto expense,01/17/2018,116.09,General Fund,TR # 15048,"PEREIRO, MICHAEL DAVID"
Municipal Court,Other profess & tech services,01/17/2018,591.50,General Fund,Add'l amount -Alt Legal Counse,GOLDEN LEGAL CLINIC
Planning,Consulting,01/17/2018,2850.00,General Fund,Recycling Outreach Consultant,EVOLUTION AGENCY LLC
Police,Other profess & tech services,01/17/2018,1990.00,General Fund,2017 - December '17 transports,JEFFERSON COUNTY SHERIFF'S OFFICE
Police,Repair & maintenance supplies,01/17/2018,273.33,General Fund,Custodial Services for,RAINBOW MAINTENANCE SERVICES
Public Works,Construc Costs-Sewer Lines,01/17/2018,5119.80,Sewer Enterprise Fund,2017 CIPP Engineering Services,KENNEDY / JENKS CONSULTANTS INC
Public Works,Construc Costs-Sewer Lines,01/17/2018,4144.26,Sewer Enterprise Fund,2017 CIPP Engineering Services,KENNEDY / JENKS CONSULTANTS INC
Public Works,Consulting,01/17/2018,329.50,Stormwater Enterprise Fund,2017 TESTING AT SHOOTING RANGE,SGS ACCUTEST INC
Public Works,Contractor services,01/17/2018,675.00,Stormwater Enterprise Fund,2017 Mowing/Trimming Services,GROUNDS SERVICE COMPANY
Public Works,Electricity,01/17/2018,10.97,Sewer Enterprise Fund,Electricity Kendall St.,XCEL ENERGY
City Clerk,Office furn & equip-non cap,01/18/2018,3955.00,General Fund,Activate Treadmill,ADVANCED EXERCISE EQUIPMENT INC
City Clerk,Office furn & equip-non cap,01/18/2018,1826.30,General Fund,Activate Lifecycle Bike,ADVANCED EXERCISE EQUIPMENT INC
City Clerk,Office furn & equip-non cap,01/18/2018,693.00,General Fund,"Freight, Delivery & Install",ADVANCED EXERCISE EQUIPMENT INC
Community Resources,Other profess & tech services,01/18/2018,23.40,General Fund,2017-Computer Instruction-CCC,SHAWN WINCHESTER
Community Resources,Other profess & tech services,01/18/2018,55.00,"Heritage, Culture & Arts Fund",Lakewood Hertiage Center,ARMORED KNIGHTS INC
Community Resources,Other profess & tech services,01/18/2018,55.00,"Heritage, Culture & Arts Fund",Washington Heights,ARMORED KNIGHTS INC
Community Resources,Other profess & tech services,01/18/2018,162.50,General Fund,Link Recreation Center,ARMORED KNIGHTS INC
Community Resources,Other profess & tech services,01/18/2018,162.50,General Fund,Green Mountain Recreation Ctr,ARMORED KNIGHTS INC
Community Resources,Other profess & tech services,01/18/2018,162.50,General Fund,Carmody Recreation Ctr,ARMORED KNIGHTS INC
Community Resources,Other profess & tech services,01/18/2018,162.50,General Fund,Charles Whitlock Rec Ctr,ARMORED KNIGHTS INC
Community Resources,Other profess & tech services,01/18/2018,55.00,General Fund,Clements Community Ctr,ARMORED KNIGHTS INC
Community Resources,Other profess & tech services,01/18/2018,380.00,Golf Course Enterprise Fund,Fox Hollow Golf Course,ARMORED KNIGHTS INC
Community Resources,Other profess & tech services,01/18/2018,380.00,Golf Course Enterprise Fund,Homestead Golf Course,ARMORED KNIGHTS INC
Community Resources,Other profess & tech services,01/18/2018,162.50,General Fund,Wilbur Rogers Ctr,ARMORED KNIGHTS INC
Community Resources,Other profess & tech services,01/18/2018,108.75,General Fund,Bear Creek Lake park,ARMORED KNIGHTS INC
Finance,Other profess & tech services,01/18/2018,250.00,General Fund,Bags 9 x 12,ARMORED KNIGHTS INC
Human Resources,Other profess & tech services,01/18/2018,44768.60,General Fund,ER Room Furniture,"CONTRACT FURNISHINGS, INC."
Information Technology,Office supplies,01/18/2018,139.60,General Fund,Printhead Replacements,UNITED REPROGRAPHIC SU
Planning,Consulting,01/18/2018,2050.00,General Fund,Downtown Lakewood Identity,INHERENT CHARACTER LLC
Police,Dues and memberships,01/18/2018,1750.00,General Fund,IACP Net Service Access,INTERNATIONAL ASSOCIATION OF CHIEFS OF
Police,Other profess & tech services,01/18/2018,271.25,General Fund,Civic Center/Finance,ARMORED KNIGHTS INC
Police,Other profess & tech services,01/18/2018,669566.00,General Fund,1st Qtr Member Agency Cont.,JEFFERSON COUNTY COMMUNICATIONS CENTER
Police,Towing,01/18/2018,120.00,General Fund,REIMBURSEMENT FOR IMPOUND FEES,VICTORIA CONNOLLY
Public Works,Engineering & constructn equip,01/18/2018,17828.50,Stormwater Enterprise Fund,2018 Ford Transit Van,AUTONATION FORD LITTLETON
Public Works,Engineering & constructn equip,01/18/2018,17828.50,Sewer Enterprise Fund,2018 Ford Transit Van,AUTONATION FORD LITTLETON
City Attorney,Books & Publications,01/19/2018,363.89,General Fund,2017 West Law Use Oct,THOMSON WEST TCD
City Attorney,Books & Publications,01/19/2018,363.89,General Fund,2017 West Law Use Nov,THOMSON WEST TCD
City Attorney,Books & Publications,01/19/2018,363.89,General Fund,2017 West Law Use Nov,THOMSON WEST TCD
City Attorney,Books & Publications,01/19/2018,363.89,General Fund,2017 West Law Use Oct,THOMSON WEST TCD
City Attorney,Employee Benefits,01/19/2018,9027.00,General Fund,General Fund,Employee Benefits
City Attorney,Legal - outside,01/19/2018,640.00,General Fund,Zoning Regs,FAIRFIELD AND WOODS OPERA
City Attorney,Office supplies,01/19/2018,105.81,General Fund,"Pens, Napkins, plates, cutlery",OFFICE DEPOT #1080
City Attorney,Other services,01/19/2018,13.36,General Fund,ICCES Filing Fees,CO.GOV SUB-WF
City Attorney,Salaries and Wages,01/19/2018,35830.38,General Fund,General Fund,Salaries and Wages
City Attorney,Telecommunications,01/19/2018,42.00,General Fund,City Cell Phones  11-9-17 to 1,ATT ADV SOLS
City Clerk,Books & Publications,01/19/2018,299.95,General Fund,DENVER POST SUBSCRIPTION,DE NWSPPR AGY ADV ADMARK
City Clerk,Books & Publications,01/19/2018,21.50,General Fund,ELECTION BOOK,COLORADO MUNICIPAL LEAGUE
City Clerk,Consulting,01/19/2018,588.50,General Fund,CBI Civil ID Fingerprint proce,CO DEPT OF PUBLIC
City Clerk,Contractor services,01/19/2018,25.00,General Fund,SAVE PROGRAM,BURLINGTON FINANCE CENTER
City Clerk,Contractor services,01/19/2018,25.02,General Fund,SAVE PROGRAM,BURLINGTON FINANCE CENTER
City Clerk,Employee Benefits,01/19/2018,7204.69,General Fund,General Fund,Employee Benefits
City Clerk,Legal publications,01/19/2018,624.52,General Fund,2017 LEGAL AND ORDINANCE PUBLI,DE NWSPPR AGY ADV ADMARK
City Clerk,Meal expense,01/19/2018,33.22,General Fund,STAFF WORKING LUNCH,PIZZA HUT 485308748535
City Clerk,Misc expenses,01/19/2018,-60.00,General Fund,Shelter Refund,LAKEWOOD P-CARD
City Clerk,Misc expenses,01/19/2018,50.00,General Fund,GIFT CARDS,KING SOOPERS #0127
City Clerk,Office supplies,01/19/2018,19.57,General Fund,"OFFICE SUPPLIES LABELS, PAPER",OFFICE DEPOT #1080
City Clerk,Office supplies,01/19/2018,28.54,General Fund,OFFICE SUPPLIES 2018 CALENDARS,OFFICE DEPOT #1080
City Clerk,Office supplies,01/19/2018,6.39,General Fund,WALL HEIGHT MEASURE FOR PASSPO,AMAZON.COM
City Clerk,Office supplies,01/19/2018,44.00,General Fund,COFFEE MACHINE RENTAL,ROCKY MOUNTAIN BOTTLED WA
City Clerk,Other profess & tech services,01/19/2018,1000.00,General Fund,BUILDING WORKFLOWS AND FORMS,"IN  S CORPORATION, INC."
City Clerk,Salaries and Wages,01/19/2018,25630.72,General Fund,General Fund,Salaries and Wages
City Clerk,Sanitation,01/19/2018,475.00,General Fund,PO 7762 Inv 55671 City Wide Se,PAYPAL INC
City Clerk,Sanitation,01/19/2018,145.00,General Fund,PO 7762 Inv 55966 City Wide Se,PAYPAL INC
City Clerk,Telecommunications,01/19/2018,136.78,General Fund,City Cell Phones  11-9-17 to 1,ATT ADV SOLS
City Clerk,Training,01/19/2018,485.00,General Fund,IIMC ANNUAL CONFERENCE,INT'L INST OF MUNI CLE
City Clerk,Training,01/19/2018,779.00,General Fund,IIMC ANNUAL CONFERENCE,INT'L INST OF MUNI CLE
City Manager,Books & Publications,01/19/2018,2.99,General Fund,Storage per IT (auto billed; n,APL  ITUNES.COM/BILL
City Manager,Books & Publications,01/19/2018,7.50,General Fund,Publication (auto billed; no r,NY TIMES NATL SALES
City Manager,Books & Publications,01/19/2018,32.99,General Fund,Auto billed (no receipt),WSJ COM OR BARRONS.COM
City Manager,Books & Publications,01/19/2018,134.40,General Fund,AP Stylebook,APSTYLEBOOK.COM
City Manager,Computer equipment-non cap,01/19/2018,45.44,General Fund,Keyboard and mouse,B & H PHOTO-VIDEO-MO/T
City Manager,Computer software & supplies,01/19/2018,11.24,General Fund,1x License for screen recordin,RMGPA.ORG
City Manager,Computer software & supplies,01/19/2018,19.00,General Fund,Monthly subscription for motio,MOTIONARRAY.COM LEGACY
City Manager,Dues and memberships,01/19/2018,400.00,Economic Development Fund,CDFA - Membership,COUNCIL OF DEVELOPMENT FI
City Manager,Dues and memberships,01/19/2018,540.00,General Fund,WFC membership,WOMEN'S FORUM OF COLORADO INC
City Manager,Dues and memberships,01/19/2018,7650.00,General Fund,Membership dues,THE INNOVATION GROUPS
City Manager,Dues and memberships,01/19/2018,100.00,General Fund,ULI Membership,URBAN LAND INSTITUTE
City Manager,Dues and memberships,01/19/2018,100.00,Economic Development Fund,ULI Membership,URBAN LAND INSTITUTE
City Manager,Employee Benefits,01/19/2018,3218.68,Economic Development Fund,Economic Development Fund,Employee Benefits
City Manager,Employee Benefits,01/19/2018,15357.69,General Fund,General Fund,Employee Benefits
City Manager,Meal expense,01/19/2018,462.00,General Fund,Holiday luncheon,THE DEN AT FOX HOLLOW
City Manager,Meal expense,01/19/2018,22.47,Economic Development Fund,ED - Chamber Retreat,KING SOOPERS #0127
City Manager,Meal expense,01/19/2018,291.26,Economic Development Fund,ED - Chamber Retreat,PANERA BREAD #3075
City Manager,Meal expense,01/19/2018,4.73,Economic Development Fund,ED - Jeffco EDC Mtg,KING SOOPERS #0127
City Manager,Meal expense,01/19/2018,18.01,Economic Development Fund,ED - EPS mtg,NOODLES & CO 112
City Manager,Meal expense,01/19/2018,54.97,Economic Development Fund,ED - EMP,240 UNION
City Manager,Meal expense,01/19/2018,85.17,Economic Development Fund,ED - Team Mtg,PINCHE TACO
City Manager,Meal expense,01/19/2018,74.85,General Fund,Sponsorship presentation for 2,PF CHANGS #9979
City Manager,Meal expense,01/19/2018,64.98,General Fund,meeting food,KING SOOPERS #0127
City Manager,Meal expense,01/19/2018,45.51,General Fund,Internal communications,BAR LOUIE LAKEWOOD
City Manager,Meal expense,01/19/2018,86.45,General Fund,Mtg w/ CMs,240 UNION
City Manager,Meal expense,01/19/2018,134.87,General Fund,Jeffco CM Mtg,SHERATON DENVER WEST
City Manager,Meal expense,01/19/2018,5.28,Economic Development Fund,ED - City Center Mtg,IHOP 3519
City Manager,Office furniture & equipment,01/19/2018,13670.98,General Fund,Xante press and training - Pri,"RICOH USA, INC"
City Manager,Office supplies,01/19/2018,18.46,General Fund,restock inventory,MICHAELS #2104
City Manager,Office supplies,01/19/2018,28.63,General Fund,restock inventory,SOURCE MANAGEMENT INC
City Manager,Office supplies,01/19/2018,29.00,General Fund,restock inventory,PEPPERDINES MARKING
City Manager,Office supplies,01/19/2018,56.49,General Fund,restock inventory,SOURCE MANAGEMENT INC
City Manager,Office supplies,01/19/2018,7.18,General Fund,"MARKER,DRYERASE,LO,FINE,BK - 1",SOURCE MANAGEMENT INC
City Manager,Office supplies,01/19/2018,26.69,General Fund,restock inventory,STAPLES
City Manager,Office supplies,01/19/2018,109.16,General Fund,restock inventory,SOURCE MANAGEMENT INC
City Manager,Office supplies,01/19/2018,24.99,General Fund,restock inventory,STAPLES
City Manager,Office supplies,01/19/2018,13.97,General Fund,restock inventory,STAPLES
City Manager,Office supplies,01/19/2018,3.55,General Fund,"CLOTH,DRY ERASE - 1.0000",SOURCE MANAGEMENT INC
City Manager,Office supplies,01/19/2018,145.68,General Fund,Restock inventory,SOURCE MANAGEMENT INC
City Manager,Office supplies,01/19/2018,33.50,General Fund,Name badge for new employee,PEPPERDINES MARKING
City Manager,Office supplies,01/19/2018,269.15,General Fund,Restock inventory,ROCKY MOUNTAIN BOTTLED WA
City Manager,Office supplies,01/19/2018,7.50,General Fund,Name badge,PEPPERDINES MARKING
City Manager,Office supplies,01/19/2018,7.50,General Fund,Name badge,PEPPERDINES MARKING
City Manager,Office supplies,01/19/2018,94.46,General Fund,General supplies,SOURCE MANAGEMENT INC
City Manager,Office supplies,01/19/2018,11.95,General Fund,General supplies,AMAZON.COM
City Manager,Office supplies,01/19/2018,86.11,General Fund,General supplies,SOURCE MANAGEMENT INC
City Manager,Other profess & tech services,01/19/2018,270.00,General Fund,e-newsletters,MAILCHIMP
City Manager,Other profess & tech services,01/19/2018,14.99,General Fund,Social media monitoring,HOOTSUITE MEDIA INC.
City Manager,Other profess & tech services,01/19/2018,1003.16,General Fund,Lakewood Flag and Thank you no,PAYPAL INC
City Manager,Other profess & tech services,01/19/2018,4425.00,Economic Development Fund,ED - Professional Services,SALESFORCE.COM INC
City Manager,Other small tools & equipment,01/19/2018,69.93,General Fund,Glare film -Channel8,THE HOME DEPOT 1514
City Manager,Other small tools & equipment,01/19/2018,44.72,General Fund,"Door stops, misc tools, glue",THE HOME DEPOT 1514
City Manager,"Printing, copying & binding",01/19/2018,1885.24,General Fund,COPY PAPER,PAPER PLUS 30400304238
City Manager,"Printing, copying & binding",01/19/2018,41.20,General Fund,SHIPPING LABELS,STAPLES
City Manager,"Printing, copying & binding",01/19/2018,402.79,General Fund,PLOTTER PAPER  & COPY PAPER,LEWIS PAPER PLACE#3
City Manager,"Printing, copying & binding",01/19/2018,48.00,General Fund,TABS FOR BUDGET BOOK,CUSTOMIZED TABS INC
City Manager,"Printing, copying & binding",01/19/2018,279.82,General Fund,COPY PAPER,LEWIS PAPER PLACE#3
City Manager,"Printing, copying & binding",01/19/2018,532.36,General Fund,ENVELOPES & COPY PAPER,LEWIS PAPER PLACE#3
City Manager,"Printing, copying & binding",01/19/2018,180.00,General Fund,LAMINATING 24X36 LINK POOL SIG,KINKO'S INC
City Manager,"Printing, copying & binding",01/19/2018,108.37,General Fund,CARBONLESS PAPER,PAPER PLUS 30400304238
City Manager,"Printing, copying & binding",01/19/2018,138.77,General Fund,COPY PAPER,LEWIS PAPER PLACE#3
City Manager,"Printing, copying & binding",01/19/2018,218.91,General Fund,PRINTABLE MAGNETIC MATERIAL,LEWIS PAPER PLACE#3
City Manager,"Printing, copying & binding",01/19/2018,29.00,General Fund,CUTTER BLADE SHARPENING,CUTTING EDGE GRINDING
City Manager,"Printing, copying & binding",01/19/2018,-168.93,General Fund,CREDIT FOR  ENVELOPES NOT ORDE,LEWIS PAPER PLACE#3
City Manager,Promotional expense,01/19/2018,50.00,Economic Development Fund,ED - News Blast Promotional,MAGILL'S ICE CREAM
City Manager,Promotional expense,01/19/2018,15.51,General Fund,Promotion of Union Survey,FACEBOOK.COM ADS
City Manager,Promotional expense,01/19/2018,1556.00,General Fund,Donor party,GOLDEN PRINTING AND PROMO
City Manager,Rental of equipment & vehicles,01/19/2018,153.37,General Fund,PO 6841 Inv 248583309 Bizhub 1,KONICA MINOLTA BUSINESS SOLUTIONS USA IN
City Manager,Rental of equipment & vehicles,01/19/2018,3211.98,General Fund,PO 6841 Inv 248632975 C700 Met,KONICA MINOLTA BUSINESS SOLUTIONS USA IN
City Manager,Rental of equipment & vehicles,01/19/2018,1869.24,General Fund,PO 6841 Inv 344048715 Print Sh,US BANK EQUIPMENT FINANCE
City Manager,Repairs & maint - equipment,01/19/2018,262.50,Economic Development Fund,ED - Equipment Repair,J & E UPHOLSTERY
City Manager,Salaries and Wages,01/19/2018,13866.61,Economic Development Fund,Economic Development Fund,Salaries and Wages
City Manager,Salaries and Wages,01/19/2018,49998.56,General Fund,General Fund,Salaries and Wages
City Manager,Telecommunications,01/19/2018,844.27,General Fund,City Cell Phones  11-9-17 to 1,ATT ADV SOLS
City Manager,Telecommunications,01/19/2018,168.55,Economic Development Fund,City Cell Phones  11-9-17 to 1,ATT ADV SOLS
City Manager,Telecommunications,01/19/2018,123.04,General Fund,City Cell Phones  11-9-17 to 1,ATT ADV SOLS
City Manager,Telecommunications,01/19/2018,190.75,General Fund,City Cell Phones  11-9-17 to 1,ATT ADV SOLS
City Manager,Telecommunications,01/19/2018,40.77,General Fund,Telecom Equipment CMO,AMAZON.COM
City Manager,Training,01/19/2018,675.00,General Fund,1x Registration for Social Med,RMGPA.ORG
City Manager,Training,01/19/2018,675.00,General Fund,1x Registration for Social Med,RMGPA.ORG
City Manager,Training,01/19/2018,975.00,General Fund,Training (Stacie),PAYPAL INC
City Manager,Training,01/19/2018,225.00,General Fund,Conf registration TR #15054,PAYPAL INC
City Manager,Training,01/19/2018,159.00,General Fund,Hotel deposit TR #15054,HOT SPRINGS LODGE
City Manager,Training,01/19/2018,550.00,Economic Development Fund,CDFA - Training,COUNCIL OF DEVELOPMENT FI
City Manager,Training,01/19/2018,131.25,General Fund,eNATOA training webinars,NATIONAL ASSOCIATION OF T
City Manager,Travel - auto expense,01/19/2018,40.00,Economic Development Fund,ED - Parking,DIA PARKING
City Manager,Travel - auto expense,01/19/2018,5.00,Economic Development Fund,ED - Parking,LAZ PARKING 600201
City Manager,Travel - auto expense,01/19/2018,15.00,Economic Development Fund,ED - Parking,SPARK 621 17TH STREET
City Manager,Travel - auto expense,01/19/2018,15.00,Economic Development Fund,ED - Parking,SPARK 621 17TH STREET
City Manager,Travel - auto expense,01/19/2018,15.00,Economic Development Fund,ED - Parking,FOCUS PARKING-1417 STO
City Manager,Travel - other,01/19/2018,534.66,Economic Development Fund,IEDC Event Hotel  TR15045,DBLETREE SAN DIEGO HTL
City Manager,Travel - other,01/19/2018,534.66,Economic Development Fund,IEDC Event Hotel TR15044,DBLETREE SAN DIEGO HTL
Community Resources,Advertising,01/19/2018,29.99,General Fund,Graphic Design Stock Photos Mo,"ADOBE SYSTEMS, INC."
Community Resources,Advertising,01/19/2018,118.74,"Heritage, Culture & Arts Fund",LCCP Advertising,FACEBOOK.COM ADS
Community Resources,Advertising,01/19/2018,76.26,"Heritage, Culture & Arts Fund",LCCP Advertising,FACEBOOK.COM ADS
Community Resources,Advertising,01/19/2018,99.50,Golf Course Enterprise Fund,9 News digital advertising,DATASPHERE TECHNOLOGIES
Community Resources,Advertising,01/19/2018,99.50,Golf Course Enterprise Fund,9 News digital advertising,DATASPHERE TECHNOLOGIES
Community Resources,Advertising,01/19/2018,1290.00,"Heritage, Culture & Arts Fund",LCC-Timothy P,BONNEVILLE INTL DNVR
Community Resources,Advertising,01/19/2018,375.00,"Heritage, Culture & Arts Fund",LCC-Great Performances,KUVO
Community Resources,Advertising,01/19/2018,3365.87,General Fund,Live the Life Publication,SIGNATURE OFFSET LLC
Community Resources,Advertising,01/19/2018,46.67,Golf Course Enterprise Fund,ELECTRIC SERVICE 2018 GOLF EXP,DENVER MART RETAIL
Community Resources,Advertising,01/19/2018,23.33,Golf Course Enterprise Fund,ELECTRIC SERVICE 2018 GOLF EXP,DENVER MART RETAIL
Community Resources,Advertising,01/19/2018,163.90,General Fund,Imagine,DE NWSPPR AGY ADV ADMARK
Community Resources,Advertising,01/19/2018,544.00,"Heritage, Culture & Arts Fund",Akropolis Reed Quintet,COLORADO PUBLIC RADIO OPE
Community Resources,Advertising,01/19/2018,938.25,"Heritage, Culture & Arts Fund",Ad - Timothy P,DE NWSPPR AGY ADV ADMARK
Community Resources,Advertising,01/19/2018,767.25,"Heritage, Culture & Arts Fund",Ad - Miwa Matreyek,DE NWSPPR AGY ADV ADMARK
Community Resources,Advertising,01/19/2018,85.50,General Fund,Ad - Stocking Stuffer,DE NWSPPR AGY ADV ADMARK
Community Resources,Advertising,01/19/2018,171.00,"Heritage, Culture & Arts Fund",Ad - Black Friday,DE NWSPPR AGY ADV ADMARK
Community Resources,Advertising,01/19/2018,339.10,"Heritage, Culture & Arts Fund",Ad - Pottery Sale,DE NWSPPR AGY ADV ADMARK
Community Resources,Advertising,01/19/2018,248.90,"Heritage, Culture & Arts Fund",Ad - Lakewood Lights,DE NWSPPR AGY ADV ADMARK
Community Resources,Advertising,01/19/2018,74.97,"Heritage, Culture & Arts Fund",Paid Ads: Promotion for Lakewo,FACEBOOK.COM ADS
Community Resources,Advertising,01/19/2018,125.00,"Heritage, Culture & Arts Fund",LHC Marketing: St. Patrick's D,DENVER ST PATRICKS DAY PA
Community Resources,Agricultural supplies,01/19/2018,26.21,General Fund,Crusher Fines for McDonnell Pa,ARC LANDSCAPE SUPPLY
Community Resources,Agricultural supplies,01/19/2018,131.24,General Fund,Dumping of debris from a vagra,FOOTHILLS LANDFILL
Community Resources,Agricultural supplies,01/19/2018,53.91,Open Space Fund,Garland for holiday decoration,MICHAELS #2104
Community Resources,Agricultural supplies,01/19/2018,193.77,Open Space Fund,Speed covers for holiday plant,DWF DENVER RETAIL
Community Resources,Agricultural supplies,01/19/2018,37.79,Open Space Fund,Sand - Justice Center bridges/,THE HOME DEPOT 1514
Community Resources,Agricultural supplies,01/19/2018,1200.00,General Fund,Trees for Ward 1,ALAMEDA WHOLESALE NURSERY
Community Resources,Agricultural supplies,01/19/2018,61.50,Open Space Fund,Beneficial insects for bio-con,BENEFICIAL INSECTARY INC
Community Resources,Agricultural supplies,01/19/2018,28.20,General Fund,fertilizer for reveg site at Y,THE HOME DEPOT 1514
Community Resources,Agricultural supplies,01/19/2018,13.03,General Fund,Mailing soil tests,THE UPS STORE
Community Resources,Agricultural supplies,01/19/2018,720.00,General Fund,branch removal at Main Reservo,SQ  COLORADO TREE E
Community Resources,Agricultural supplies,01/19/2018,499.89,General Fund,Top soil for Morse Park footba,PIONEER SAND COMPANY
Community Resources,Agricultural supplies,01/19/2018,858.00,Open Space Fund,Pesticides,AGFINITY HENDERSON AGRONO
Community Resources,Agricultural supplies,01/19/2018,158.00,Open Space Fund,Pesticides,AGFINITY HENDERSON AGRONO
Community Resources,Agricultural supplies,01/19/2018,160.36,General Fund,Topsoil for top dressing the f,PIONEER SAND COMPANY
Community Resources,Agricultural supplies,01/19/2018,70.37,General Fund,Pea gravel for Bonvue Park pla,ARC LANDSCAPE SUPPLY
Community Resources,Agricultural supplies,01/19/2018,109.62,General Fund,Crusher Fines for Richey Park.,ARC LANDSCAPE SUPPLY
Community Resources,Agricultural supplies,01/19/2018,-45.60,General Fund,credit - tax charged in Oct 20,HILLYARD INC DENVER
Community Resources,Agricultural supplies,01/19/2018,446.00,Open Space Fund,Christmas trees - rec centers,NICKS GARDEN CENTER INC
Community Resources,Agricultural supplies,01/19/2018,699.00,Open Space Fund,Christmas trees - rec centers,NICKS GARDEN CENTER INC
Community Resources,Alarm systems,01/19/2018,110.00,Open Space Fund,"GMRC - Service Fee, Antenna, P",4TE JDE INC
Community Resources,Alarm systems,01/19/2018,955.00,General Fund,Ohio Storage - Install of Secu,4TE JDE INC
Community Resources,Alarm systems,01/19/2018,184.00,General Fund,Addenbrook Park Concession- Fi,4TE JDE INC
Community Resources,Alarm systems,01/19/2018,184.00,General Fund,Addenbrook Park Maint - Fire I,4TE JDE INC
Community Resources,Alarm systems,01/19/2018,276.00,General Fund,Ray Ross Park Concession - Ann,4TE JDE INC
Community Resources,Alarm systems,01/19/2018,600.00,General Fund,GMRC - Installation of Securit,4TE JDE INC
Community Resources,Alarm systems,01/19/2018,240.00,General Fund,Civic South - Alarm,4TE JDE INC
Community Resources,Bldg Construction Costs,01/19/2018,175.00,Capital Improvement Fund,Background Screens - CR Contra,CHOICE SCREENING
Community Resources,Board and commissions,01/19/2018,18.88,Grants Fund (Oper & Capital),Advisory Committee Meeting,PANERA BREAD #3075
Community Resources,Board and commissions,01/19/2018,92.00,Grants Fund (Oper & Capital),Policy Council Committee Meeti,JASONS DELI LAKEWOOD
Community Resources,Board and commissions,01/19/2018,11.90,Grants Fund (Oper & Capital),PACT Activity,DOLRTREE 2668 00026682
Community Resources,Board and commissions,01/19/2018,7.70,Grants Fund (Oper & Capital),laminating,MARDEL #17
Community Resources,Board and commissions,01/19/2018,7.83,Grants Fund (Oper & Capital),film developing,WALGREENS
Community Resources,Board and commissions,01/19/2018,45.68,"Heritage, Culture & Arts Fund",Volunteer Dinner,KING SOOPERS #0127
Community Resources,Board and commissions,01/19/2018,-4.60,"Heritage, Culture & Arts Fund",Volunteer Dinner,KING SOOPERS #0127
Community Resources,Board and commissions,01/19/2018,54.05,Grants Fund (Oper & Capital),Policy Council,PAPA JOHN'S #04255
Community Resources,Board and commissions,01/19/2018,19.01,"Heritage, Culture & Arts Fund",collar extenders for volunteer,AMAZON.COM
Community Resources,Board and commissions,01/19/2018,21.96,"Heritage, Culture & Arts Fund",Volunteer hospitality for Lake,KING SOOPERS #0127
Community Resources,Board and commissions,01/19/2018,10.00,"Heritage, Culture & Arts Fund",Renewal Fee for HCA Alliance I,STATE OF COLORADO DPA
Community Resources,Books & Publications,01/19/2018,73.07,Open Space Fund,Garden incest publications,INGRAM PUBLISHER SERVICE
Community Resources,Books & Publications,01/19/2018,177.49,Open Space Fund,Seven Garden Insects of North,INGRAM PUBLISHER SERVICE
Community Resources,Books & Publications,01/19/2018,9.99,"Heritage, Culture & Arts Fund",Fashion: A History from th - 1,AMAZON.COM
Community Resources,Books & Publications,01/19/2018,17.98,"Heritage, Culture & Arts Fund",Collections Research Book,AMAZON.COM
Community Resources,Books & Publications,01/19/2018,12.75,"Heritage, Culture & Arts Fund",20th-Century Fashion : The - 1,AMAZON.COM
Community Resources,Books & Publications,01/19/2018,13.39,"Heritage, Culture & Arts Fund",Research Book for Car 25,AMAZON.COM
Community Resources,Building material supplies,01/19/2018,39.40,General Fund,CWRC-  stainless steel bolts,GREEN MOUNTAIN ACE HARDWARE
Community Resources,Building material supplies,01/19/2018,40.00,General Fund,LHC - Saw blade sharpened,CHILDERS SHARPENING SERVI
Community Resources,Building material supplies,01/19/2018,99.99,General Fund,Civic South - ER - TV bracket,BEST BUY MHT  00002105
Community Resources,Building material supplies,01/19/2018,82.20,General Fund,Sister City Park - thread rod,FRONTIER BOLT INC
Community Resources,Building material supplies,01/19/2018,28.49,General Fund,Addenbrook - Oil and hardener,CARQUEST      01039320
Community Resources,Building material supplies,01/19/2018,129.03,General Fund,"Shop - Paint brushes, bits, ra",GREEN MOUNTAIN ACE HARDWARE
Community Resources,Building material supplies,01/19/2018,-129.03,General Fund,Had to credit due to charging,GREEN MOUNTAIN ACE HARDWARE
Community Resources,Building material supplies,01/19/2018,120.03,General Fund,"Shop - Paint brushes, bits, ra",GREEN MOUNTAIN ACE HARDWARE
Community Resources,Building material supplies,01/19/2018,202.11,General Fund,"PSC - Angle iron, gloves, grin",DENCOL SUPPLY COMPANY
Community Resources,Building material supplies,01/19/2018,94.00,General Fund,"GMRC - chain links, rings, bol",GREEN MOUNTAIN ACE HARDWARE
Community Resources,Building material supplies,01/19/2018,177.51,General Fund,"CWRC - Deck plate,",DENCOL SUPPLY COMPANY
Community Resources,Building material supplies,01/19/2018,57.70,General Fund,"Concrete, Anchors and concrete",THE HOME DEPOT 1514
Community Resources,Building material supplies,01/19/2018,43.96,General Fund,Street- signs  department -3’,THE HOME DEPOT 1514
Community Resources,Building material supplies,01/19/2018,14.30,General Fund,GMRC- smoke seal,INTERMOUNTAIN LOCK & SECU
Community Resources,Building material supplies,01/19/2018,38.30,General Fund,Recycling center - padlock,INTERMOUNTAIN LOCK & SECU
Community Resources,Building material supplies,01/19/2018,315.00,General Fund,CAR-  stainless steel screws a,FASTENAL CO-RETAIL
Community Resources,Building material supplies,01/19/2018,173.52,General Fund,Civic South ER- toggler  for h,FASTENAL CO-RETAIL
Community Resources,Building material supplies,01/19/2018,892.00,General Fund,Coms south-  New door for danc,"COLORADO DOORWAYS, INC."
Community Resources,Building material supplies,01/19/2018,49.23,General Fund,PSC-  angle iron for new garag,DENCOL SUPPLY COMPANY
Community Resources,Building material supplies,01/19/2018,212.57,General Fund,CWRC-  quarter-inch plywood,LOWES #01903
Community Resources,Building material supplies,01/19/2018,223.96,Open Space Fund,Metal for signs,METAL SUPERMARKETS
Community Resources,Building material supplies,01/19/2018,35.53,Open Space Fund,Metal for TP holder,LOWES #01903
Community Resources,Building material supplies,01/19/2018,777.16,General Fund,Timbers for new horseshoe pits,ROCKY MT FOREST PRODUCTS
Community Resources,Building material supplies,01/19/2018,138.20,Open Space Fund,Cove molding  - Addenbrooke re,THE HOME DEPOT 1514
Community Resources,Building material supplies,01/19/2018,32.97,Open Space Fund,Paint supplies - Addenbrooke r,GREEN MOUNTAIN ACE HARDWARE
Community Resources,Building material supplies,01/19/2018,14.99,Open Space Fund,Door sweep - Addenbrooke restr,GREEN MOUNTAIN ACE HARDWARE
Community Resources,Building material supplies,01/19/2018,432.87,Open Space Fund,Sand for Lakewood Park volleyb,PIONEER SAND COMPANY
Community Resources,Building material supplies,01/19/2018,33.94,Open Space Fund,Concrete and edging - Belmar a,THE HOME DEPOT 1514
Community Resources,Building material supplies,01/19/2018,133.60,General Fund,Shop Stock- Halide Lamp,WW GRAINGER 064
Community Resources,Building material supplies,01/19/2018,231.66,General Fund,Shop Stock- Metal Halide Lamp,WW GRAINGER 064
Community Resources,Building material supplies,01/19/2018,1135.00,General Fund,Shop Stock - Ballast Kit Metal,WW GRAINGER 064
Community Resources,Building material supplies,01/19/2018,20.97,General Fund,Carmody- batteries for handica,ACE HDWE OF JEWELL SQ
Community Resources,Building material supplies,01/19/2018,5.54,General Fund,Streets -screws for window har,LOWES #01903
Community Resources,Building material supplies,01/19/2018,49.60,General Fund,LCC -hardware for women’s bath,DENVER HARDWARE
Community Resources,Building material supplies,01/19/2018,89.57,General Fund,BCLP -conduit for campground,THE HOME DEPOT 1514
Community Resources,Building material supplies,01/19/2018,44.48,General Fund,BCLP- conduit for campground,THE HOME DEPOT 1514
Community Resources,Building material supplies,01/19/2018,44.14,General Fund,PD - interview room paint,SHERWIN WILLIAMS CO
Community Resources,Building material supplies,01/19/2018,13.58,General Fund,PD -Paint  Liners,SHERWIN WILLIAMS CO
Community Resources,Building material supplies,01/19/2018,14.39,General Fund,PD - Paint liners,SHERWIN WILLIAMS CO
Community Resources,Building material supplies,01/19/2018,93.01,General Fund,Truck Pad Locks to lock up lad,GREEN MOUNTAIN ACE HARDWARE
Community Resources,Building material supplies,01/19/2018,12.53,General Fund,Shop - Spiral bond note book f,STAPLES
Community Resources,Building material supplies,01/19/2018,972.00,"Heritage, Culture & Arts Fund",Building Material Supplies,BANNER SIGNS & DECALS
Community Resources,Building material supplies,01/19/2018,35.94,General Fund,Lumber to repair fence at Taft,LOWES #01903
Community Resources,Building material supplies,01/19/2018,49.67,Open Space Fund,epoxy glue/ drill reamers/batt,HARBOR FREIGHT TOOLS 230
Community Resources,Building material supplies,01/19/2018,14.86,Open Space Fund,wood for kiosks,THE HOME DEPOT 1514
Community Resources,Building material supplies,01/19/2018,274.75,Open Space Fund,Concrete and delivery - Lakewo,BORAL BEST BLOCK
Community Resources,Building material supplies,01/19/2018,612.06,Open Space Fund,Fencing - Belmar Park playgrou,SPLIT RAIL FENCE
Community Resources,Building material supplies,01/19/2018,76.11,General Fund,Parks Pole Barn/ Extension cor,THE HOME DEPOT 1514
Community Resources,Building material supplies,01/19/2018,144.91,General Fund,"Truck Stock/ reducing washers,",INTERMOUNTAIN DIST CO
Community Resources,Building material supplies,01/19/2018,20.72,General Fund,BCLP/ w/p covers singles and d,LOWES #01903
Community Resources,Building material supplies,01/19/2018,105.56,General Fund,GMRC -    4qty.  V-Belt cogged,WW GRAINGER 064
Community Resources,Building material supplies,01/19/2018,827.30,General Fund,"LCC -     1qty.  Relay Module,",CHARLES D JONES/DENVER
Community Resources,Building material supplies,01/19/2018,21.91,General Fund,Reciprocating saw blades and g,THE HOME DEPOT 1514
Community Resources,Building material supplies,01/19/2018,158.00,"Heritage, Culture & Arts Fund",sanders,THE HOME DEPOT 1514
Community Resources,Building material supplies,01/19/2018,204.45,"Heritage, Culture & Arts Fund","Zip wall, ladder, key id",THE HOME DEPOT 1514
Community Resources,Building material supplies,01/19/2018,12.00,"Heritage, Culture & Arts Fund",LED bulbs for motel,CONSERVE A WATT-PAY TR
Community Resources,Building material supplies,01/19/2018,72.85,"Heritage, Culture & Arts Fund",Paint brushes,THE HOME DEPOT 1514
Community Resources,Building material supplies,01/19/2018,53.85,"Heritage, Culture & Arts Fund",Hand cleaner,PINERITE
Community Resources,Building material supplies,01/19/2018,2527.42,"Heritage, Culture & Arts Fund",Propane for outdoor firings,SUBURBAN PROPN00012021
Community Resources,Building material supplies,01/19/2018,19.97,General Fund,Safety Glasses,THE HOME DEPOT 1514
Community Resources,Building material supplies,01/19/2018,13.88,Open Space Fund,Wall base adhesive - Addenbroo,THE HOME DEPOT 1514
Community Resources,Building material supplies,01/19/2018,18.00,Open Space Fund,Concrete - Addenbrooke irrigat,THE HOME DEPOT 1514
Community Resources,Building material supplies,01/19/2018,47.93,"Heritage, Culture & Arts Fund",Supplies for pottery studio-ta,THE HOME DEPOT 1514
Community Resources,Building material supplies,01/19/2018,52.42,"Heritage, Culture & Arts Fund","Extension cords, tape  for bui",THE HOME DEPOT 1514
Community Resources,Building material supplies,01/19/2018,26.89,General Fund,Truck Stock - Gloves,THE HOME DEPOT 1514
Community Resources,Building material supplies,01/19/2018,27.88,Golf Course Enterprise Fund,Hex bolts for new stakes for b,THE HOME DEPOT 1514
Community Resources,Building material supplies,01/19/2018,99.90,Golf Course Enterprise Fund,Sheet metal strips for new sta,GREEN MOUNTAIN ACE HARDWARE
Community Resources,Building material supplies,01/19/2018,25.98,Golf Course Enterprise Fund,Sheet metal strips for new sta,ACE HDWE OF JEWELL SQ
Community Resources,Building material supplies,01/19/2018,55.99,Open Space Fund,Lumber for Belmar Park dock re,THE HOME DEPOT 1514
Community Resources,Building material supplies,01/19/2018,132.42,General Fund,Civic South ER and PD - Paint,SHERWIN WILLIAMS CO
Community Resources,Building material supplies,01/19/2018,292.36,General Fund,Civic South - ER Conf room pai,SHERWIN WILLIAMS CO
Community Resources,Building material supplies,01/19/2018,235.53,General Fund,CCC  vent blower   spair part,THE TRANE COMPANY
Community Resources,Building material supplies,01/19/2018,304.84,General Fund,Streets - covered parking,CHARLES D JONES/DENVER
Community Resources,Building material supplies,01/19/2018,249.00,General Fund,LINK  -  control board    1992,CHARLES D JONES/DENVER
Community Resources,Building material supplies,01/19/2018,386.64,General Fund,CCC  -  vent blower   200978,THE TRANE COMPANY
Community Resources,Building material supplies,01/19/2018,15.00,General Fund,PSC -    make keys   201269,"DOUBLE A SECURITY, INC."
Community Resources,Building material supplies,01/19/2018,610.46,General Fund,parks -    padlocks and cores,INTERMOUNTAIN LOCK & SECU
Community Resources,Building material supplies,01/19/2018,19.40,General Fund,recycle center -    keys    20,INTERMOUNTAIN LOCK & SECU
Community Resources,Building material supplies,01/19/2018,309.94,General Fund,PD- Paint Investigation,SHERWIN WILLIAMS CO
Community Resources,Building material supplies,01/19/2018,74.00,General Fund,BLMR -   rekey locks and keys,"DOUBLE A SECURITY, INC."
Community Resources,Building material supplies,01/19/2018,24.98,General Fund,recycle center -   stat    200,LOWES #01903
Community Resources,Building material supplies,01/19/2018,42.08,General Fund,Adhesive and caulking gun to r,THE HOME DEPOT 1514
Community Resources,Building material supplies,01/19/2018,34.50,General Fund,Materials for park sign instal,CONTINENTAL DIVIDE FEN
Community Resources,Building material supplies,01/19/2018,13.98,General Fund,Materials for park sign instal,CONTINENTAL DIVIDE FEN
Community Resources,Building material supplies,01/19/2018,39.29,General Fund,Screws and fence post mix for,THE HOME DEPOT 1514
Community Resources,Building material supplies,01/19/2018,729.60,General Fund,"Mark T Star, Devinney, Meadowl",ROONEY ROAD A1 ORG
Community Resources,Building material supplies,01/19/2018,596.25,General Fund,Shop - Paint stock P1,SHERWIN WILLIAMS CO
Community Resources,Chem. & lab. supplies,01/19/2018,333.66,"Heritage, Culture & Arts Fund","Glaze, kiln shelf, slip for po",STONE LEAF POTTERY INC
Community Resources,Chem. & lab. supplies,01/19/2018,54.95,"Heritage, Culture & Arts Fund",Glaze and wax resist for potte,STONE LEAF POTTERY INC
Community Resources,Chem. & lab. supplies,01/19/2018,52.00,Open Space Fund,Soda lake Lodge e-coli,COLORADO ANALYTICAL
Community Resources,Chem. & lab. supplies,01/19/2018,46.00,Open Space Fund,monthly water samples,COLORADO ANALYTICAL
Community Resources,Cleaning & janitorial services,01/19/2018,12651.05,General Fund,"CAR, GMRC Link, Whitlock - Cus",ISS FACILITYSVCSHOLDING
Community Resources,Cleaning supplies,01/19/2018,270.83,General Fund,"Civic South, PSC - Air Freshen",SIP STATEINDUSTRIAL US
Community Resources,Cleaning supplies,01/19/2018,270.83,General Fund,Civic South 7 PSC - Air Freshe,SIP STATEINDUSTRIAL US
Community Resources,Cleaning supplies,01/19/2018,27.31,General Fund,Cleaning chemicals/supplies,THE HOME DEPOT 1514
Community Resources,Cleaning supplies,01/19/2018,199.52,Golf Course Enterprise Fund,CLUBHOUSE CLEANING,ALSCO INC.
Community Resources,Cleaning supplies,01/19/2018,173.13,General Fund,"Restroom Deodorizers, urinal m",SIP STATEINDUSTRIAL US
Community Resources,Cleaning supplies,01/19/2018,369.50,General Fund,controller for truck plow,MASTERCRAFT TRUCK EQUI
Community Resources,Cleaning supplies,01/19/2018,19.97,General Fund,light fixture shop,THE HOME DEPOT 1514
Community Resources,Cleaning supplies,01/19/2018,113.33,General Fund,Air freshener for bathrooms-CC,SIP STATEINDUSTRIAL US
Community Resources,Cleaning supplies,01/19/2018,13.84,General Fund,Pesticide sign for the pestici,AMAZON.COM
Community Resources,Cleaning supplies,01/19/2018,298.47,Golf Course Enterprise Fund,cleaning supplies,COLUMBINE PAPER MAINT
Community Resources,Cleaning supplies,01/19/2018,55.85,Golf Course Enterprise Fund,cleaning supplies,COLUMBINE PAPER MAINT
Community Resources,Cleaning supplies,01/19/2018,116.11,Golf Course Enterprise Fund,cleaning soap and degreaser,ZEP MANUFACTURING
Community Resources,Cleaning supplies,01/19/2018,77.40,Golf Course Enterprise Fund,cleaning soap and degreaser,ZEP MANUFACTURING
Community Resources,Cleaning supplies,01/19/2018,182.51,Golf Course Enterprise Fund,cleaning supplies,COLUMBINE PAPER MAINT
Community Resources,Clothing & Uniforms,01/19/2018,34.03,Golf Course Enterprise Fund,steamer handle,JIFFY STEAMER
Community Resources,Clothing & Uniforms,01/19/2018,474.95,General Fund,Winter Bib Overalls for new em,MURDOCHS RANCH &HOME #11
Community Resources,Clothing & Uniforms,01/19/2018,729.00,General Fund,staff shirts,SUPER TEES
Community Resources,Clothing & Uniforms,01/19/2018,5.25,Golf Course Enterprise Fund,uniforms and rugs,CINTAS FIRST AID 0390
Community Resources,Clothing & Uniforms,01/19/2018,34.51,Golf Course Enterprise Fund,uniforms and rugs,CINTAS FIRST AID 0390
Community Resources,Clothing & Uniforms,01/19/2018,23.00,Golf Course Enterprise Fund,uniforms and rugs,CINTAS FIRST AID 0390
Community Resources,Clothing & Uniforms,01/19/2018,5.25,Golf Course Enterprise Fund,uniforms and rugs,CINTAS FIRST AID 0390
Community Resources,Clothing & Uniforms,01/19/2018,34.51,Golf Course Enterprise Fund,uniforms and rugs,CINTAS FIRST AID 0390
Community Resources,Clothing & Uniforms,01/19/2018,23.00,Golf Course Enterprise Fund,uniforms and rugs,CINTAS FIRST AID 0390
Community Resources,Clothing & Uniforms,01/19/2018,5.25,Golf Course Enterprise Fund,uniforms and rugs,CINTAS FIRST AID 0390
Community Resources,Clothing & Uniforms,01/19/2018,34.51,Golf Course Enterprise Fund,uniforms and rugs,CINTAS FIRST AID 0390
Community Resources,Clothing & Uniforms,01/19/2018,23.00,Golf Course Enterprise Fund,uniforms and rugs,CINTAS FIRST AID 0390
Community Resources,Clothing & Uniforms,01/19/2018,5.25,Golf Course Enterprise Fund,uniforms and rugs,CINTAS FIRST AID 0390
Community Resources,Clothing & Uniforms,01/19/2018,234.05,General Fund,MSSP Volleyball Shirts,SUPER TEES
Community Resources,Clothing & Uniforms,01/19/2018,531.75,General Fund,Staff Shirts,SUPER TEES
Community Resources,Clothing & Uniforms,01/19/2018,1064.55,General Fund,MSSP Volleyball Shirts,SUPER TEES
Community Resources,Clothing & Uniforms,01/19/2018,36.00,Golf Course Enterprise Fund,monthly fee for logo rugs,ALSCO INC.
Community Resources,Clothing & Uniforms,01/19/2018,24.00,Golf Course Enterprise Fund,monthly fee for logo rugs,ALSCO INC.
Community Resources,Clothing & Uniforms,01/19/2018,34.51,Golf Course Enterprise Fund,uniforms and rugs,CINTAS FIRST AID 0390
Community Resources,Clothing & Uniforms,01/19/2018,23.00,Golf Course Enterprise Fund,uniforms and rugs,CINTAS FIRST AID 0390
Community Resources,Clothing & Uniforms,01/19/2018,39.43,Golf Course Enterprise Fund,uniforms and rugs,CINTAS FIRST AID 0390
Community Resources,Clothing & Uniforms,01/19/2018,26.29,Golf Course Enterprise Fund,uniforms and rugs,CINTAS FIRST AID 0390
Community Resources,Clothing & Uniforms,01/19/2018,5.25,Golf Course Enterprise Fund,uniforms and rugs,CINTAS FIRST AID 0390
Community Resources,Clothing & Uniforms,01/19/2018,36.00,Golf Course Enterprise Fund,monthly rug rental fee,ALSCO INC.
Community Resources,Clothing & Uniforms,01/19/2018,24.00,Golf Course Enterprise Fund,monthly rug rental fee,ALSCO INC.
Community Resources,Clothing & Uniforms,01/19/2018,154.99,Golf Course Enterprise Fund,UNIFORM SAMPLES 2018,MONTEREY CLUB
Community Resources,Clothing & Uniforms,01/19/2018,71.50,General Fund,Lifeguard clothes,THE LIFEGUARD STORE
Community Resources,Clothing & Uniforms,01/19/2018,1551.28,General Fund,Building Maint Logo Clothing,HALO BRANDED SOLUTIONS
Community Resources,Clothing & Uniforms,01/19/2018,-14.50,General Fund,Credit on tax for clothing fro,CABELA'S PROMOTIONS
Community Resources,Clothing & Uniforms,01/19/2018,132.95,General Fund,Winter coat for new employee.,INTERMOUNTN SAFETY SHO
Community Resources,Clothing & Uniforms,01/19/2018,53.95,General Fund,New sweatshirt for new employe,INTERMOUNTN SAFETY SHO
Community Resources,Clothing & Uniforms,01/19/2018,191.39,General Fund,Building Maint - clothing,HALO BRANDED SOLUTIONS
Community Resources,Clothing & Uniforms,01/19/2018,162.52,"Heritage, Culture & Arts Fund",shirts and coats,SUPER TEES
Community Resources,Clothing & Uniforms,01/19/2018,160.80,Golf Course Enterprise Fund,Beanie hats for crew.,HALO BRANDED SOLUTIONS
Community Resources,Clothing & Uniforms,01/19/2018,213.75,General Fund,fitness uniform shirts,SUPER TEES
Community Resources,Clothing & Uniforms,01/19/2018,1281.50,General Fund,fitness uniform vests,SUPER TEES
Community Resources,Collection & Exhibit Supplies,01/19/2018,233.45,"Heritage, Culture & Arts Fund",Toilet and paper towels,HILLYARD INC DENVER
Community Resources,Collection & Exhibit Supplies,01/19/2018,6.20,"Heritage, Culture & Arts Fund",Collections supplies - measuri,AMAZON.COM
Community Resources,Collection & Exhibit Supplies,01/19/2018,7.10,"Heritage, Culture & Arts Fund",Exhibit supplies - typewriter,AMAZON.COM
Community Resources,Collection & Exhibit Supplies,01/19/2018,8.12,"Heritage, Culture & Arts Fund","Quartet Bulletin Board, Co - 1",AMAZON.COM
Community Resources,Collection & Exhibit Supplies,01/19/2018,1726.82,"Heritage, Culture & Arts Fund",HC Laptops,CDW GOVERNMENT INC (DO NOT USE)
Community Resources,Computer equipment-non cap,01/19/2018,74.92,Open Space Fund,PC related supplies for Planni,AMAZON.COM
Community Resources,Computer equipment-non cap,01/19/2018,59.99,General Fund,Replacement Keyboard for Rache,BEST BUY MHT  00002105
Community Resources,Computer software & supplies,01/19/2018,29.99,General Fund,Creative Software,"ADOBE SYSTEMS, INC."
Community Resources,Computer software & supplies,01/19/2018,19.99,General Fund,Creative Software,"ADOBE SYSTEMS, INC."
Community Resources,Computer software & supplies,01/19/2018,19.99,General Fund,Creative Software,"ADOBE SYSTEMS, INC."
Community Resources,Computer software & supplies,01/19/2018,49.99,General Fund,Creative Software,"ADOBE SYSTEMS, INC."
Community Resources,Computer software & supplies,01/19/2018,69.99,General Fund,Software,MICROSOFT    ONECARE
Community Resources,Computer software & supplies,01/19/2018,19.99,General Fund,Creative Software,"ADOBE SYSTEMS, INC."
Community Resources,Computer software & supplies,01/19/2018,155.81,"Heritage, Culture & Arts Fund","Box Office ink, sound booth in",STAPLES
Community Resources,Computer software & supplies,01/19/2018,360.00,General Fund,Paraplan scheduling software,ENGRAPH.COM
Community Resources,Computer software & supplies,01/19/2018,165.98,"Heritage, Culture & Arts Fund",CR HC Monitors,AMAZON.COM
Community Resources,Computer software & supplies,01/19/2018,49.99,General Fund,Kim P Software Updates,"ADOBE SYSTEMS, INC."
Community Resources,Construc Costs-Site Improve,01/19/2018,2673.50,Open Space Fund,Final Payment Log Gazebo BCLP,CABINFIELD WOODWORKING
Community Resources,Consulting Costs-Site Improve,01/19/2018,175.00,Open Space Fund,Lasley Park Construction drawi,ABC IMAGING OF WASHINGTON
Community Resources,Contractor services,01/19/2018,1681.00,Open Space Fund,Installation of Playground mat,BEDDER SPREADERS LLC
Community Resources,Contractor services,01/19/2018,1804.00,Open Space Fund,Installation of Playground mat,BEDDER SPREADERS LLC
Community Resources,Contractor services,01/19/2018,1218.00,General Fund,Carmody - PM PO 7523,MURPHY COMPANY MECHANICAL
Community Resources,Contractor services,01/19/2018,2214.00,General Fund,LInk - PM - PO 7523,MURPHY COMPANY MECHANICAL
Community Resources,Contractor services,01/19/2018,2370.75,General Fund,"Link - Hot Water heate,r PO 75",MURPHY COMPANY MECHANICAL
Community Resources,Contractor services,01/19/2018,1219.88,General Fund,"Link - MAU not working, PO 752",MURPHY COMPANY MECHANICAL
Community Resources,Contractor services,01/19/2018,1614.00,General Fund,"Clements - PM, PO 7523",MURPHY COMPANY MECHANICAL
Community Resources,Contractor services,01/19/2018,282.00,General Fund,"PD Academy - PM, PO 7523",MURPHY COMPANY MECHANICAL
Community Resources,Contractor services,01/19/2018,1080.12,General Fund,"GMRC - Replace blowr motor, PO",MURPHY COMPANY MECHANICAL
Community Resources,Contractor services,01/19/2018,504.00,General Fund,"LHC - PM, PO 7523",MURPHY COMPANY MECHANICAL
Community Resources,Contractor services,01/19/2018,1116.00,General Fund,"WRC - PM, PO 7523",MURPHY COMPANY MECHANICAL
Community Resources,Contractor services,01/19/2018,426.00,General Fund,"Urban Parks PM, PO 7523",MURPHY COMPANY MECHANICAL
Community Resources,Contractor services,01/19/2018,974.76,General Fund,"Clement - RTU not heating, PO",MURPHY COMPANY MECHANICAL
Community Resources,Contractor services,01/19/2018,208.00,General Fund,Carmody - Check Pool Boiler Op,MURPHY COMPANY MECHANICAL
Community Resources,Contractor services,01/19/2018,100.00,General Fund,Background Screens - CR Contra,CHOICE SCREENING
Community Resources,Contractor services,01/19/2018,3984.00,General Fund,Contract tree work,SWINGLE BY SAVATREE
Community Resources,Contractor services,01/19/2018,3800.00,General Fund,Contract tree work,SAVATREE/DEERTECH/AUTUMN
Community Resources,Contractor services,01/19/2018,222.00,Open Space Fund,pest control,ANIMAL & PEST CONTROL
Community Resources,Contractor services,01/19/2018,274.00,Open Space Fund,pest control,ANIMAL & PEST CONTROL
Community Resources,Dues and memberships,01/19/2018,165.00,Golf Course Enterprise Fund,Membership dues for Kevin Sjur,RMGCSA           00 OF 00
Community Resources,Dues and memberships,01/19/2018,46.50,Golf Course Enterprise Fund,Membership dues for Steve Abra,RMGCSA           00 OF 00
Community Resources,Dues and memberships,01/19/2018,187.00,General Fund,Membership dues for ISA,PAYPAL INC
Community Resources,Dues and memberships,01/19/2018,190.00,General Fund,R.I.S.E. Sam's Club Membership,WAL-MART
Community Resources,Dues and memberships,01/19/2018,3.00,General Fund,Backflow Report fee,TOKAY SOFTWARE
Community Resources,Dues and memberships,01/19/2018,366.30,"Heritage, Culture & Arts Fund",White Way Grill Retail Food Li,FAIRGROUNDS
Community Resources,Dues and memberships,01/19/2018,60.00,Open Space Fund,CPRP Renewal Fee,NRPA
Community Resources,Dues and memberships,01/19/2018,110.00,Golf Course Enterprise Fund,2018 USGA MEMBERSHIP RENEWAL,US GOLF ASSOCIATION
Community Resources,Dues and memberships,01/19/2018,110.00,Golf Course Enterprise Fund,2018 USGA MEMBERSHIP RENEWAL,US GOLF ASSOCIATION
Community Resources,Dues and memberships,01/19/2018,725.00,Golf Course Enterprise Fund,MEMBERSHIP DUES,LPGA
Community Resources,Dues and memberships,01/19/2018,-150.00,Golf Course Enterprise Fund,MEMBERSHIP DUES CORRECTION,LPGA
Community Resources,Dues and memberships,01/19/2018,-11.32,General Fund,Refund Monthly Prime Membershi,AMAZONPRIME MEMBERSHIP
Community Resources,Dues and memberships,01/19/2018,200.00,"Heritage, Culture & Arts Fund",Renewal Fee for HCA Membership,AMERICANS FOR THE ARTS
Community Resources,Employee Benefits,01/19/2018,16869.43,Golf Course Enterprise Fund,Golf Course Enterprise Fund,Employee Benefits
Community Resources,Employee Benefits,01/19/2018,18162.75,Open Space Fund,Open Space Fund,Employee Benefits
Community Resources,Employee Benefits,01/19/2018,11933.79,"Heritage, Culture & Arts Fund","Heritage, Culture & Arts Fund",Employee Benefits
Community Resources,Employee Benefits,01/19/2018,828.11,Capital Improvement Fund,Capital Improvement Fund,Employee Benefits
Community Resources,Employee Benefits,01/19/2018,12631.46,Grants Fund (Oper & Capital),Grants Fund (Oper & Capital),Employee Benefits
Community Resources,Employee Benefits,01/19/2018,97853.20,General Fund,General Fund,Employee Benefits
Community Resources,Employee Benefits,01/19/2018,921.33,Open Space Fund,Open Space Fund,Employee Benefits
Community Resources,Food purchased for programs,01/19/2018,75.13,General Fund,"Ice Cream, punch and cookies f",KING SOOPERS #0127
Community Resources,Food purchased for programs,01/19/2018,575.00,General Fund,Lunch for Senior Trip-CCC,TST  DAZZLE JAZZ
Community Resources,Food purchased for programs,01/19/2018,189.66,General Fund,"Coffee, cookies, paper product",WAL-MART
Community Resources,Food purchased for programs,01/19/2018,300.00,General Fund,"VOA Dining Site coffee, ccc",ROCKY MOUNTAIN BOTTLED WA
Community Resources,"Fuel, oil, lubricants",01/19/2018,75.00,Golf Course Enterprise Fund,parts washer service,MASTERWASH INC
Community Resources,"Fuel, oil, lubricants",01/19/2018,50.00,Golf Course Enterprise Fund,parts washer service,MASTERWASH INC
Community Resources,"Fuel, oil, lubricants",01/19/2018,129.26,Golf Course Enterprise Fund,"oil, fuel, lubricants",OREILLY AUTO #2712
Community Resources,Irrigation supplies,01/19/2018,-506.69,General Fund,Return,CPS DISTRIBUTORS #18
Community Resources,Irrigation supplies,01/19/2018,1005.61,General Fund,"6"" Romac coupling and 6"" Gate",CPS DISTRIBUTORS #18
Community Resources,Irrigation supplies,01/19/2018,1.04,Golf Course Enterprise Fund,Teflon tape,HORIZON DISTRIBUTORS INC
Community Resources,Irrigation supplies,01/19/2018,119.18,Golf Course Enterprise Fund,irrigation fittings for fox ho,HORIZON DISTRIBUTORS INC
Community Resources,Irrigation supplies,01/19/2018,44.67,Open Space Fund,Conduit sweep and butt splice,THE HOME DEPOT 1514
Community Resources,Irrigation supplies,01/19/2018,10.99,Open Space Fund,Concrete anchors and drill bit,ACE HDWE OF JEWELL SQ
Community Resources,Irrigation supplies,01/19/2018,0.63,Open Space Fund,Irrigation part,CPS DISTRIBUTORS #18
Community Resources,Irrigation supplies,01/19/2018,111.18,Open Space Fund,Irrigation parts,CPS DISTRIBUTORS #18
Community Resources,Irrigation supplies,01/19/2018,18.15,Open Space Fund,"8"" irrigation repair fittings",CPS DISTRIBUTORS #18
Community Resources,Irrigation supplies,01/19/2018,302.21,Open Space Fund,"8"" Irrigation repair fittings",CPS DISTRIBUTORS #18
Community Resources,Irrigation supplies,01/19/2018,56.54,Open Space Fund,Irrigation repair supplies - S,CPS DISTRIBUTORS #18
Community Resources,Irrigation supplies,01/19/2018,63.52,Open Space Fund,Irrigation repair supplies - R,CPS DISTRIBUTORS #18
Community Resources,Irrigation supplies,01/19/2018,482.22,Open Space Fund,Irrigation repair parts - Adde,HD SUPPLY WATERWORKS 518
Community Resources,Irrigation supplies,01/19/2018,872.72,Open Space Fund,Irrigation repair parts - Adde,HD SUPPLY WATERWORKS 518
Community Resources,Irrigation supplies,01/19/2018,-326.62,Open Space Fund,Credit for return of Addenbroo,HD SUPPLY WATERWORKS 518
Community Resources,Irrigation supplies,01/19/2018,28.22,Golf Course Enterprise Fund,Brass cross handle gate valve,CPS DISTRIBUTORS #18
Community Resources,Irrigation supplies,01/19/2018,88.44,Golf Course Enterprise Fund,Irrigation inventory for HS an,CPS DISTRIBUTORS #18
Community Resources,Irrigation supplies,01/19/2018,88.44,Golf Course Enterprise Fund,Irrigation inventory for HS an,CPS DISTRIBUTORS #18
Community Resources,Items for resale,01/19/2018,144.80,General Fund,Bridge Books for Bridge Class-,AMAZON.COM
Community Resources,Mapping & drafting supplies,01/19/2018,39.90,Open Space Fund,Gradient Level Tool,THE HOME DEPOT 1514
Community Resources,Meal expense,01/19/2018,143.74,"Heritage, Culture & Arts Fund",Refreshments for pottery sale-,KING SOOPERS #0127
Community Resources,Meal expense,01/19/2018,150.22,"Heritage, Culture & Arts Fund","Pottery sale- plates, cups, ta",PARTY CITY #472
Community Resources,Meal expense,01/19/2018,360.00,"Heritage, Culture & Arts Fund",Lakewood Lights Snacks: Cookie,COLORADO COOKIE CO
Community Resources,Meal expense,01/19/2018,-21.55,"Heritage, Culture & Arts Fund",Lakewood Lights Snacks: Gelt,WORLD MKT     00000570
Community Resources,Meal expense,01/19/2018,21.55,"Heritage, Culture & Arts Fund",Lakewood Lights Snacks: Gelt,WORLD MKT     00000570
Community Resources,Meal expense,01/19/2018,5.97,"Heritage, Culture & Arts Fund",Lakewood Lights Snacks: Chestn,SAFEWAY STORE 00000414
Community Resources,Meal expense,01/19/2018,450.00,"Heritage, Culture & Arts Fund",Lakewood Lights Snacks: cookie,COLORADO COOKIE CO
Community Resources,Meal expense,01/19/2018,29.73,"Heritage, Culture & Arts Fund",Lakewood Lights Snacks: cookie,KING SOOPERS #0127
Community Resources,Meal expense,01/19/2018,45.25,"Heritage, Culture & Arts Fund",Lakewood Lights Snacks: Hot Co,SAMS CLUB #6635
Community Resources,Meal expense,01/19/2018,30.49,"Heritage, Culture & Arts Fund",Meal Expense,BIG DADDYS LAKEWOOD
Community Resources,Meal expense,01/19/2018,69.14,"Heritage, Culture & Arts Fund",Lakewood Lights - Diner Cookie,KING SOOPERS #0127
Community Resources,Meal expense,01/19/2018,-27.00,"Heritage, Culture & Arts Fund",Lakewood Lights - returned ext,WHOLEFDS BMR 10218
Community Resources,Meal expense,01/19/2018,106.46,"Heritage, Culture & Arts Fund",Lakewood Lights - Chestnuts fo,WHOLEFDS BMR 10218
Community Resources,Meal expense,01/19/2018,46.31,"Heritage, Culture & Arts Fund","Silver ware, tape for pottery",WAL-MART
Community Resources,Meal expense,01/19/2018,75.73,"Heritage, Culture & Arts Fund","Plates, bowls for pottery sale",WAL-MART
Community Resources,Meal expense,01/19/2018,174.88,"Heritage, Culture & Arts Fund",Refreshments for pottery sale,KING SOOPERS #0127
Community Resources,Meal expense,01/19/2018,36.50,General Fund,Mtg w/ Jeffco Open Space,EARLS RESTAURANTINC
Community Resources,Meal expense,01/19/2018,52.83,General Fund,Personnel Mtg,THE EGG & I LAKEWOOD
Community Resources,Meal expense,01/19/2018,144.00,Open Space Fund,Meal for staff party,NICOLO'S PIZZA
Community Resources,Meal expense,01/19/2018,21.71,"Heritage, Culture & Arts Fund",11/28 Volunteer Hospitality,KING SOOPERS #0127
Community Resources,Meal expense,01/19/2018,23.08,"Heritage, Culture & Arts Fund",11/30 Employee Hospitality,KING SOOPERS #0127
Community Resources,Meal expense,01/19/2018,59.52,"Heritage, Culture & Arts Fund",12/1-12/3 Artist Hospitality,KING SOOPERS #0127
Community Resources,Meal expense,01/19/2018,167.89,"Heritage, Culture & Arts Fund",12/2 Artist Hospitality,BROTHERS BBQ VI
Community Resources,Meal expense,01/19/2018,37.31,"Heritage, Culture & Arts Fund",12/15 Volunteer Hospitality,KING SOOPERS #0127
Community Resources,Meal expense,01/19/2018,125.20,General Fund,Desserts for CR Department Lun,WWW.COSTCO.COM
Community Resources,Meal expense,01/19/2018,187.23,"Heritage, Culture & Arts Fund",Luncheon food,KING SOOPERS #0127
Community Resources,Meal expense,01/19/2018,36.99,"Heritage, Culture & Arts Fund",Hedy Lamarr show food,KING SOOPERS #0127
Community Resources,Meal expense,01/19/2018,13.36,General Fund,Admin Meeting,KING SOOPERS #0127
Community Resources,Meal expense,01/19/2018,336.60,General Fund,NEED MORE INFO,PANERA BREAD #3075
Community Resources,Meal expense,01/19/2018,30.00,"Heritage, Culture & Arts Fund",Artist Hospitality - Timothy P,KING SOOPERS #0127
Community Resources,Meal expense,01/19/2018,96.19,General Fund,Marketing Retreat,PANERA BREAD #3075
Community Resources,Meal expense,01/19/2018,162.99,General Fund,Meeting Lunch,JASONS DELI LAKEWOOD
Community Resources,Meal expense,01/19/2018,34.70,"Heritage, Culture & Arts Fund",Recruitment Lunch Mtg,PF CHANGS #9979
Community Resources,Med. & phar. supplies,01/19/2018,487.65,Open Space Fund,first aid supplies,CINTAS FIRST AID 0390
Community Resources,Med. & phar. supplies,01/19/2018,28.32,"Heritage, Culture & Arts Fund",Vinyl gloves,STAPLES
Community Resources,Misc expenses,01/19/2018,52.22,Open Space Fund,Respirator/Filters- Protective,JON DON MOTO #888
Community Resources,Misc expenses,01/19/2018,221.19,Open Space Fund,Plotter Paper Supplies for Pri,UNITED REPROGRAPHIC SUPPL
Community Resources,Misc expenses,01/19/2018,159.00,General Fund,Xmas tree stand,JARED'S NURSERY & GARD
Community Resources,Misc expenses,01/19/2018,41.91,Open Space Fund,Coffee for shop,WAL-MART
Community Resources,Misc expenses,01/19/2018,201.00,Open Space Fund,Staff appreciation holiday bre,THE ORIGINAL PANCAKE HOUS
Community Resources,Misc expenses,01/19/2018,106.96,Open Space Fund,"Coffee, plastic ware & cleaner",KING SOOPERS #0127
Community Resources,Misc expenses,01/19/2018,214.79,General Fund,Drinks for the CR Christmas Pa,KING SOOPERS #0127
Community Resources,Office furn & equip-non cap,01/19/2018,97.78,"Heritage, Culture & Arts Fund",2017 holiday decor supplies,HOBBY-LOBBY #0196
Community Resources,Office furn & equip-non cap,01/19/2018,495.00,"Heritage, Culture & Arts Fund",Employee Desk Equipment,AMAZON.COM
Community Resources,Office furn & equip-non cap,01/19/2018,273.64,"Heritage, Culture & Arts Fund",Holiday Decorations Theater &,HOBBY-LOBBY
Community Resources,Office furn & equip-non cap,01/19/2018,120.94,"Heritage, Culture & Arts Fund",Holiday Decorations Theater &,THE HOME DEPOT 1514
Community Resources,Office furn & equip-non cap,01/19/2018,-146.24,"Heritage, Culture & Arts Fund",Return of Holiday Decorations,HOBBY-LOBBY
Community Resources,Office furn & equip-non cap,01/19/2018,-65.96,"Heritage, Culture & Arts Fund",Return of broken Holiday Decor,THE HOME DEPOT 1514
Community Resources,Office furn & equip-non cap,01/19/2018,82.44,"Heritage, Culture & Arts Fund",Purchase of new Holiday Decora,THE HOME DEPOT 1514
Community Resources,Office furniture & equipment,01/19/2018,569.00,General Fund,Chair for PD Chair replacement,CONTRACT FURNISHINGS
Community Resources,Office furniture & equipment,01/19/2018,606.40,General Fund,Chair for PD Chair replacement,IN  GOVERNMENT CONTRACT S
Community Resources,Office furniture & equipment,01/19/2018,2534.41,General Fund,Inv 875794 Furniture Repair -,OFFICE SCAPES
Community Resources,Office supplies,01/19/2018,809.76,General Fund,Inv 453326 Compostable Bin Lin,IN  BIOBAG USA
Community Resources,Office supplies,01/19/2018,16.99,"Heritage, Culture & Arts Fund",Blue Sky 2018 Laminated Er - 1,AMAZON.COM
Community Resources,Office supplies,01/19/2018,63.42,General Fund,WRC supplies for  waiting area,HOBBY-LOBBY
Community Resources,Office supplies,01/19/2018,17.50,"Heritage, Culture & Arts Fund",Theater seat plate engraved -,THE PERSONAL TOUCH
Community Resources,Office supplies,01/19/2018,130.20,"Heritage, Culture & Arts Fund","Volunteer & Employee coffee, c",ROCKY MOUNTAIN BOTTLED WA
Community Resources,Office supplies,01/19/2018,134.80,"Heritage, Culture & Arts Fund","Sound booth printer, kleenex",STAPLES
Community Resources,Office supplies,01/19/2018,36.41,General Fund,Storage supplies for waiting a,WAL-MART #4284     SE2
Community Resources,Office supplies,01/19/2018,29.64,General Fund,Monthly wall calendar-CCC,STAPLES
Community Resources,Office supplies,01/19/2018,326.75,General Fund,"Wipes,Windex,Notepads,Calendar",STAPLES
Community Resources,Office supplies,01/19/2018,5.90,General Fund,Napkins-CCC,STAPLES
Community Resources,Office supplies,01/19/2018,83.61,General Fund,Printer services at 11th Ave,PB PAYMENT SERVICES
Community Resources,Office supplies,01/19/2018,81.47,Grants Fund (Oper & Capital),Printer services at Patt Compl,PB PAYMENT SERVICES
Community Resources,Office supplies,01/19/2018,83.61,Grants Fund (Oper & Capital),Printer services at 11th Ave,PB PAYMENT SERVICES
Community Resources,Office supplies,01/19/2018,171.40,General Fund,November 2017 Monthly Invoice,ROCKY MOUNTAIN BOTTLED WA
Community Resources,Office supplies,01/19/2018,215.40,Golf Course Enterprise Fund,coffee,ROCKY MOUNTAIN BOTTLED WA
Community Resources,Office supplies,01/19/2018,165.12,General Fund,Office Supplies,STAPLES
Community Resources,Office supplies,01/19/2018,63.18,General Fund,"liners, disinfectant",STAPLES
Community Resources,Office supplies,01/19/2018,59.01,General Fund,"laminating pouches, plates, re",STAPLES
Community Resources,Office supplies,01/19/2018,14.67,General Fund,masking tape,STAPLES
Community Resources,Office supplies,01/19/2018,120.10,General Fund,"can liners, nitrile gloves",STAPLES
Community Resources,Office supplies,01/19/2018,251.47,General Fund,"office chair, scissors",STAPLES
Community Resources,Office supplies,01/19/2018,79.98,General Fund,Paper for Classrooms,MARDEL #17
Community Resources,Office supplies,01/19/2018,311.86,Golf Course Enterprise Fund,coffee,DS WATERS
Community Resources,Office supplies,01/19/2018,54.65,General Fund,"batteries, scissors, tape",STAPLES
Community Resources,Office supplies,01/19/2018,11.70,General Fund,batteries,STAPLES
Community Resources,Office supplies,01/19/2018,148.20,Golf Course Enterprise Fund,coffee and monthly fee,ROCKY MOUNTAIN BOTTLED WA
Community Resources,Office supplies,01/19/2018,98.80,Golf Course Enterprise Fund,coffee and monthly fee,ROCKY MOUNTAIN BOTTLED WA
Community Resources,Office supplies,01/19/2018,14.99,Golf Course Enterprise Fund,office stapler,OFFICE DEPOT #1080
Community Resources,Office supplies,01/19/2018,10.00,Golf Course Enterprise Fund,office stapler,OFFICE DEPOT #1080
Community Resources,Office supplies,01/19/2018,277.61,"Heritage, Culture & Arts Fund","Paper towels, gloves, trash li",HILLYARD INC DENVER
Community Resources,Office supplies,01/19/2018,24.02,"Heritage, Culture & Arts Fund","ID lanyard, key bands, caribee",THE HOME DEPOT 1514
Community Resources,Office supplies,01/19/2018,20.23,"Heritage, Culture & Arts Fund",Water for volunteers/staff,ELDORADO ARTESIAN SPRINGS
Community Resources,Office supplies,01/19/2018,263.74,General Fund,"planner, coffee, napkins, cups",STAPLES
Community Resources,Office supplies,01/19/2018,8.59,General Fund,voicemail message log book.,OFFICE DEPOT #1080
Community Resources,Office supplies,01/19/2018,20.99,General Fund,Desk organizer for Programmer,STAPLES
Community Resources,Office supplies,01/19/2018,7.23,General Fund,Office Supplies,STAPLES
Community Resources,Office supplies,01/19/2018,123.62,General Fund,Office Supplies,GREEN PAPER PRODUCTS
Community Resources,Office supplies,01/19/2018,165.59,General Fund,Office Supplies,STAPLES
Community Resources,Office supplies,01/19/2018,109.34,General Fund,Office Supplies,STAPLES
Community Resources,Office supplies,01/19/2018,52.01,Open Space Fund,office and cleaning supplies f,STAPLES
Community Resources,Office supplies,01/19/2018,28.49,Open Space Fund,monthly planner for staff,STAPLES
Community Resources,Office supplies,01/19/2018,86.64,General Fund,"swim lesson toys, white board",AMAZON.COM
Community Resources,Office supplies,01/19/2018,28.47,"Heritage, Culture & Arts Fund","Labels, scratch pad for potter",STAPLES
Community Resources,Office supplies,01/19/2018,20.40,Golf Course Enterprise Fund,OFFICE SUPPLIES,OFFICE DEPOT #1080
Community Resources,Office supplies,01/19/2018,154.44,Golf Course Enterprise Fund,OFFICE SUPPLIES,WAL-MART
Community Resources,Office supplies,01/19/2018,3.99,General Fund,disputed charge,PM  PETPEOPLEMEET.COM
Community Resources,Office supplies,01/19/2018,26.97,General Fund,disputed charge,PM  PETPEOPLEMEET.COM
Community Resources,Office supplies,01/19/2018,69.98,General Fund,R.I.S.E. Office Supplies,AMAZON.COM
Community Resources,Office supplies,01/19/2018,750.00,General Fund,R.I.S.E. Office Supplies,VARIDESK
Community Resources,Office supplies,01/19/2018,7.50,General Fund,Name Badge for PCM staff,PEPPERDINES MARKING
Community Resources,Office supplies,01/19/2018,28.96,General Fund,Supplies for Winter Break Mult,STAPLES
Community Resources,Office supplies,01/19/2018,35.85,General Fund,Office Supplies for admin,AMAZON.COM
Community Resources,Office supplies,01/19/2018,165.01,General Fund,Lamination for staff calendar,FASTSIGNS
Community Resources,Office supplies,01/19/2018,443.24,"Heritage, Culture & Arts Fund",Office Supplies,AMAZON.COM
Community Resources,Office supplies,01/19/2018,49.99,"Heritage, Culture & Arts Fund",Staff Radio Earphone,AMAZON.COM
Community Resources,Office supplies,01/19/2018,7.83,"Heritage, Culture & Arts Fund","Computer Cable, Comm Rm.",AMAZON.COM
Community Resources,Operating supplies,01/19/2018,49.17,Grants Fund (Oper & Capital),"Pediasure, paper plates and la",WAL-MART
Community Resources,Operating supplies,01/19/2018,25.20,Grants Fund (Oper & Capital),Alarm watch for child use at P,AMAZON.COM
Community Resources,Operating supplies,01/19/2018,5.25,Grants Fund (Oper & Capital),Laminating for PACT activities,MARDEL #17
Community Resources,Operating supplies,01/19/2018,45.63,Grants Fund (Oper & Capital),Non toxic ice melt for sites,AMAZON.COM
Community Resources,Operating supplies,01/19/2018,-45.55,Grants Fund (Oper & Capital),Refund for Non toxic ice melt,AMAZON.COM
Community Resources,Operating supplies,01/19/2018,6.46,Grants Fund (Oper & Capital),Classroom supplies for Lasley,WAL-MART
Community Resources,Operating supplies,01/19/2018,28.35,Grants Fund (Oper & Capital),Vomit absorbant/deoderizer for,AMAZON.COM
Community Resources,Operating supplies,01/19/2018,35.45,Grants Fund (Oper & Capital),squeeze bottles and trays for,AMAZON.COM
Community Resources,Operating supplies,01/19/2018,45.55,Grants Fund (Oper & Capital),Non toxic ice melt for sites,AMAZON.COM
Community Resources,Operating supplies,01/19/2018,23.44,Grants Fund (Oper & Capital),laminating and wipe off marker,MARDEL #17
Community Resources,Operating supplies,01/19/2018,4.33,Grants Fund (Oper & Capital),Cotton gloves for eczema treat,AMAZON.COM
Community Resources,Operating supplies,01/19/2018,39.11,Grants Fund (Oper & Capital),Classroom labeling and adaptiv,LAKESHORE LEARNING #24
Community Resources,Operating supplies,01/19/2018,10.21,Grants Fund (Oper & Capital),FASTENR SETS BLK HRDWRE FA - 1,TARGET        00022251
Community Resources,Operating supplies,01/19/2018,34.27,Grants Fund (Oper & Capital),Theme Books,BARNES & NOBLE #2877
Community Resources,Operating supplies,01/19/2018,3.09,Grants Fund (Oper & Capital),Classroom Materials,WAL-MART
Community Resources,Operating supplies,01/19/2018,17.28,Grants Fund (Oper & Capital),Materials,WAL-MART
Community Resources,Operating supplies,01/19/2018,8.05,Grants Fund (Oper & Capital),PHS Health and Nutrition activ,KING SOOPERS #0127
Community Resources,Operating supplies,01/19/2018,15.71,Grants Fund (Oper & Capital),"PHS Health, Nutrition, and sen",KING SOOPERS #0127
Community Resources,Operating supplies,01/19/2018,47.13,Grants Fund (Oper & Capital),Sensory Exploration Socializat,WAL-MART
Community Resources,Operating supplies,01/19/2018,33.88,Grants Fund (Oper & Capital),Painting Socialization Dinner,WAL-MART
Community Resources,Operating supplies,01/19/2018,4.48,Grants Fund (Oper & Capital),Body Safety DInner,WAL-MART #4284     SE2
Community Resources,Operating supplies,01/19/2018,47.73,Grants Fund (Oper & Capital),Body Safety,WAL-MART #4284     SE2
Community Resources,Operating supplies,01/19/2018,5.49,Grants Fund (Oper & Capital),DanHS Gingerbread science proj,KING SOOPERS #0127
Community Resources,Operating supplies,01/19/2018,5.07,Grants Fund (Oper & Capital),DanHS Cooking/Food project,KING SOOPERS #0127
Community Resources,Operating supplies,01/19/2018,8.58,Grants Fund (Oper & Capital),DanHS Cooking project,KING SOOPERS #0127
Community Resources,Operating supplies,01/19/2018,4.84,Grants Fund (Oper & Capital),DanHS sensory table materials,WAL-MART #4284     SE2
Community Resources,Operating supplies,01/19/2018,89.34,General Fund,"VOA Dining Site supplies, ccc",WAL-MART #4284     SE2
Community Resources,Operating supplies,01/19/2018,125.88,Grants Fund (Oper & Capital),EHS PARENT ACTIVITY,MICHAELS #2104
Community Resources,Operating supplies,01/19/2018,54.17,Grants Fund (Oper & Capital),EHS PARENT ACTIVITY,AVANZA #117
Community Resources,Other general supplies,01/19/2018,69.00,General Fund,Fire Extinguisher Yearly Certi,EMPIRE FIRE & SAFETY
Community Resources,Other general supplies,01/19/2018,400.00,General Fund,Recreation-Senior luncheon,JOHNNYS NY PIZZA
Community Resources,Other general supplies,01/19/2018,82.38,General Fund,Floor mats-CCC,STAPLES
Community Resources,Other general supplies,01/19/2018,335.15,General Fund,"TP, paper towels, hand soap",WESTERN PAPER DISTRIBUTOR
Community Resources,Other general supplies,01/19/2018,243.97,General Fund,Decorations and prizes for Dec,OTOOLES GARDEN CENTERS #1
Community Resources,Other general supplies,01/19/2018,162.23,General Fund,"paper towels, soap, toilet pap",WESTERN PAPER DISTRIBUTOR
Community Resources,Other general supplies,01/19/2018,727.13,General Fund,"paper towels, soap, toilet pap",WESTERN PAPER DISTRIBUTOR
Community Resources,Other general supplies,01/19/2018,363.54,General Fund,Pole pruner poles and blades/r,R & M SALES CO INC
Community Resources,Other general supplies,01/19/2018,764.25,General Fund,"paper towels, soap, bath tissu",WESTERN PAPER DISTRIBUTOR
Community Resources,Other general supplies,01/19/2018,1176.78,Open Space Fund,Metal for new rules signs,METAL SUPERMARKETS
Community Resources,Other general supplies,01/19/2018,583.93,General Fund,"paper towels, bath tissue, soa",WESTERN PAPER DISTRIBUTOR
Community Resources,Other general supplies,01/19/2018,107.08,Open Space Fund,Metal for new rules sign,METAL SUPERMARKETS
Community Resources,Other general supplies,01/19/2018,31.99,General Fund,Cake for  Holiday Event-CCC,SAFEWAY STORE 00000414
Community Resources,Other general supplies,01/19/2018,38.97,General Fund,"Crackers,napkins,plates,candy",SAFEWAY STORE 00000414
Community Resources,Other general supplies,01/19/2018,406.41,General Fund,"paper towels, soap, hand sanit",WESTERN PAPER DISTRIBUTOR
Community Resources,Other general supplies,01/19/2018,242.90,General Fund,New Card Tables,AMAZON.COM
Community Resources,Other general supplies,01/19/2018,1716.94,General Fund,Camp Paha Supplies,FLAGHOUSE INC
Community Resources,Other general supplies,01/19/2018,644.59,General Fund,Camp Paha Supplies,FLAGHOUSE INC
Community Resources,Other general supplies,01/19/2018,97.96,General Fund,Food trays for holiday events,KING SOOPERS #0127
Community Resources,Other profess & tech services,01/19/2018,1980.00,Golf Course Enterprise Fund,wood chipping to compost pile,SAVATREE/DEERTECH/AUTUMN
Community Resources,Other profess & tech services,01/19/2018,1320.00,Golf Course Enterprise Fund,wood chipping to compost pile,SAVATREE/DEERTECH/AUTUMN
Community Resources,Other profess & tech services,01/19/2018,150.00,General Fund,PSC - Pest Control,SPRAGUE PEST SOLUTIONS
Community Resources,Other profess & tech services,01/19/2018,72.00,General Fund,Bathroom Sanitation LMCT,FIKES DENVER INC
Community Resources,Other profess & tech services,01/19/2018,1128.00,General Fund,R.I.S.E. Special Olympics Bowl,BRUNSWICK ZONE-GREEN M
Community Resources,Other profess & tech services,01/19/2018,118.50,General Fund,CBI Civil ID Fingerprint proce,CO DEPT OF PUBLIC
Community Resources,Other profess & tech services,01/19/2018,532.15,General Fund,County permit fee for installa,FAIRGROUNDS
Community Resources,Other profess & tech services,01/19/2018,145.00,General Fund,R.I.S.E. Paha ID Badge Softwar,RMGPA.ORG
Community Resources,Other profess & tech services,01/19/2018,1425.00,General Fund,Fall Camp Invoice,PLAY-WELL TEKNOLOGIES
Community Resources,Other profess & tech services,01/19/2018,248.75,General Fund,Carmody indoor pool UV wiper m,SQ  AQUATIC CHEMICA
Community Resources,Other profess & tech services,01/19/2018,363.40,General Fund,GMRC pool heater pump bearing,SQ  AQUATIC CHEMICA
Community Resources,Other profess & tech services,01/19/2018,230.65,General Fund,Carmody indoor pool UV unit &,SQ  AQUATIC CHEMICA
Community Resources,Other profess & tech services,01/19/2018,566.85,General Fund,Carmody Outdoor Pool auto-fill,SQ  AQUATIC CHEMICA
Community Resources,Other profess & tech services,01/19/2018,1344.67,General Fund,GMRC pool heater recirculation,SQ  AQUATIC CHEMICA
Community Resources,Other profess & tech services,01/19/2018,2904.21,General Fund,Carmody indoor pool UV unit ma,SQ  AQUATIC CHEMICA
Community Resources,Other profess & tech services,01/19/2018,150.00,General Fund,ASL Interpreter,ROSE SIGN LANGUAGE
Community Resources,Other profess & tech services,01/19/2018,150.00,General Fund,ASL Interpreter,ROSE SIGN LANGUAGE
Community Resources,Other profess & tech services,01/19/2018,150.00,General Fund,ASL Interpreter,ROSE SIGN LANGUAGE
Community Resources,Other profess & tech services,01/19/2018,900.00,General Fund,ASL Interpreter,ROSE SIGN LANGUAGE
Community Resources,Other profess & tech services,01/19/2018,835.00,"Heritage, Culture & Arts Fund",Event Supplies: Tent replaceme,KD KANOPY
Community Resources,Other profess & tech services,01/19/2018,64.52,"Heritage, Culture & Arts Fund",Replacement Beacon Battery,PORTABLE POWER SYSTEMS
Community Resources,Other profess & tech services,01/19/2018,118.75,"Heritage, Culture & Arts Fund",Games for community events,AMAZON.COM
Community Resources,Other profess & tech services,01/19/2018,233.60,"Heritage, Culture & Arts Fund",Games for community events,AMAZON.COM
Community Resources,Other profess & tech services,01/19/2018,407.93,"Heritage, Culture & Arts Fund",Games for community events,AMAZON.COM
Community Resources,Other profess & tech services,01/19/2018,35.00,General Fund,Nugget Skill Challenge Host,COLORADO PARKS & RECREATI
Community Resources,Other profess & tech services,01/19/2018,55.20,Golf Course Enterprise Fund,monthly pest service,SVM TERMINIX INTL
Community Resources,Other profess & tech services,01/19/2018,36.80,Golf Course Enterprise Fund,monthly pest service,SVM TERMINIX INTL
Community Resources,Other profess & tech services,01/19/2018,1237.50,General Fund,Free Community Court Hours 201,LAKEWOOD PARK TENNIS CE
Community Resources,Other profess & tech services,01/19/2018,288.00,General Fund,Monthly payment to Les Mills f,LES MILLS WEST COAST I
Community Resources,Other profess & tech services,01/19/2018,2000.00,Golf Course Enterprise Fund,bat exclusion,SVM TERMINIX INTL
Community Resources,Other profess & tech services,01/19/2018,96.00,Golf Course Enterprise Fund,pest control,SVM TERMINIX INTL
Community Resources,Other profess & tech services,01/19/2018,90.00,Golf Course Enterprise Fund,tire recycling fee,AMERICAN TIRE EXCHANGE
Community Resources,Other profess & tech services,01/19/2018,54.00,Golf Course Enterprise Fund,tire recycling fee,AMERICAN TIRE EXCHANGE
Community Resources,Other profess & tech services,01/19/2018,36.00,Golf Course Enterprise Fund,tire recycling fee,AMERICAN TIRE EXCHANGE
Community Resources,Other profess & tech services,01/19/2018,25.00,"Heritage, Culture & Arts Fund",Background Screens - CR Contra,CHOICE SCREENING
Community Resources,Other profess & tech services,01/19/2018,123.00,General Fund,CR  Membership,VOLGISTICS INC
Community Resources,Other profess & tech services,01/19/2018,115.00,General Fund,Recycle,GFL ENVIRONMENTAL
Community Resources,Other profess & tech services,01/19/2018,136.00,"Heritage, Culture & Arts Fund",Artist Hotel Miwa Matreyek,SHERATON DENVER WEST
Community Resources,Other profess & tech services,01/19/2018,60.00,General Fund,ASP Carmody Trip,BELMAR ICE SKATING RINK
Community Resources,Other profess & tech services,01/19/2018,67.50,Grants Fund (Oper & Capital),ASP Creighton Trip,BELMAR ICE SKATING RINK
Community Resources,Other profess & tech services,01/19/2018,1976.00,"Heritage, Culture & Arts Fund",2018 Municipal Music License,SESAC INC
Community Resources,Other profess & tech services,01/19/2018,35.00,General Fund,Music Services-CCC,JAMES A KURTY
Community Resources,Other profess & tech services,01/19/2018,35.00,General Fund,Music Services-CCC,JAMES A KURTY
Community Resources,Other profess & tech services,01/19/2018,216.46,Open Space Fund,water for shop,DS WATERS
Community Resources,Other profess & tech services,01/19/2018,70.00,General Fund,Recycle,GFL ENVIRONMENTAL
Community Resources,Other property services,01/19/2018,170.92,General Fund,Building Maintenance,SQ  BEVERLY HILLS GLASS R
Community Resources,Other property services,01/19/2018,865.19,Open Space Fund,Building Maintenance,UNTD RNTLS 180214
Community Resources,Other property services,01/19/2018,88.40,General Fund,Nov pest control,SPRAGUE PEST SOLUTIONS
Community Resources,Other property services,01/19/2018,88.40,General Fund,Nov pest control,SPRAGUE PEST SOLUTIONS
Community Resources,Other property services,01/19/2018,88.40,General Fund,Nov pest control,SPRAGUE PEST SOLUTIONS
Community Resources,Other property services,01/19/2018,88.40,General Fund,Nov pest control,SPRAGUE PEST SOLUTIONS
Community Resources,Other property services,01/19/2018,110.00,General Fund,LHC VISITOR CTR- 199176 overti,LAKEWOOD PLUMBING LLC
Community Resources,Other property services,01/19/2018,365.00,General Fund,Fox Hollow GC 201412 repairs t,BUILDING TECHNOLOGY SYSTEMS
Community Resources,Other property services,01/19/2018,997.00,General Fund,Fox Hollow GC 200977 repairs t,BUILDING TECHNOLOGY SYSTEMS
Community Resources,Other property services,01/19/2018,495.00,General Fund,Fox Hollow GC 201452 repairs t,BUILDING TECHNOLOGY SYSTEMS
Community Resources,Other property services,01/19/2018,1312.50,General Fund,CAR -POOL 198550camera pool dr,PRO PIPE SERVICES 61
Community Resources,Other property services,01/19/2018,160.00,General Fund,CLEMENTS- 200979 cabled drain,SQ  SNAPPY SEWER SERVICE
Community Resources,Other property services,01/19/2018,360.00,General Fund,CLEMENTS -200979 cabled drain,SQ  SNAPPY SEWER SERVICE
Community Resources,Other property services,01/19/2018,2430.00,General Fund,GMRC - Mteal Awing along south,THE ROOF GUYS INC
Community Resources,Other property services,01/19/2018,625.00,General Fund,Carmody - Gutter at front Entr,THE ROOF GUYS INC
Community Resources,Other property services,01/19/2018,630.00,General Fund,"Foxhollow FA testing, annual t",AEGIS LIFE AND FIRE SAFET
Community Resources,Other property services,01/19/2018,196.35,General Fund,Civic South - Hirsch Panel bat,BEACON COMMUNICATIONS
Community Resources,Other property services,01/19/2018,3862.00,General Fund,PSC - Garage Gate Replacement,DOOR SPECIALTIES
Community Resources,Other property services,01/19/2018,2500.00,General Fund,Clements - sewer replacement,THE ELITE PIPE MD LLC
Community Resources,Other property services,01/19/2018,1724.80,General Fund,PSC - Garage Door repair,MINER SOUTHWEST LLC
Community Resources,Other services,01/19/2018,72.00,General Fund,Clean Up Yard Signs,BANNER SIGNS & DECALS
Community Resources,Other services,01/19/2018,24.00,General Fund,Dec water service,AQUA SERVE
Community Resources,Other small tools & equipment,01/19/2018,80.50,Open Space Fund,Flag pole rope with wire cente,HOUSE OF FLAGS
Community Resources,Other small tools & equipment,01/19/2018,600.00,Golf Course Enterprise Fund,used reel grinder,L.L. JOHNSON DIST
Community Resources,Other small tools & equipment,01/19/2018,400.00,Golf Course Enterprise Fund,used reel grinder,L.L. JOHNSON DIST
Community Resources,Other small tools & equipment,01/19/2018,2258.43,General Fund,Stump grinder barricades and c,TREE STUFF.COM
Community Resources,Other small tools & equipment,01/19/2018,-224.99,General Fund,Credit,TREE STUFF.COM
Community Resources,Other small tools & equipment,01/19/2018,16.99,Open Space Fund,Plunger for restroom,ACE HDWE OF JEWELL SQ
Community Resources,Other small tools & equipment,01/19/2018,49.98,General Fund,105'' blade for wood working p,ROC ROCKLER WDWRK HDW
Community Resources,Other small tools & equipment,01/19/2018,14.99,General Fund,Sanding belt for woodworking p,ROC ROCKLER WDWRK HDW
Community Resources,Other small tools & equipment,01/19/2018,27.96,General Fund,Adhesive sanding disc for wood,ROCKLER
Community Resources,Other small tools & equipment,01/19/2018,129.27,Golf Course Enterprise Fund,orbital reciprocal saw,LOWES #01903
Community Resources,Other small tools & equipment,01/19/2018,510.50,Open Space Fund,Replacement goal caps - Parks,CHURCHICH RECREATION LLC
Community Resources,Other small tools & equipment,01/19/2018,990.58,Open Space Fund,Replacement playground part -,MIRACLE RECREATIO01 OF 01
Community Resources,Other small tools & equipment,01/19/2018,51.23,General Fund,Wire Shelf,THE HOME DEPOT 1514
Community Resources,Other small tools & equipment,01/19/2018,25.97,Open Space Fund,Sockets for plow solenoids,ACE HDWE OF JEWELL SQ
Community Resources,Other small tools & equipment,01/19/2018,290.55,Open Space Fund,Hydraulic oil pre3ssure kit,AMAZON.COM
Community Resources,Other small tools & equipment,01/19/2018,470.20,Open Space Fund,Transfer pump for waste oil ta,WW GRAINGER 064
Community Resources,Other small tools & equipment,01/19/2018,54.00,Open Space Fund,Engine leak down tester,AMAZON.COM
Community Resources,Other small tools & equipment,01/19/2018,533.27,General Fund,2 ladders,WW GRAINGER 064
Community Resources,Other small tools & equipment,01/19/2018,122.98,Open Space Fund,Hand tools - Belmar Park,THE HOME DEPOT 1514
Community Resources,Other small tools & equipment,01/19/2018,24.99,Open Space Fund,Wood Chisel - Memorial bench p,ACE HDWE OF JEWELL SQ
Community Resources,Other small tools & equipment,01/19/2018,1289.00,"Heritage, Culture & Arts Fund",paint shaker and lid press,MAYER PAINT EQUIPMENT
Community Resources,Other small tools & equipment,01/19/2018,196.29,"Heritage, Culture & Arts Fund",Safety supplies,WW GRAINGER 064
Community Resources,Other small tools & equipment,01/19/2018,82.62,Open Space Fund,Respirators - Addenbrooke Park,THE HOME DEPOT 1514
Community Resources,Other small tools & equipment,01/19/2018,210.00,Open Space Fund,Memorial bench plaques - Belma,FORUM ENGRAVING COMPANY
Community Resources,Other small tools & equipment,01/19/2018,379.40,"Heritage, Culture & Arts Fund",Staff T'Shirts,SUPER TEES
Community Resources,Other small tools & equipment,01/19/2018,4.96,"Heritage, Culture & Arts Fund",Curtain Rod for hanging new Wi,WAL-MART
Community Resources,Other small tools & equipment,01/19/2018,99.99,"Heritage, Culture & Arts Fund",Printer for Control Booth,STAPLES
Community Resources,Other small tools & equipment,01/19/2018,-99.99,"Heritage, Culture & Arts Fund",Return printer for Control Boo,STAPLES
Community Resources,Photo supplies,01/19/2018,29.98,Golf Course Enterprise Fund,Holiday cards for crew.,WALGREENS
Community Resources,Plumb. and elect. supplies,01/19/2018,6.74,General Fund,PAT- Dishwasher connection,THE HOME DEPOT 1514
Community Resources,Plumb. and elect. supplies,01/19/2018,58.33,General Fund,Civic South- Drinking Fountain,RSD 72
Community Resources,Plumb. and elect. supplies,01/19/2018,12.98,General Fund,Civic North- Batteries,THE HOME DEPOT 1514
Community Resources,Plumb. and elect. supplies,01/19/2018,122.18,General Fund,FLT- 1 1/2  copper coupling an,WATER SYSTEMS INC
Community Resources,Plumb. and elect. supplies,01/19/2018,88.08,General Fund,"LAS- Kit. Faucet and stops, su",THE HOME DEPOT 1514
Community Resources,Plumb. and elect. supplies,01/19/2018,43.77,General Fund,PSC- 3/4 copper caps and cutte,WATER SYSTEMS INC
Community Resources,Plumb. and elect. supplies,01/19/2018,8.78,General Fund,Clements- 4 ‘ C/O Cap,THE HOME DEPOT 1514
Community Resources,Plumb. and elect. supplies,01/19/2018,21.26,General Fund,WH- Waste interseptor Fittings,THE HOME DEPOT 1514
Community Resources,Plumb. and elect. supplies,01/19/2018,140.75,General Fund,WH- Faucet and spout,PARK SUPPLY OF AMERICA IN
Community Resources,Plumb. and elect. supplies,01/19/2018,53.15,General Fund,STONE- 3/4 t&p valve and drain,THE HOME DEPOT 1514
Community Resources,Plumb. and elect. supplies,01/19/2018,11.41,General Fund,CAR- 15ft hose and zip ties,THE HOME DEPOT 1514
Community Resources,Plumb. and elect. supplies,01/19/2018,6.82,General Fund,Truck Stock- P- Traps,THE HOME DEPOT 1514
Community Resources,Plumb. and elect. supplies,01/19/2018,639.50,General Fund,Carmody- pole light adapters,CONSERVE A WATT-PAY TR
Community Resources,Plumb. and elect. supplies,01/19/2018,984.80,General Fund,BCLP- wall packs,CONSERVE A WATT-PAY TR
Community Resources,Plumb. and elect. supplies,01/19/2018,1598.75,General Fund,Carmody rec- pole  lights,CONSERVE A WATT-PAY TR
Community Resources,Plumb. and elect. supplies,01/19/2018,129.84,General Fund,"PSC, courts,surge protection,",THE HOME DEPOT 1514
Community Resources,Plumb. and elect. supplies,01/19/2018,189.96,General Fund,"Link, HPS lamps, for outside s",CONSERVE A WATT-PAY TR
Community Resources,Plumb. and elect. supplies,01/19/2018,32.45,General Fund,"BCLP, LED lamps",LOWES #01903
Community Resources,Plumb. and elect. supplies,01/19/2018,2500.00,Open Space Fund,Building Maintenance,CONSERVE A WATT-PAY TR
Community Resources,Postage & delivery,01/19/2018,662.45,"Heritage, Culture & Arts Fund",HCA-Classes Winter/Spring,COLORADO DATA MAIL INC
Community Resources,Postage & delivery,01/19/2018,24.71,Golf Course Enterprise Fund,SHIPPING CHARGES,UPS 0000YR7488
Community Resources,Postage & delivery,01/19/2018,7.33,Golf Course Enterprise Fund,SHIPPING CHARGES,UPS 0000YR7488
Community Resources,Postage & delivery,01/19/2018,7.33,Golf Course Enterprise Fund,SHIPPING CHARGES,UPS 0000YR7488
Community Resources,"Printing, copying & binding",01/19/2018,2000.00,"Heritage, Culture & Arts Fund",CC Winter Classes,THE PUBLISHING HOUSE
Community Resources,"Printing, copying & binding",01/19/2018,19245.00,General Fund,CC Winter 2018,THE PUBLISHING HOUSE
Community Resources,Promotional expense,01/19/2018,32.45,General Fund,Employee Recognition,KING SOOPERS #0127
Community Resources,Promotional expense,01/19/2018,10.77,General Fund,Employee Recognition,KING SOOPERS #0127
Community Resources,Promotional expense,01/19/2018,37.97,General Fund,employee appreciation,WHOLEFDS BMR 10218
Community Resources,Promotional expense,01/19/2018,155.04,Golf Course Enterprise Fund,BALL MARKER GIVEAWAYS,GT GOLF SUPPLIES
Community Resources,Promotional expense,01/19/2018,637.50,Golf Course Enterprise Fund,STAFF XMAS PARTY,THE DEN AT FOX HOLLOW
Community Resources,Promotional expense,01/19/2018,637.50,Golf Course Enterprise Fund,STAFF XMAS PARTY,THE DEN AT FOX HOLLOW
Community Resources,Promotional expense,01/19/2018,70.62,Golf Course Enterprise Fund,STAFF LUNCH,THE OLIVE GARD00014860
Community Resources,Promotional expense,01/19/2018,50.00,General Fund,Staff recognition - admin,AMAZON.COM
Community Resources,Recreation equipment-non cap,01/19/2018,8.60,"Heritage, Culture & Arts Fund",Volunteer Uniform,AMAZON.COM
Community Resources,Recreation equipment-non cap,01/19/2018,730.20,"Heritage, Culture & Arts Fund",Volunteer Uniforms,UNIFORMAL WEARHOUSE
Community Resources,Recreation equipment-non cap,01/19/2018,12.95,"Heritage, Culture & Arts Fund",Volunteer Uniforms,UNIFORMAL WEARHOUSE
Community Resources,Recreation equipment-non cap,01/19/2018,687.48,"Heritage, Culture & Arts Fund",Display signs for rentals Empo,DISPLAYS 2 GO
Community Resources,Recreation equipment-non cap,01/19/2018,100.00,"Heritage, Culture & Arts Fund",LCC Equipment-Stanchions/cart,THE TAMIS CORPORATION
Community Resources,Recreation equipment-non cap,01/19/2018,3202.00,"Heritage, Culture & Arts Fund",LCC Equipment-Stanchions/cart,THE TAMIS CORPORATION
Community Resources,Recreational supplies,01/19/2018,27.50,General Fund,Bag valve masks for pool area,THE LIFEGUARD STORE
Community Resources,Recreational supplies,01/19/2018,13.75,General Fund,Bag valve mask for pool area,THE LIFEGUARD STORE
Community Resources,Recreational supplies,01/19/2018,44.99,General Fund,sympathy flowers for Christa,KING SOOPERS #0127
Community Resources,Recreational supplies,01/19/2018,9.29,General Fund,sanitizing wipes for face shie,AMAZON.COM
Community Resources,Recreational supplies,01/19/2018,21.21,General Fund,face shield for pool area,AMAZON.COM
Community Resources,Recreational supplies,01/19/2018,21.21,General Fund,face shield for pool area,AMAZON.COM
Community Resources,Recreational supplies,01/19/2018,21.23,General Fund,face shield for pool area,AMAZON.COM
Community Resources,Recreational supplies,01/19/2018,10.24,General Fund,storage bin for respirators in,AMAZON.COM
Community Resources,Recreational supplies,01/19/2018,10.24,General Fund,storage bin for respirators in,AMAZON.COM
Community Resources,Recreational supplies,01/19/2018,10.24,General Fund,storage bin for respirators in,AMAZON.COM
Community Resources,Recreational supplies,01/19/2018,10.27,General Fund,storage bin for respirators in,AMAZON.COM
Community Resources,Recreational supplies,01/19/2018,127.11,General Fund,Water Safety Instructor Books,RED CROSS.ORG STORE
Community Resources,Recreational supplies,01/19/2018,42.97,General Fund,Underwater Camera for swim and,AMAZON.COM
Community Resources,Recreational supplies,01/19/2018,44.25,General Fund,Bag valve masks and backstroke,THE LIFEGUARD STORE
Community Resources,Recreational supplies,01/19/2018,27.50,General Fund,Bag valve masks for pool area,THE LIFEGUARD STORE
Community Resources,Recreational supplies,01/19/2018,27.50,General Fund,Bag valve masks for pool area,THE LIFEGUARD STORE
Community Resources,Recreational supplies,01/19/2018,27.50,General Fund,Bag valve masks for pool area,THE LIFEGUARD STORE
Community Resources,Recreational supplies,01/19/2018,27.50,General Fund,Bag valve masks for pool area,THE LIFEGUARD STORE
Community Resources,Recreational supplies,01/19/2018,23.96,"Heritage, Culture & Arts Fund",Yarn Holiday Ornaments class s,HOBBY-LOBBY #0196
Community Resources,Recreational supplies,01/19/2018,478.00,General Fund,"hand sanitizer, liners, facial",WESTERN PAPER DISTRIBUTOR
Community Resources,Recreational supplies,01/19/2018,11.56,General Fund,"flour ,for moon sand and candy",KING SOOPERS #0127
Community Resources,Recreational supplies,01/19/2018,61.21,General Fund,"t shirts, art supplies for dec",HOBBY-LOBBY
Community Resources,Recreational supplies,01/19/2018,100.00,General Fund,Winter break field trip deposi,JUMPSTREET 9
Community Resources,Recreational supplies,01/19/2018,18.97,General Fund,Before and After care reward p,SAFEWAY STORE 00000414
Community Resources,Recreational supplies,01/19/2018,32.26,General Fund,Winter Break supplies,WAL-MART
Community Resources,Recreational supplies,01/19/2018,45.62,General Fund,Before and  After care snacks,WAL-MART
Community Resources,Recreational supplies,01/19/2018,30.75,General Fund,coffee urn,AMAZON.COM
Community Resources,Recreational supplies,01/19/2018,59.54,General Fund,"batteries, clorox wipes",STAPLES
Community Resources,Recreational supplies,01/19/2018,3.30,General Fund,laminating,MARDEL #17
Community Resources,Recreational supplies,01/19/2018,5.10,General Fund,PACT Activity,DOLRTREE 2668 00026682
Community Resources,Recreational supplies,01/19/2018,3.35,General Fund,film developing,WALGREENS
Community Resources,Recreational supplies,01/19/2018,40.45,General Fund,padlocks,STAPLES
Community Resources,Recreational supplies,01/19/2018,30.69,Grants Fund (Oper & Capital),Snacks for MSSP,WAL-MART
Community Resources,Recreational supplies,01/19/2018,2515.45,General Fund,Basketball Hoops for Youth Spo,BSN SPORT SUPPLY GROUP
Community Resources,Recreational supplies,01/19/2018,23.94,General Fund,Whistles for officials,DICK'S CLOTHING&SPORTING
Community Resources,Recreational supplies,01/19/2018,122.27,Grants Fund (Oper & Capital),Snacks for MSSP,WAL-MART
Community Resources,Recreational supplies,01/19/2018,224.79,General Fund,exercise mats,SPORTSMITH FITNESS PARTS
Community Resources,Recreational supplies,01/19/2018,469.15,General Fund,floor mats,CONSOLIDATED PLASTICS CO
Community Resources,Recreational supplies,01/19/2018,53.97,General Fund,exercise balls,AMAZON.COM
Community Resources,Recreational supplies,01/19/2018,75.10,General Fund,fit ball w/legs,AMAZON.COM
Community Resources,Recreational supplies,01/19/2018,69.38,General Fund,R.I.S.E. December Dinner Dance,KING SOOPERS #0127
Community Resources,Recreational supplies,01/19/2018,17.88,General Fund,wall clock,WAL-MART
Community Resources,Recreational supplies,01/19/2018,293.34,General Fund,hangers,IN  GALLERY SYSTEM ART DI
Community Resources,Recreational supplies,01/19/2018,27.74,General Fund,"super glue,putty, washers",THE HOME DEPOT 1514
Community Resources,Recreational supplies,01/19/2018,815.00,General Fund,skierg,CONCEPT 2 CTS INC
Community Resources,Recreational supplies,01/19/2018,141.66,General Fund,R.I.S.E. Olde Golden Christmas,WOODY'S PIZZA OF GOLDEN
Community Resources,Recreational supplies,01/19/2018,193.49,General Fund,R.I.S.E. December Dinner Dance,WAL-MART
Community Resources,Recreational supplies,01/19/2018,37.88,General Fund,R.I.S.E. December Dinner Dance,WAL-MART
Community Resources,Recreational supplies,01/19/2018,37.45,General Fund,R.I.S.E. Dance Supplies,HOBBY-LOBBY
Community Resources,Recreational supplies,01/19/2018,105.39,General Fund,R.I.S.E. December Dinner Dance,PARTY CITY #472
Community Resources,Recreational supplies,01/19/2018,34.97,General Fund,dolly,THE HOME DEPOT 1514
Community Resources,Recreational supplies,01/19/2018,10.47,General Fund,duster,THE HOME DEPOT 1514
Community Resources,Recreational supplies,01/19/2018,69.14,General Fund,"gloves, swiffer, cups",STAPLES
Community Resources,Recreational supplies,01/19/2018,24.57,"Heritage, Culture & Arts Fund",2017 holiday wkshp supplies,MICHAELS #2104
Community Resources,Recreational supplies,01/19/2018,116.96,"Heritage, Culture & Arts Fund",2017 holiday/outreach supplies,WAL-MART
Community Resources,Recreational supplies,01/19/2018,12.57,"Heritage, Culture & Arts Fund",2017 holiday wkshp supplies,JO-ANN FABRIC #1095
Community Resources,Recreational supplies,01/19/2018,63.37,"Heritage, Culture & Arts Fund",2017 holiday wkshp supplies,JO-ANN FABRIC #1095
Community Resources,Recreational supplies,01/19/2018,19.97,General Fund,Trash can to store ninja climb,THE HOME DEPOT 1514
Community Resources,Recreational supplies,01/19/2018,17.30,General Fund,Beach balls for multisport cam,AMAZON.COM
Community Resources,Recreational supplies,01/19/2018,3.97,General Fund,Sand for obstacle course bases,THE HOME DEPOT 1514
Community Resources,Recreational supplies,01/19/2018,20.15,General Fund,Parent Activity UCC,KING SOOPERS #0127
Community Resources,Recreational supplies,01/19/2018,137.93,General Fund,CD player,AMAZON.COM
Community Resources,Recreational supplies,01/19/2018,57.84,General Fund,"plastic hanger strap, power wa",THE HOME DEPOT 1514
Community Resources,Recreational supplies,01/19/2018,38.97,Open Space Fund,rats to feed visitor center sn,PETCO 488     63504880
Community Resources,Recreational supplies,01/19/2018,125.96,Open Space Fund,catch pole to help control ani,TOMAHAWK LIVE TRAP
Community Resources,Recreational supplies,01/19/2018,10.97,General Fund,Extension cord,THE HOME DEPOT 1514
Community Resources,Recreational supplies,01/19/2018,227.84,General Fund,Cleaning supplies,WAL-MART
Community Resources,Recreational supplies,01/19/2018,10.97,General Fund,Beverages for CARA dive party,KING SOOPERS #0127
Community Resources,Recreational supplies,01/19/2018,11.91,General Fund,Wire brushes for pump room,AMAZON.COM
Community Resources,Recreational supplies,01/19/2018,75.40,General Fund,Diving bricks for Lifeguard cl,THE LIFEGUARD STORE
Community Resources,Recreational supplies,01/19/2018,6.73,General Fund,"PHS Health, Nutrition, and sen",KING SOOPERS #0127
Community Resources,Recreational supplies,01/19/2018,3.45,General Fund,PHS Health and Nutrition activ,KING SOOPERS #0127
Community Resources,Recreational supplies,01/19/2018,983.98,General Fund,Youth Sports tabletop scoreboa,BSN SPORT SUPPLY GROUP
Community Resources,Recreational supplies,01/19/2018,151.09,General Fund,SAS Snacks,WAL-MART
Community Resources,Recreational supplies,01/19/2018,757.61,General Fund,SAS Winter Break Craft Supplie,WAL-MART
Community Resources,Recreational supplies,01/19/2018,100.00,General Fund,SAS Winter Break Field Trip,JUMPSTREET 9
Community Resources,Recreational supplies,01/19/2018,206.67,General Fund,SAS Craft Supplies,WAL-MART
Community Resources,Recreational supplies,01/19/2018,155.25,General Fund,SAS Winter Break Lunch for Kid,PAPA JOHN'S 01046
Community Resources,Recreational supplies,01/19/2018,104.67,General Fund,"Hose and nozzle, nuts/bolts, c",GREEN MOUNTAIN ACE HARDWARE
Community Resources,Recreational supplies,01/19/2018,38.46,"Heritage, Culture & Arts Fund",Lakewood Lights Décor,THE HOME DEPOT 1514
Community Resources,Recreational supplies,01/19/2018,117.72,General Fund,Pizza for CARA Dive end of sea,LITTLE CAESARS 101
Community Resources,Recreational supplies,01/19/2018,63.99,"Heritage, Culture & Arts Fund",Supplies for drawing studio-sk,H R MEININGER
Community Resources,Recreational supplies,01/19/2018,93.02,"Heritage, Culture & Arts Fund",General Event Supplies repleni,THE HOME DEPOT 1514
Community Resources,Recreational supplies,01/19/2018,37.05,General Fund,RISE Program Supplies,STEAMERS COFFEEHOUSE
Community Resources,Recreational supplies,01/19/2018,203.40,General Fund,R.I.S.E. December Dinner Dance,WAL-MART
Community Resources,Recreational supplies,01/19/2018,171.72,General Fund,R.I.S.E. Friends of Paha Ackno,BAR LOUIE LAKEWOOD
Community Resources,Recreational supplies,01/19/2018,130.88,General Fund,R.I.S.E. Dance Supplies,AMAZON.COM
Community Resources,Recreational supplies,01/19/2018,146.74,General Fund,Supplies for Winter Break,WAL-MART #4284     SE2
Community Resources,Recreational supplies,01/19/2018,31.25,Open Space Fund,Solstice Lanterns,AMAZON.COM
Community Resources,Recreational supplies,01/19/2018,4.50,Open Space Fund,Solstice Lanterns,WAL-MART
Community Resources,Recreational supplies,01/19/2018,140.00,General Fund,BCLP storage containers,HAULAWAY STORAGE CONTA
Community Resources,Recreational supplies,01/19/2018,94.94,"Heritage, Culture & Arts Fund",Hand truck for kiln yard,THE HOME DEPOT 1514
Community Resources,Recreational supplies,01/19/2018,25.97,General Fund,Copper tubing repair supplies,THE HOME DEPOT 1514
Community Resources,Recreational supplies,01/19/2018,357.50,General Fund,Replacement lap counters for s,THE LIFEGUARD STORE
Community Resources,Recreational supplies,01/19/2018,225.00,General Fund,Digiquatics November monthly s,WAV DIGIQUATICS
Community Resources,Recreational supplies,01/19/2018,185.00,General Fund,GMRC replacement hydraulic dir,PAYPAL INC
Community Resources,Recreational supplies,01/19/2018,225.00,General Fund,Digiquatics December monthly s,WAV DIGIQUATICS
Community Resources,Recreational supplies,01/19/2018,107.95,"Heritage, Culture & Arts Fund",Lamps for weaving studio,SP   SOTHEREUSA LLC
Community Resources,Recreational supplies,01/19/2018,234.24,"Heritage, Culture & Arts Fund","Printer, ink for weaving studi",BEST BUY MHT  00002105
Community Resources,Recreational supplies,01/19/2018,249.75,General Fund,Shower caddies for 2018 Year E,AMAZON.COM
Community Resources,Recreational supplies,01/19/2018,1.33,General Fund,Classroom Materials,WAL-MART
Community Resources,Recreational supplies,01/19/2018,1771.11,General Fund,Ninja Warrior Steps,FLAGHOUSE INC
Community Resources,Recreational supplies,01/19/2018,7.41,General Fund,Materials,WAL-MART
Community Resources,Recreational supplies,01/19/2018,585.09,General Fund,Climbing Wall Challenge Course,FLAGHOUSE INC
Community Resources,Recreational supplies,01/19/2018,14.69,General Fund,Theme Books,BARNES & NOBLE #2877
Community Resources,Recreational supplies,01/19/2018,4.37,General Fund,FASTENR SETS BLK HRDWRE FA - 1,TARGET        00022251
Community Resources,Recreational supplies,01/19/2018,10.79,"Heritage, Culture & Arts Fund",Lakewood Lights - Hook for Hol,OFFICE DEPOT #1080
Community Resources,Recreational supplies,01/19/2018,104.29,"Heritage, Culture & Arts Fund",Acetylene for jewelry studio,GENERAL AIR SERVICE ZUNI
Community Resources,Recreational supplies,01/19/2018,21.60,General Fund,Beverages for staff party,TARGET        00022251
Community Resources,Recreational supplies,01/19/2018,74.98,General Fund,Pizza for staff party,DOMINO'S 6209
Community Resources,Recreational supplies,01/19/2018,274.82,General Fund,Belts for Aqua Fitness,HYDRO-FIT INC
Community Resources,Recreational supplies,01/19/2018,243.88,General Fund,Noodles for Aqua Fitness,AMAZON.COM
Community Resources,Recreational supplies,01/19/2018,419.00,General Fund,Microphone headset replacement,PRO ACOUSTICS LLC
Community Resources,Recreational supplies,01/19/2018,188.96,General Fund,balance discs and half foam ro,AMAZON.COM
Community Resources,Recreational supplies,01/19/2018,855.72,General Fund,2 15ft Lakewood Recreation fla,CRESTLINE SPECIALTIES
Community Resources,Recreational supplies,01/19/2018,102.80,General Fund,yoga blankets,AMAZON.COM
Community Resources,Recreational supplies,01/19/2018,119.84,General Fund,yoga wedges,AMAZON.COM
Community Resources,Recreational supplies,01/19/2018,40.80,General Fund,Dumpster(s),WASTE MGMT WM EZPAY
Community Resources,Recreational supplies,01/19/2018,7.99,General Fund,ASP Carmody Supplies,KING SOOPERS #0127
Community Resources,Recreational supplies,01/19/2018,25.27,General Fund,ASP Carmody Supplies,SAFEWAY STORE 00000414
Community Resources,Recreational supplies,01/19/2018,34.65,Grants Fund (Oper & Capital),ASP Creighton  Supplies,SAFEWAY STORE 00000414
Community Resources,Recreational supplies,01/19/2018,37.02,General Fund,Childproof Outlet Covers/ Baby,AMAZON.COM
Community Resources,Recreational supplies,01/19/2018,149.99,General Fund,Evenflo Splash Mega Exersaucer,AMAZON.COM
Community Resources,Recreational supplies,01/19/2018,42.57,General Fund,Concept2 Rower Shock Cords,FITNESSREPAIRPARTS.COM
Community Resources,Recreational supplies,01/19/2018,-5.07,"Heritage, Culture & Arts Fund",Employee Clothing Refund,DISCOUNTMUGS.COM
Community Resources,Recreational supplies,01/19/2018,19.73,General Fund,Winter Break Craft Supplies,MICHAELS #2104
Community Resources,Recreational supplies,01/19/2018,5.82,General Fund,Winter Break Craft Supplies,TARGET        00022251
Community Resources,Recreational supplies,01/19/2018,41.13,General Fund,After Care Staff Certificate c,KING SOOPERS #0127
Community Resources,Recreational supplies,01/19/2018,57.58,General Fund,Winter Break Craft Supplies,MICHAELS #2104
Community Resources,Recreational supplies,01/19/2018,56.82,General Fund,After Care Snacks,WAL-MART
Community Resources,Recreational supplies,01/19/2018,85.04,General Fund,After Care Craft Supplies,WAL-MART
Community Resources,Recreational supplies,01/19/2018,12.18,General Fund,After Care Hot Chocolate Party,SAFEWAY STORE 00000414
Community Resources,Recreational supplies,01/19/2018,89.14,General Fund,After Care Snacks,WAL-MART
Community Resources,Recreational supplies,01/19/2018,111.51,General Fund,Winter Break Craft Supplies,WAL-MART
Community Resources,Recreational supplies,01/19/2018,2.25,General Fund,Laminating for PACT activities,MARDEL #17
Community Resources,Recreational supplies,01/19/2018,10.80,General Fund,Alarm watch for child use at P,AMAZON.COM
Community Resources,Recreational supplies,01/19/2018,125.00,General Fund,STAR books,SCHOLASTIC INC. KEY 6
Community Resources,Recreational supplies,01/19/2018,21.07,General Fund,"Pediasure, paper plates and la",WAL-MART
Community Resources,Recreational supplies,01/19/2018,25.50,General Fund,Laminating for UCC PACT activi,MARDEL #17
Community Resources,Recreational supplies,01/19/2018,16.76,General Fund,Classroom labeling and adaptiv,LAKESHORE LEARNING #24
Community Resources,Recreational supplies,01/19/2018,1.86,General Fund,Cotton gloves for eczema treat,AMAZON.COM
Community Resources,Recreational supplies,01/19/2018,10.04,General Fund,laminating and wipe off marker,MARDEL #17
Community Resources,Recreational supplies,01/19/2018,19.52,General Fund,Non toxic ice melt for sites,AMAZON.COM
Community Resources,Recreational supplies,01/19/2018,15.20,General Fund,squeeze bottles and trays for,AMAZON.COM
Community Resources,Recreational supplies,01/19/2018,12.15,General Fund,Vomit absorbant/deoderizer for,AMAZON.COM
Community Resources,Recreational supplies,01/19/2018,2.77,General Fund,Classroom supplies for Lasley,WAL-MART
Community Resources,Recreational supplies,01/19/2018,51.37,General Fund,Supplies for staff training,WAL-MART
Community Resources,Recreational supplies,01/19/2018,15.98,General Fund,Supplies for staff training,KING SOOPERS #0127
Community Resources,Recreational supplies,01/19/2018,-19.52,General Fund,Refund for Non toxic ice melt,AMAZON.COM
Community Resources,Recreational supplies,01/19/2018,19.56,General Fund,Non toxic ice melt for sites,AMAZON.COM
Community Resources,Recreational supplies,01/19/2018,53.78,General Fund,Cleaning Supplies for Lifeguar,TARGET        00022251
Community Resources,Recreational supplies,01/19/2018,40.80,General Fund,Dumpster(s),WASTE MGMT WM EZPAY
Community Resources,Recreational supplies,01/19/2018,5232.00,General Fund,ELLIPTICAL,PUSH PEDAL PULL
Community Resources,Rent - land & buildings,01/19/2018,290.00,General Fund,Car 25 Lease,GSA-FINANCE DIVISON
Community Resources,Rent - land & buildings,01/19/2018,290.00,General Fund,Car 25 Lease,GSA-FINANCE DIVISON
Community Resources,Repair & maintenance supplies,01/19/2018,53.97,Open Space Fund,Wire fence and fence pliers fo,GREEN MOUNTAIN ACE HARDWARE
Community Resources,Repair & maintenance supplies,01/19/2018,74.90,Open Space Fund,Parts for welding shop,ACE HDWE OF JEWELL SQ
Community Resources,Repair & maintenance supplies,01/19/2018,228.85,Open Space Fund,Hose parts for water trailers,ACE HDWE OF JEWELL SQ
Community Resources,Repair & maintenance supplies,01/19/2018,52.93,Open Space Fund,Parts for water tanks,CPS DISTRIBUTORS #18
Community Resources,Repair & maintenance supplies,01/19/2018,95.91,Open Space Fund,Netting for Forsberg tunnel,GREEN MOUNTAIN ACE HARDWARE
Community Resources,Repair & maintenance supplies,01/19/2018,118.80,Golf Course Enterprise Fund,gloves for fox hollow,FACTORY SURPLUS DISTRI
Community Resources,Repair & maintenance supplies,01/19/2018,836.00,General Fund,Tot seats for playground swing,IN  A TO Z RECREATION
Community Resources,Repair & maintenance supplies,01/19/2018,3568.00,General Fund,Replacement slides for Bonvue,CHILDREN S PLAYSTRUCTU
Community Resources,Repair & maintenance supplies,01/19/2018,1.98,Open Space Fund,Distilled water for Jesse (bat,SAFEWAY STORE 00000414
Community Resources,Repair & maintenance supplies,01/19/2018,2251.29,Open Space Fund,185 gallon waste oil tank,NPC NEW PIG CORP
Community Resources,Repair & maintenance supplies,01/19/2018,4300.00,Golf Course Enterprise Fund,"tee monuments for the links, l",COLORADO STONE COMPANY
Community Resources,Repair & maintenance supplies,01/19/2018,11.99,Golf Course Enterprise Fund,9 volt batteries,THE HOME DEPOT 1514
Community Resources,Repair & maintenance supplies,01/19/2018,7.99,Golf Course Enterprise Fund,9 volt batteries,THE HOME DEPOT 1514
Community Resources,Repair & maintenance supplies,01/19/2018,29.97,Golf Course Enterprise Fund,aa and aaa batteries for the s,LOWES #01903
Community Resources,Repair & maintenance supplies,01/19/2018,19.98,Golf Course Enterprise Fund,aa and aaa batteries for the s,LOWES #01903
Community Resources,Repair & maintenance supplies,01/19/2018,262.70,Open Space Fund,Paint for trash cans,SHERWIN WILLIAMS CO
Community Resources,Repair & maintenance supplies,01/19/2018,11.92,General Fund,Bolts and nuts for Sunset Park,GREEN MOUNTAIN ACE HARDWARE
Community Resources,Repair & maintenance supplies,01/19/2018,16.17,General Fund,Tape measure and hardware.,GREEN MOUNTAIN ACE HARDWARE
Community Resources,Repair & maintenance supplies,01/19/2018,131.24,General Fund,Dumping of debris from a vagra,FOOTHILLS LANDFILL
Community Resources,Repair & maintenance supplies,01/19/2018,131.24,General Fund,Dumping of debris from a vagra,FOOTHILLS LANDFILL
Community Resources,Repair & maintenance supplies,01/19/2018,85.00,General Fund,Hand loppers and PVC glue.,CPS DISTRIBUTORS #18
Community Resources,Repair & maintenance supplies,01/19/2018,130.85,General Fund,Materials for Richey Park hors,THE HOME DEPOT 1514
Community Resources,Repair & maintenance supplies,01/19/2018,37.97,Golf Course Enterprise Fund,2 tarps and packaging tape.  t,GREEN MOUNTAIN ACE HARDWARE
Community Resources,Repair & maintenance supplies,01/19/2018,27.00,Golf Course Enterprise Fund,50# bag of ice melt,CPS DISTRIBUTORS #18
Community Resources,Repair & maintenance supplies,01/19/2018,39.77,Golf Course Enterprise Fund,"tubing for sprayer repair, sha",GREEN MOUNTAIN ACE HARDWARE
Community Resources,Repair & maintenance supplies,01/19/2018,17.37,General Fund,DVD Player Cleaning Disc,AMAZON.COM
Community Resources,Repair & maintenance supplies,01/19/2018,19.98,General Fund,Microphone Clip,SWEETWATER SOUND
Community Resources,Repair & maintenance supplies,01/19/2018,133.64,Open Space Fund,Battery for Hotsy trailer,HENSLEY BATTERY & EL
Community Resources,Repair & maintenance supplies,01/19/2018,108.11,Open Space Fund,Seals for rebuilding plows,MASTERCRAFT TRUCK EQUI
Community Resources,Repair & maintenance supplies,01/19/2018,1.98,Open Space Fund,Distilled water for batteries,KING SOOPERS #0127
Community Resources,Repair & maintenance supplies,01/19/2018,84.60,Open Space Fund,Carburetor for MS200 T saw,BOBCAT OF THE ROCKIES
Community Resources,Repair & maintenance supplies,01/19/2018,59.53,Open Space Fund,Anchors for south crew,MSC/J&L INDUSTRIAL SUPPLY
Community Resources,Repair & maintenance supplies,01/19/2018,10.99,Open Space Fund,D cell batteries for the locat,ACE HDWE OF JEWELL SQ
Community Resources,Repair & maintenance supplies,01/19/2018,41.94,Golf Course Enterprise Fund,Cable ties for Christmas light,ACE HDWE OF JEWELL SQ
Community Resources,Repair & maintenance supplies,01/19/2018,27.99,General Fund,Concrete drill bits.,GREEN MOUNTAIN ACE HARDWARE
Community Resources,Repair & maintenance supplies,01/19/2018,20.94,General Fund,Tie downs and hand tool for tr,THE HOME DEPOT 1514
Community Resources,Repair & maintenance supplies,01/19/2018,385.97,General Fund,Trash pickers for the North cr,AM LEONARD
Community Resources,Repairs & maint - bldgs,01/19/2018,70.00,General Fund,Recycle,GFL ENVIRONMENTAL
Community Resources,Repairs & maint - bldgs,01/19/2018,70.00,General Fund,Recycle,GFL ENVIRONMENTAL
Community Resources,Repairs & maint - bldgs,01/19/2018,18.13,Golf Course Enterprise Fund,Den-chains for co2 tanks,ACE HDWE OF JEWELL SQ
Community Resources,Repairs & maint - bldgs,01/19/2018,1405.00,Golf Course Enterprise Fund,clubhouse glass,SQ  BEVERLY HILLS GLASS R
Community Resources,Repairs & maint - bldgs,01/19/2018,81.46,Grants Fund (Oper & Capital),Printer services at Patt Compl,PB PAYMENT SERVICES
Community Resources,Repairs & maint - equipment,01/19/2018,68.88,Golf Course Enterprise Fund,beverage cart locks,BISCO INDUSTRIES INC
Community Resources,Repairs & maint - equipment,01/19/2018,280.14,Golf Course Enterprise Fund,parts,GOLF TOURNAMENTS INC
Community Resources,Repairs & maint - equipment,01/19/2018,53.78,Golf Course Enterprise Fund,beverage cart -haulster bearin,WHISLER BEARING CO
Community Resources,Repairs & maint - equipment,01/19/2018,173.59,General Fund,Sewing Machine repair and main,ROCKY MOUNTAIN SEWING
Community Resources,Repairs & maint - equipment,01/19/2018,1175.00,General Fund,Refelt pool tables,BEST QUALITY BILLIARDS
Community Resources,Repairs & maint-motor vehicles,01/19/2018,36.25,"Heritage, Culture & Arts Fund",Keys and flat bed repair,COLORADO GOLF AND TURF IN
Community Resources,Repairs & maint-motor vehicles,01/19/2018,556.80,"Heritage, Culture & Arts Fund",golf cart batteries,HENSLEY BATTERY & EL
Community Resources,Repairs & maint-motor vehicles,01/19/2018,119.49,Golf Course Enterprise Fund,simplex grinder accessories,COLORADO GOLF AND TURF IN
Community Resources,Repairs & maint-motor vehicles,01/19/2018,79.66,Golf Course Enterprise Fund,simplex grinder accessories,COLORADO GOLF AND TURF IN
Community Resources,Repairs & maint-motor vehicles,01/19/2018,54.74,Golf Course Enterprise Fund,parts for maintenance carts,COLORADO GOLF AND TURF IN
Community Resources,Repairs & maint-motor vehicles,01/19/2018,36.50,Golf Course Enterprise Fund,parts for maintenance carts,COLORADO GOLF AND TURF IN
Community Resources,Repairs & maint-motor vehicles,01/19/2018,402.96,Golf Course Enterprise Fund,filter stock for winter overha,CARQUEST      01039320
Community Resources,Repairs & maint-motor vehicles,01/19/2018,268.64,Golf Course Enterprise Fund,filter stock for winter overha,CARQUEST      01039320
Community Resources,Repairs & maint-motor vehicles,01/19/2018,36.00,Golf Course Enterprise Fund,"vent covers for S-10, and thre",CARQUEST      01039320
Community Resources,Repairs & maint-motor vehicles,01/19/2018,24.00,Golf Course Enterprise Fund,"vent covers for S-10, and thre",CARQUEST      01039320
Community Resources,Repairs & maint-motor vehicles,01/19/2018,77.35,Golf Course Enterprise Fund,toro sprayer repair parts,PROFESSIONAL TREE AND TUR
Community Resources,Repairs & maint-motor vehicles,01/19/2018,51.56,Golf Course Enterprise Fund,toro sprayer repair parts,PROFESSIONAL TREE AND TUR
Community Resources,Repairs & maint-motor vehicles,01/19/2018,26.39,Golf Course Enterprise Fund,shop fastener supply,KIMBALL MIDWEST
Community Resources,Repairs & maint-motor vehicles,01/19/2018,17.59,Golf Course Enterprise Fund,shop fastener supply,KIMBALL MIDWEST
Community Resources,Repairs & maint-motor vehicles,01/19/2018,343.28,Golf Course Enterprise Fund,walkmower parts,L.L. JOHNSON DIST
Community Resources,Repairs & maint-motor vehicles,01/19/2018,1167.20,Golf Course Enterprise Fund,walkmower groomer parts,L.L. JOHNSON DIST
Community Resources,Repairs & maint-motor vehicles,01/19/2018,29.84,Golf Course Enterprise Fund,reel grinder lift parts,DENCOL SUPPLY COMPANY
Community Resources,Repairs & maint-motor vehicles,01/19/2018,19.90,Golf Course Enterprise Fund,reel grinder lift parts,DENCOL SUPPLY COMPANY
Community Resources,Repairs & maint-motor vehicles,01/19/2018,4.20,Golf Course Enterprise Fund,oil filter stock,CARQUEST      01039320
Community Resources,Repairs & maint-motor vehicles,01/19/2018,2.80,Golf Course Enterprise Fund,oil filter stock,CARQUEST      01039320
Community Resources,Repairs & maint-motor vehicles,01/19/2018,10.64,Golf Course Enterprise Fund,cap wrench and top terminal,OREILLY AUTO #2712
Community Resources,Repairs & maint-motor vehicles,01/19/2018,7.10,Golf Course Enterprise Fund,cap wrench and top terminal,OREILLY AUTO #2712
Community Resources,Repairs & maint-motor vehicles,01/19/2018,22.29,Golf Course Enterprise Fund,triplex and sand pro filters,UNIVERSAL TRACTOR CO
Community Resources,Repairs & maint-motor vehicles,01/19/2018,14.86,Golf Course Enterprise Fund,triplex and sand pro filters,UNIVERSAL TRACTOR CO
Community Resources,Repairs & maint-motor vehicles,01/19/2018,77.06,Golf Course Enterprise Fund,filter and plug stock and belt,CARQUEST      01039320
Community Resources,Repairs & maint-motor vehicles,01/19/2018,51.37,Golf Course Enterprise Fund,filter and plug stock and belt,CARQUEST      01039320
Community Resources,Repairs & maint-motor vehicles,01/19/2018,18.06,Golf Course Enterprise Fund,"parts for fairway unit 5400D,",L.L. JOHNSON DIST
Community Resources,Repairs & maint-motor vehicles,01/19/2018,157.60,Golf Course Enterprise Fund,clutch for bobcat maintenance,COLORADO GOLF AND TURF IN
Community Resources,Repairs & maint-motor vehicles,01/19/2018,105.07,Golf Course Enterprise Fund,clutch for bobcat maintenance,COLORADO GOLF AND TURF IN
Community Resources,Salaries and Wages,01/19/2018,65284.20,Golf Course Enterprise Fund,Golf Course Enterprise Fund,Salaries and Wages
Community Resources,Salaries and Wages,01/19/2018,59072.63,Open Space Fund,Open Space Fund,Salaries and Wages
Community Resources,Salaries and Wages,01/19/2018,31533.12,Grants Fund (Oper & Capital),Grants Fund (Oper & Capital),Salaries and Wages
Community Resources,Salaries and Wages,01/19/2018,57103.88,"Heritage, Culture & Arts Fund","Heritage, Culture & Arts Fund",Salaries and Wages
Community Resources,Salaries and Wages,01/19/2018,2271.36,Capital Improvement Fund,Capital Improvement Fund,Salaries and Wages
Community Resources,Salaries and Wages,01/19/2018,364268.65,General Fund,General Fund,Salaries and Wages
Community Resources,Sanitation,01/19/2018,39.78,"Heritage, Culture & Arts Fund",Dumpster(s),WASTE MGMT WM EZPAY
Community Resources,Sanitation,01/19/2018,112.26,Golf Course Enterprise Fund,Dumpster(s),WASTE MGMT WM EZPAY
Community Resources,Sanitation,01/19/2018,141.44,Golf Course Enterprise Fund,Dumpster(s),WASTE MGMT WM EZPAY
Community Resources,Sanitation,01/19/2018,38.25,Golf Course Enterprise Fund,Dumpster(s),WASTE MGMT WM EZPAY
Community Resources,Sanitation,01/19/2018,1075.19,General Fund,Dumpster(s),WASTE MGMT WM EZPAY
Community Resources,Sanitation,01/19/2018,825.18,Open Space Fund,Dumpster(s),WASTE MGMT WM EZPAY
Community Resources,Sanitation,01/19/2018,2139.07,General Fund,Dumpster(s),WASTE MGMT WM EZPAY
Community Resources,Sanitation,01/19/2018,821.00,General Fund,Recycle,GFL ENVIRONMENTAL
Community Resources,Sanitation,01/19/2018,58.00,Golf Course Enterprise Fund,Recycle,GFL ENVIRONMENTAL
Community Resources,Sanitation,01/19/2018,62.00,Golf Course Enterprise Fund,Recycle,GFL ENVIRONMENTAL
Community Resources,Sanitation,01/19/2018,51.00,Golf Course Enterprise Fund,Recycle,GFL ENVIRONMENTAL
Community Resources,Sanitation,01/19/2018,6.90,General Fund,600 S KIPLING ST,GREEN MOUNTAIN WATER
Community Resources,Sanitation,01/19/2018,414.00,General Fund,13198 W GREEN MOUNTAIN DR,GREEN MOUNTAIN WATER
Community Resources,Sanitation,01/19/2018,6.90,General Fund,12258 W WISCONSIN DR,GREEN MOUNTAIN WATER
Community Resources,Sanitation,01/19/2018,6.90,General Fund,12268 W WISCONSIN DR,GREEN MOUNTAIN WATER
Community Resources,Sanitation,01/19/2018,6.90,General Fund,12266 W WISCONSIN DR,GREEN MOUNTAIN WATER
Community Resources,Sanitation,01/19/2018,6.90,General Fund,10600 W VIRGINIA AVE,GREEN MOUNTAIN WATER
Community Resources,Sanitation,01/19/2018,20.70,General Fund,12100 W ALAMEDA PKWY,GREEN MOUNTAIN WATER
Community Resources,Sanitation,01/19/2018,1632.00,Open Space Fund,"Waste pumping, PO 7654",PAYPAL INC
Community Resources,Sanitation,01/19/2018,816.00,Open Space Fund,"Waste pumping, PO 7654",PAYPAL INC
Community Resources,Sanitation,01/19/2018,39.78,"Heritage, Culture & Arts Fund",Dumpster(s),WASTE MGMT WM EZPAY
Community Resources,Sanitation,01/19/2018,885.71,General Fund,Dumpster(s),WASTE MGMT WM EZPAY
Community Resources,Sanitation,01/19/2018,112.26,Golf Course Enterprise Fund,Dumpster(s),WASTE MGMT WM EZPAY
Community Resources,Sanitation,01/19/2018,141.44,Golf Course Enterprise Fund,Dumpster(s),WASTE MGMT WM EZPAY
Community Resources,Sanitation,01/19/2018,38.25,Golf Course Enterprise Fund,Dumpster(s),WASTE MGMT WM EZPAY
Community Resources,Sanitation,01/19/2018,2432.99,General Fund,Dumpster(s),WASTE MGMT WM EZPAY
Community Resources,Sanitation,01/19/2018,565.08,Open Space Fund,Dumpster(s),WASTE MGMT WM EZPAY
Community Resources,Sanitation,01/19/2018,2707.12,General Fund,Dumpster(s),WASTE MGMT WM EZPAY
Community Resources,Sanitation,01/19/2018,872.00,Open Space Fund,Portolets,UNITED SITE SVCS CO
Community Resources,Sanitation,01/19/2018,5572.00,General Fund,Portolets,UNITED SITE SVCS CO
Community Resources,Sanitation,01/19/2018,51.00,Golf Course Enterprise Fund,Recycle,GFL ENVIRONMENTAL
Community Resources,Sanitation,01/19/2018,831.00,General Fund,Recycle,GFL ENVIRONMENTAL
Community Resources,Sanitation,01/19/2018,58.00,Golf Course Enterprise Fund,Recycle,GFL ENVIRONMENTAL
Community Resources,Sanitation,01/19/2018,62.00,Golf Course Enterprise Fund,Recycle,GFL ENVIRONMENTAL
Community Resources,Telecommunications,01/19/2018,1519.36,General Fund,1 FB / 1 MB Local Lines  12-31,BCI BIRCHCOMMUNICATION
Community Resources,Telecommunications,01/19/2018,233.07,General Fund,1 FB / 1 MB Local Lines  12-31,BCI BIRCHCOMMUNICATION
Community Resources,Telecommunications,01/19/2018,175.67,General Fund,1 FB / 1 MB Local Lines  12-31,BCI BIRCHCOMMUNICATION
Community Resources,Telecommunications,01/19/2018,269.01,General Fund,1 FB / 1 MB Local Lines  12-31,BCI BIRCHCOMMUNICATION
Community Resources,Telecommunications,01/19/2018,268.32,Golf Course Enterprise Fund,1 FB / 1 MB Local Lines  12-31,BCI BIRCHCOMMUNICATION
Community Resources,Telecommunications,01/19/2018,169.28,Golf Course Enterprise Fund,1 FB / 1 MB Local Lines  12-31,BCI BIRCHCOMMUNICATION
Community Resources,Telecommunications,01/19/2018,140.93,General Fund,1 FB / 1 MB Local Lines  12-31,BCI BIRCHCOMMUNICATION
Community Resources,Telecommunications,01/19/2018,58.42,General Fund,Civic Center S-Gas Meter Line,CENTURYLINK/SPEEDPAY
Community Resources,Telecommunications,01/19/2018,379.65,Golf Course Enterprise Fund,TV & Internet Homestead  12-7-,COMCAST DENVER CS 1X
Community Resources,Telecommunications,01/19/2018,84.90,General Fund,Internet Clements Center 12-8-,COMCAST DENVER CS 1X
Community Resources,Telecommunications,01/19/2018,84.90,Golf Course Enterprise Fund,Internet Den @ Fox Hollow 12-1,COMCAST DENVER CS 1X
Community Resources,Telecommunications,01/19/2018,124.90,"Heritage, Culture & Arts Fund",Internet LCC 12-9-17,COMCAST DENVER CS 1X
Community Resources,Telecommunications,01/19/2018,84.90,General Fund,Internet GMRC 12-6-17,COMCAST DENVER CS 1X
Community Resources,Telecommunications,01/19/2018,84.90,Golf Course Enterprise Fund,Internet Den @ Fox Hollow  1-1,COMCAST DENVER CS 1X
Community Resources,Telecommunications,01/19/2018,84.90,General Fund,Internet Lasley Cottage 12-14-,COMCAST DENVER CS 1X
Community Resources,Telecommunications,01/19/2018,101.14,General Fund,1 FB / 1 MB Local Lines  12-31,BCI BIRCHCOMMUNICATION
Community Resources,Telecommunications,01/19/2018,244.60,General Fund,TV & Internet Link  12-26-17,COMCAST DENVER CS 1X
Community Resources,Telecommunications,01/19/2018,287.70,Golf Course Enterprise Fund,TV & Internet Fox Hollow 12-25,COMCAST DENVER CS 1X
Community Resources,Telecommunications,01/19/2018,290.55,General Fund,TV & Internet Carmody 12-7-17,COMCAST DENVER CS 1X
Community Resources,Telecommunications,01/19/2018,248.15,General Fund,TV & Internet CWRC 12-10-17,COMCAST DENVER CS 1X
Community Resources,Telecommunications,01/19/2018,84.90,General Fund,Internet Glennon Hts 12-6-17,COMCAST DENVER CS 1X
Community Resources,Telecommunications,01/19/2018,124.90,General Fund,Internet Surfside Pool 12-13-1,COMCAST DENVER CS 1X
Community Resources,Telecommunications,01/19/2018,84.90,General Fund,Internet Morse Park Pool 12-27,COMCAST DENVER CS 1X
Community Resources,Telecommunications,01/19/2018,6.99,General Fund,XFINITY TV Clements Ctr 12-3-1,COMCAST DENVER CS 1X
Community Resources,Telecommunications,01/19/2018,295.37,General Fund,City Cell Phones  11-9-17 to 1,ATT ADV SOLS
Community Resources,Telecommunications,01/19/2018,231.87,"Heritage, Culture & Arts Fund",City Cell Phones  11-9-17 to 1,ATT ADV SOLS
Community Resources,Telecommunications,01/19/2018,105.56,"Heritage, Culture & Arts Fund",City Cell Phones  11-9-17 to 1,ATT ADV SOLS
Community Resources,Telecommunications,01/19/2018,182.43,"Heritage, Culture & Arts Fund",City Cell Phones  11-9-17 to 1,ATT ADV SOLS
Community Resources,Telecommunications,01/19/2018,24.09,"Heritage, Culture & Arts Fund",City Cell Phones  11-9-17 to 1,ATT ADV SOLS
Community Resources,Telecommunications,01/19/2018,52.78,"Heritage, Culture & Arts Fund",City Cell Phones  11-9-17 to 1,ATT ADV SOLS
Community Resources,Telecommunications,01/19/2018,52.78,"Heritage, Culture & Arts Fund",City Cell Phones  11-9-17 to 1,ATT ADV SOLS
Community Resources,Telecommunications,01/19/2018,908.62,General Fund,City Cell Phones  11-9-17 to 1,ATT ADV SOLS
Community Resources,Telecommunications,01/19/2018,314.61,Open Space Fund,City Cell Phones  11-9-17 to 1,ATT ADV SOLS
Community Resources,Telecommunications,01/19/2018,76.87,Open Space Fund,City Cell Phones  11-9-17 to 1,ATT ADV SOLS
Community Resources,Telecommunications,01/19/2018,10.32,General Fund,City Cell Phones  11-9-17 to 1,ATT ADV SOLS
Community Resources,Telecommunications,01/19/2018,63.10,General Fund,City Cell Phones  11-9-17 to 1,ATT ADV SOLS
Community Resources,Telecommunications,01/19/2018,52.78,General Fund,City Cell Phones  11-9-17 to 1,ATT ADV SOLS
Community Resources,Telecommunications,01/19/2018,42.00,General Fund,City Cell Phones  11-9-17 to 1,ATT ADV SOLS
Community Resources,Telecommunications,01/19/2018,197.83,General Fund,City Cell Phones  11-9-17 to 1,ATT ADV SOLS
Community Resources,Telecommunications,01/19/2018,240.06,Open Space Fund,PD Aircards  11-18-17,VZWRLSS-IVR VW
Community Resources,Telecommunications,01/19/2018,84.90,General Fund,Internet Wilbur Rogers  12-22-,COMCAST DENVER CS 1X
Community Resources,Telecommunications,01/19/2018,364.23,General Fund,City Local Lines,CENTURYLINK/SPEEDPAY
Community Resources,Telecommunications,01/19/2018,144.34,Golf Course Enterprise Fund,City Local Lines,CENTURYLINK/SPEEDPAY
Community Resources,Telecommunications,01/19/2018,478.96,General Fund,City Local Lines,CENTURYLINK/SPEEDPAY
Community Resources,Telecommunications,01/19/2018,88.99,"Heritage, Culture & Arts Fund",Internet Wash Hts  12-27-17,CENTURYLINK/SPEEDPAY
Community Resources,Telecommunications,01/19/2018,58.42,General Fund,Civic Center S - Gas Meter Lin,CENTURYLINK/SPEEDPAY
Community Resources,Telecommunications,01/19/2018,412.24,General Fund,City Cell Phones  11-9-17 to 1,ATT ADV SOLS
Community Resources,Telecommunications,01/19/2018,24.09,General Fund,City Cell Phones  11-9-17 to 1,ATT ADV SOLS
Community Resources,Telecommunications,01/19/2018,563.50,Grants Fund (Oper & Capital),City Cell Phones  11-9-17 to 1,ATT ADV SOLS
Community Resources,Telecommunications,01/19/2018,105.56,Grants Fund (Oper & Capital),City Cell Phones  11-9-17 to 1,ATT ADV SOLS
Community Resources,Telecommunications,01/19/2018,24.09,General Fund,City Cell Phones  11-9-17 to 1,ATT ADV SOLS
Community Resources,Telecommunications,01/19/2018,24.09,General Fund,City Cell Phones  11-9-17 to 1,ATT ADV SOLS
Community Resources,Telecommunications,01/19/2018,59.79,General Fund,City Cell Phones  11-9-17 to 1,ATT ADV SOLS
Community Resources,Telecommunications,01/19/2018,136.78,General Fund,City Cell Phones  11-9-17 to 1,ATT ADV SOLS
Community Resources,Telecommunications,01/19/2018,66.09,General Fund,City Cell Phones  11-9-17 to 1,ATT ADV SOLS
Community Resources,Telecommunications,01/19/2018,364.63,General Fund,City Cell Phones  11-9-17 to 1,ATT ADV SOLS
Community Resources,Telecommunications,01/19/2018,105.56,General Fund,City Cell Phones  11-9-17 to 1,ATT ADV SOLS
Community Resources,Telecommunications,01/19/2018,76.87,General Fund,City Cell Phones  11-9-17 to 1,ATT ADV SOLS
Community Resources,Telecommunications,01/19/2018,52.78,General Fund,City Cell Phones  11-9-17 to 1,ATT ADV SOLS
Community Resources,Telecommunications,01/19/2018,158.34,Golf Course Enterprise Fund,City Cell Phones  11-9-17 to 1,ATT ADV SOLS
Community Resources,Telecommunications,01/19/2018,10.32,Golf Course Enterprise Fund,City Cell Phones  11-9-17 to 1,ATT ADV SOLS
Community Resources,Telecommunications,01/19/2018,105.69,Golf Course Enterprise Fund,City Cell Phones  11-9-17 to 1,ATT ADV SOLS
Community Resources,Telecommunications,01/19/2018,10.32,Golf Course Enterprise Fund,City Cell Phones  11-9-17 to 1,ATT ADV SOLS
Community Resources,Telecommunications,01/19/2018,2162.56,General Fund,City Cell Phones  11-9-17 to 1,ATT ADV SOLS
Community Resources,Telecommunications,01/19/2018,175.82,General Fund,City Cell Phones  11-9-17 to 1,ATT ADV SOLS
Community Resources,Telecommunications,01/19/2018,391.10,Open Space Fund,City Cell Phones  11-9-17 to 1,ATT ADV SOLS
Community Resources,Telecommunications,01/19/2018,158.34,Open Space Fund,City Cell Phones  11-9-17 to 1,ATT ADV SOLS
Community Resources,Telecommunications,01/19/2018,79.54,General Fund,City Cell Phones  11-9-17 to 1,ATT ADV SOLS
Community Resources,Telecommunications,01/19/2018,94.78,General Fund,City Cell Phones  11-9-17 to 1,ATT ADV SOLS
Community Resources,Telecommunications,01/19/2018,442.22,General Fund,City Cell Phones  11-9-17 to 1,ATT ADV SOLS
Community Resources,Telecommunications,01/19/2018,254.00,Golf Course Enterprise Fund,CR Wireless Headsets,AMAZON.COM
Community Resources,Training,01/19/2018,3290.00,Open Space Fund,conference registration,PROGREEN EXPO
Community Resources,Training,01/19/2018,131.34,General Fund,R.I.S.E. CPR Training Supplies,AMAZON.COM
Community Resources,Training,01/19/2018,60.00,General Fund,TRSC Fall Professional Develop,COLORADO PARKS & RECREATI
Community Resources,Training,01/19/2018,10.00,Grants Fund (Oper & Capital),Food Safety Course- MP,STATEFOODSAFETY.COM
Community Resources,Training,01/19/2018,80.00,General Fund,Thought Leaders Panel Registra,COLORADO WOMENS CHAMBER
Community Resources,Training,01/19/2018,817.60,General Fund,Hand weights and white noodles,HYDRO-FIT INC
Community Resources,Training,01/19/2018,228.00,General Fund,professional training,INR
Community Resources,Training,01/19/2018,50.00,Golf Course Enterprise Fund,welding class for mechanic,WPY GENERAL AIR SERVICE
Community Resources,Training,01/19/2018,50.00,Golf Course Enterprise Fund,welding class for mechanic,WPY GENERAL AIR SERVICE
Community Resources,Training,01/19/2018,50.00,Open Space Fund,Recertification for Brian to t,COLORADO NURSERY & GREENH
Community Resources,Training,01/19/2018,300.00,General Fund,Colorado weed management train,PAYPAL INC
Community Resources,Training,01/19/2018,90.00,Open Space Fund,Registration for Native Plant,PAYPAL INC
Community Resources,Training,01/19/2018,1500.00,General Fund,2018 Business for the Arts Awa,CBCA
Community Resources,Travel - auto expense,01/19/2018,12.00,General Fund,Parking fee for meeting,0872 DENVER PAVILIONS
Community Resources,Vehicle/Equipment Chargebacks,01/19/2018,228.20,Open Space Fund,Brushes for Kubota sweeper,ACE EQUIPMENT AND SUPPLY
Community Resources,Vehicle/Equipment Chargebacks,01/19/2018,27.30,Open Space Fund,Oil filters for Kubota RTV,CARQUEST      01039320
Community Resources,Vehicle/Equipment Chargebacks,01/19/2018,56.92,Open Space Fund,Pintle hitch for dump trailer,COWBOY METAL PRODUCTS
Community Resources,Water,01/19/2018,405.00,Open Space Fund,Park drinking water,A-1 DISCOUNT WATER
Community Resources,Water,01/19/2018,135.00,Open Space Fund,Park drinking water,A-1 DISCOUNT WATER
Community Resources,Water,01/19/2018,316.40,General Fund,150 S KIPLING ST,GREEN MOUNTAIN WATER
Community Resources,Water,01/19/2018,118.00,General Fund,530 S SIMMS ST,GREEN MOUNTAIN WATER
Community Resources,Water,01/19/2018,341.96,General Fund,9815 W CEDAR AVE,GREEN MOUNTAIN WATER
Community Resources,Water,01/19/2018,163.81,General Fund,764 S HOYT ST,GREEN MOUNTAIN WATER
Community Resources,Water,01/19/2018,59.00,General Fund,10600 W KENTUCKY DR,GREEN MOUNTAIN WATER
Community Resources,Water,01/19/2018,204.53,General Fund,12201 W GREEN MOUNTAIN DR,GREEN MOUNTAIN WATER
Community Resources,Water,01/19/2018,59.00,General Fund,12142 W NEVADA DR,GREEN MOUNTAIN WATER
Community Resources,Water,01/19/2018,104.81,General Fund,600 S KIPLING ST,GREEN MOUNTAIN WATER
Community Resources,Water,01/19/2018,118.00,General Fund,10600 W VIRGINIA AVE,GREEN MOUNTAIN WATER
Community Resources,Water,01/19/2018,118.00,General Fund,1682 S BEECH ST,GREEN MOUNTAIN WATER
Community Resources,Water,01/19/2018,118.00,General Fund,702 S KIPLING ST,GREEN MOUNTAIN WATER
Community Resources,Water,01/19/2018,118.00,General Fund,704 S KIPLING ST,GREEN MOUNTAIN WATER
Community Resources,Water,01/19/2018,59.00,General Fund,13200 W JEWELL AVE,GREEN MOUNTAIN WATER
Community Resources,Water,01/19/2018,14.75,General Fund,14050 W YALE PL,GREEN MOUNTAIN WATER
Community Resources,Water,01/19/2018,29.50,General Fund,1950 S BEAR CREEK BLVD,GREEN MOUNTAIN WATER
Community Resources,Water,01/19/2018,29.50,General Fund,2300 S BEAR CREEK BLVD,GREEN MOUNTAIN WATER
Community Resources,Water,01/19/2018,29.50,General Fund,14353 W YALE PL,GREEN MOUNTAIN WATER
Community Resources,Water,01/19/2018,14.75,General Fund,197 S UNION BLVD,GREEN MOUNTAIN WATER
Community Resources,Water,01/19/2018,14.75,General Fund,12312 W 4TH AVE,GREEN MOUNTAIN WATER
Community Resources,Water,01/19/2018,59.00,General Fund,202 UNION BLVD,GREEN MOUNTAIN WATER
Community Resources,Water,01/19/2018,59.00,General Fund,400 UNION BLVD,GREEN MOUNTAIN WATER
Community Resources,Water,01/19/2018,14.75,General Fund,10090 W ALAMEDA AVE,GREEN MOUNTAIN WATER
Community Resources,Water,01/19/2018,10.18,General Fund,13247 W UTAH AVE,GREEN MOUNTAIN WATER
Community Resources,Water,01/19/2018,14.75,General Fund,1468 S WRIGHT ST,GREEN MOUNTAIN WATER
Community Resources,Water,01/19/2018,14.75,General Fund,1374 S YANK ST,GREEN MOUNTAIN WATER
Community Resources,Water,01/19/2018,14.75,General Fund,12686 S HAWAII AVE,GREEN MOUNTAIN WATER
Community Resources,Water,01/19/2018,14.75,General Fund,13628 W UTAH AVE,GREEN MOUNTAIN WATER
Community Resources,Water,01/19/2018,14.75,General Fund,13687 W UTAH AVE,GREEN MOUNTAIN WATER
Community Resources,Water,01/19/2018,14.75,General Fund,13158 W UTAH AVE,GREEN MOUNTAIN WATER
Community Resources,Water,01/19/2018,14.75,General Fund,12266 W WISCONSIN DR,GREEN MOUNTAIN WATER
Community Resources,Water,01/19/2018,14.75,General Fund,12276 W WISCONSIN DR,GREEN MOUNTAIN WATER
Community Resources,Water,01/19/2018,19.84,General Fund,12258 W WISCONSIN DR,GREEN MOUNTAIN WATER
Community Resources,Water,01/19/2018,14.75,General Fund,12268 W WISCONSIN DR,GREEN MOUNTAIN WATER
Community Resources,Water,01/19/2018,60.04,General Fund,12100 W ALAMEDA PKWY,GREEN MOUNTAIN WATER
Community Resources,Water,01/19/2018,118.00,Open Space Fund,500 ZANG ST,GREEN MOUNTAIN WATER
Community Resources,Water,01/19/2018,59.00,Open Space Fund,500 WRIGHT ST,GREEN MOUNTAIN WATER
Community Resources,Water,01/19/2018,118.00,Open Space Fund,190 WARD CT,GREEN MOUNTAIN WATER
Community Resources,Water,01/19/2018,118.00,Open Space Fund,2501 S GLADIOLA WY,GREEN MOUNTAIN WATER
Community Resources,Water,01/19/2018,588.36,General Fund,13198 W GREEN MOUNTAIN DR,GREEN MOUNTAIN WATER
Finance,Books & Publications,01/19/2018,298.75,General Fund,PPC Payroll Tax Deskbook,PRACTITIONERS PUBLI
Finance,Clothing & Uniforms,01/19/2018,519.35,General Fund,Inv 8717 Lakewood Logo Socks,CUSTOM SOCK SHOP
Finance,Data processing,01/19/2018,50.00,General Fund,Collections Software - Rev. Di,LEXISNEXIS RISK MGT
Finance,Dues and memberships,01/19/2018,1495.00,General Fund,JDE Users Group - Dues,QUEST   INTL USERS GRP
Finance,Dues and memberships,01/19/2018,45.00,General Fund,Annual Membership Dues,CVENT  COLORADO GFOA
Finance,Dues and memberships,01/19/2018,45.00,General Fund,Annual Membership Dues,CVENT  COLORADO GFOA
Finance,Dues and memberships,01/19/2018,45.00,General Fund,Annual Membership Dues,CVENT  COLORADO GFOA
Finance,Dues and memberships,01/19/2018,45.00,General Fund,Annual Membership Dues,CVENT  COLORADO GFOA
Finance,Dues and memberships,01/19/2018,45.00,General Fund,Annual Membership Dues,CVENT  COLORADO GFOA
Finance,Dues and memberships,01/19/2018,45.00,General Fund,Annual Membership Dues,CVENT  COLORADO GFOA
Finance,Dues and memberships,01/19/2018,45.00,General Fund,Annual Membership Dues,CVENT  COLORADO GFOA
Finance,Dues and memberships,01/19/2018,45.00,General Fund,Annual Membership Dues,CVENT  COLORADO GFOA
Finance,Dues and memberships,01/19/2018,45.00,General Fund,Annual Membership Dues,CVENT  COLORADO GFOA
Finance,Dues and memberships,01/19/2018,100.00,General Fund,Membership for Purchasing Staf,RMGPA.ORG
Finance,Employee Benefits,01/19/2018,211.42,Grants Fund (Oper & Capital),Grants Fund (Oper & Capital),Employee Benefits
Finance,Employee Benefits,01/19/2018,26686.07,General Fund,General Fund,Employee Benefits
Finance,Employee Benefits,01/19/2018,565.58,Capital Improvement Fund,Capital Improvement Fund,Employee Benefits
Finance,Meal expense,01/19/2018,384.00,General Fund,Annual Fin Water Filtration Re,ROCKY MOUNTAIN BOTTLED WA
Finance,Meal expense,01/19/2018,401.98,General Fund,Employee Appreciation,CHAD'S GRILL
Finance,Meal expense,01/19/2018,15.95,General Fund,Consultant - Refreshments,KING SOOPERS #0127
Finance,Meal expense,01/19/2018,27.85,General Fund,Consultant Meeting,THE FRENCH PRESS
Finance,Meal expense,01/19/2018,43.85,General Fund,Consultant Luncheon,240 UNION
Finance,Office furn & equip-non cap,01/19/2018,145.00,General Fund,Inv 99-80406D Furniture Reconf,CONTRACT FURNISHINGS
Finance,Office supplies,01/19/2018,37.99,General Fund,Ord 7188265682 Printing Calcul,STAPLES
Finance,Office supplies,01/19/2018,23.09,General Fund,Ord 7188857952 Calendar,STAPLES
Finance,Office supplies,01/19/2018,44.89,General Fund,"Ord 7188857952 Calendars, Whit",STAPLES
Finance,Office supplies,01/19/2018,-23.09,General Fund,Ord 7188857952 Calendar - Refu,STAPLES
Finance,Office supplies,01/19/2018,-25.57,General Fund,Ord 7188857952 Whiteboards & M,STAPLES
Finance,Office supplies,01/19/2018,4.79,General Fund,correction tape & glue sticks,STAPLES
Finance,Office supplies,01/19/2018,6.44,General Fund,correction tape & glue sticks,STAPLES
Finance,Office supplies,01/19/2018,7.18,General Fund,correction tape & glue sticks,STAPLES
Finance,Office supplies,01/19/2018,21.83,General Fund,"ref. dividers, tabs, wall cale",STAPLES
Finance,Office supplies,01/19/2018,29.39,General Fund,"ref. dividers, tabs, wall cale",STAPLES
Finance,Office supplies,01/19/2018,32.74,General Fund,"ref. dividers, tabs, wall cale",STAPLES
Finance,Office supplies,01/19/2018,43.55,General Fund,Fin Coffee service  inv# 25833,ROCKY MOUNTAIN BOTTLED WA
Finance,Office supplies,01/19/2018,295.00,General Fund,HP LJ600M -Accting - Fuser/rol,LAZERTRONIX INC
Finance,Office supplies,01/19/2018,95.00,General Fund,Dell 5230N Accting j- clean/ro,LAZERTRONIX INC
Finance,Office supplies,01/19/2018,95.00,General Fund,HP LJ M750 - Fin - clean/rolle,LAZERTRONIX INC
